Workbook

Sheet Notice
B2: Préambule | D2: Ceci est un Excel. Donc vous pouvez modifier n'importe qu'elle case si ça vous arrange. Mais faut pas s'etonner si on fait au petit bonheur et qu'après ça marche plus
D3: Il n'y a aucune connectivité internet dans ce fichier, donc aucune donnée ne sera récupérée et stockées quelque part.
B5: Objectifs | D5: PETER DU LXM
B7: Outils à disposition | D7: Floodmeter
D8: Calculateur de Flood multiples, affichant les heures de retours en fonction de l'heure du PC !, à vous de la paramétrer pour qu'elle soit identique à Fourmizzz
E9: Pour ce faire : | F9: Panneau de configuration | H9: ==> | I9: Date et Heure | J9: ==> | K9: Temps Internet | L9: ==> | M9: Modifier les paramètres | O9: ==> | P9: Serveur : | Q9: http://s3.fourmizzz.fr
D10: Traqueur, pour voir tous les retours possibles d'une cible, en fonction de son tdp ou d'une heure de RC | P10: Ensuite valider
B13: Onglets : | D13: Floodmeter | F13: C/c des RC de flood et calcule le total de tdc pris
D15: LXM | F15: Regroupe toutes les infos connues sur les LXM, à mettre à jour manuellement
D17: BES | F17: Regroupe les placements des joueurs BES
D19: CC Page LXM | F19: Copier coller en B2 la place de description LXM puis cliquer sur le bouton pour procéder à des calculs
D21: CC Page BES | F21: Copier coller en B2 la place de description BES puis cliquer sur le bouton pour procéder à des calculs
D23: FLOOD | F23: Simulateur de Flood Multiples, selection des cibles parmi celles à portée (LXM & BES) et affichage des heures d'arrivées
D25: TRAQUE | F25: Choisir un LXM, voir qui il a a portée, rentrer la date du dernier RC ou l'heure d'une sonde loge, un délai supplémentaire de relance si voulu; vous avez tous ses retours possibles. Enjoy :)
B27: Onglets masqués | D27: Osef | F27: Ne pas toucher, merci :)
B29: Copyright | D29: Formule de la VA | F29: Pompée sur le code source de Toolzzz xD
D30: Reste | F30: Là c'est Rock !
D32: (Parce que la compil de données déjà existantes c'est plus rapide et plus efficace souvent ^^)

Sheet Feuil1 (hidden)

Sheet FLOODMETER
A1: Coller les RC toutes les 10 cases. Exemple : A10, A20, A30 etc…
F2: Constantes : | L2: Total floodé :
F3: Titre | G3: 29 | H3: Initiaux | L3: =SUM(J:J) -> 28244511
F4: Corps | G4: 88 | H4: 25
F9: Décryptage
A10: Fourmizzz | B10: 13/04/13 19h17 | C10: Terrain de chasse de Panda capturé | F10: =LEN(C10) -> 34 | G10: =F10-$G$3 -> 5 | I10: Quantité floodée : | J10: =IFERROR(VALUE(MID(B12,$H$4,G11)),0) -> 28244511
F11: =LEN(B12) -> 104 | G11: =F11-$G$4-G10 -> 11
B12: Vos fourmis ont conquis 28 244 511 cm2 lors de leur dernière bataille. Ces terres appartenaient à Panda.
B14: Supprimer
F19: Décryptage
F20: =LEN(C20) -> 0 | G20: =F20-$G$3 -> -29 | I20: Quantité floodée : | J20: =IFERROR(VALUE(MID(B22,$H$4,G21)),0) -> 0
F21: =LEN(B22) -> 0 | G21: =F21-$G$4-G20 -> -59
F29: Décryptage
F30: =LEN(C30) -> 0 | G30: =F30-$G$3 -> -29 | I30: Quantité floodée : | J30: =IFERROR(VALUE(MID(B32,$H$4,G31)),0) -> 0
F31: =LEN(B32) -> 0 | G31: =F31-$G$4-G30 -> -59
F39: Décryptage
F40: =LEN(C40) -> 0 | G40: =F40-$G$3 -> -29 | I40: Quantité floodée : | J40: =IFERROR(VALUE(MID(B42,$H$4,G41)),0) -> 0
F41: =LEN(B42) -> 0 | G41: =F41-$G$4-G40 -> -59
F49: Décryptage
F50: =LEN(C50) -> 0 | G50: =F50-$G$3 -> -29 | I50: Quantité floodée : | J50: =IFERROR(VALUE(MID(B52,$H$4,G51)),0) -> 0
F51: =LEN(B52) -> 0 | G51: =F51-$G$4-G50 -> -59
F59: Décryptage
F60: =LEN(C60) -> 0 | G60: =F60-$G$3 -> -29 | I60: Quantité floodée : | J60: =IFERROR(VALUE(MID(B62,$H$4,G61)),0) -> 0
F61: =LEN(B62) -> 0 | G61: =F61-$G$4-G60 -> -59
F69: Décryptage
F70: =LEN(C70) -> 0 | G70: =F70-$G$3 -> -29 | I70: Quantité floodée : | J70: =IFERROR(VALUE(MID(B72,$H$4,G71)),0) -> 0
F71: =LEN(B72) -> 0 | G71: =F71-$G$4-G70 -> -59
F79: Décryptage
F80: =LEN(C80) -> 0 | G80: =F80-$G$3 -> -29 | I80: Quantité floodée : | J80: =IFERROR(VALUE(MID(B82,$H$4,G81)),0) -> 0
F81: =LEN(B82) -> 0 | G81: =F81-$G$4-G80 -> -59
F89: Décryptage
F90: =LEN(C90) -> 0 | G90: =F90-$G$3 -> -29 | I90: Quantité floodée : | J90: =IFERROR(VALUE(MID(B92,$H$4,G91)),0) -> 0
F91: =LEN(B92) -> 0 | G91: =F91-$G$4-G90 -> -59
F99: Décryptage
F100: =LEN(C100) -> 0 | G100: =F100-$G$3 -> -29 | I100: Quantité floodée : | J100: =IFERROR(VALUE(MID(B102,$H$4,G101)),0) -> 0
F101: =LEN(B102) -> 0 | G101: =F101-$G$4-G100 -> -59
F109: Décryptage
F110: =LEN(C110) -> 0 | G110: =F110-$G$3 -> -29 | I110: Quantité floodée : | J110: =IFERROR(VALUE(MID(B112,$H$4,G111)),0) -> 0
F111: =LEN(B112) -> 0 | G111: =F111-$G$4-G110 -> -59
F119: Décryptage
F120: =LEN(C120) -> 0 | G120: =F120-$G$3 -> -29 | I120: Quantité floodée : | J120: =IFERROR(VALUE(MID(B122,$H$4,G121)),0) -> 0
F121: =LEN(B122) -> 0 | G121: =F121-$G$4-G120 -> -59
F129: Décryptage
F130: =LEN(C130) -> 0 | G130: =F130-$G$3 -> -29 | I130: Quantité floodée : | J130: =IFERROR(VALUE(MID(B132,$H$4,G131)),0) -> 0
F131: =LEN(B132) -> 0 | G131: =F131-$G$4-G130 -> -59
F139: Décryptage
F140: =LEN(C140) -> 0 | G140: =F140-$G$3 -> -29 | I140: Quantité floodée : | J140: =IFERROR(VALUE(MID(B142,$H$4,G141)),0) -> 0
F141: =LEN(B142) -> 0 | G141: =F141-$G$4-G140 -> -59
F149: Décryptage
F150: =LEN(C150) -> 0 | G150: =F150-$G$3 -> -29 | I150: Quantité floodée : | J150: =IFERROR(VALUE(MID(B152,$H$4,G151)),0) -> 0
F151: =LEN(B152) -> 0 | G151: =F151-$G$4-G150 -> -59
F159: Décryptage
F160: =LEN(C160) -> 0 | G160: =F160-$G$3 -> -29 | I160: Quantité floodée : | J160: =IFERROR(VALUE(MID(B162,$H$4,G161)),0) -> 0
F161: =LEN(B162) -> 0 | G161: =F161-$G$4-G160 -> -59
F169: Décryptage
F170: =LEN(C170) -> 0 | G170: =F170-$G$3 -> -29 | I170: Quantité floodée : | J170: =IFERROR(VALUE(MID(B172,$H$4,G171)),0) -> 0
F171: =LEN(B172) -> 0 | G171: =F171-$G$4-G170 -> -59
F179: Décryptage
F180: =LEN(C180) -> 0 | G180: =F180-$G$3 -> -29 | I180: Quantité floodée : | J180: =IFERROR(VALUE(MID(B182,$H$4,G181)),0) -> 0
F181: =LEN(B182) -> 0 | G181: =F181-$G$4-G180 -> -59
F189: Décryptage
F190: =LEN(C190) -> 0 | G190: =F190-$G$3 -> -29 | I190: Quantité floodée : | J190: =IFERROR(VALUE(MID(B192,$H$4,G191)),0) -> 0
F191: =LEN(B192) -> 0 | G191: =F191-$G$4-G190 -> -59
F199: Décryptage
F200: =LEN(C200) -> 0 | G200: =F200-$G$3 -> -29 | I200: Quantité floodée : | J200: =IFERROR(VALUE(MID(B202,$H$4,G201)),0) -> 0
F201: =LEN(B202) -> 0 | G201: =F201-$G$4-G200 -> -59
F209: Décryptage
F210: =LEN(C210) -> 0 | G210: =F210-$G$3 -> -29 | I210: Quantité floodée : | J210: =IFERROR(VALUE(MID(B212,$H$4,G211)),0) -> 0
F211: =LEN(B212) -> 0 | G211: =F211-$G$4-G210 -> -59
F219: Décryptage
F220: =LEN(C220) -> 0 | G220: =F220-$G$3 -> -29 | I220: Quantité floodée : | J220: =IFERROR(VALUE(MID(B222,$H$4,G221)),0) -> 0
F221: =LEN(B222) -> 0 | G221: =F221-$G$4-G220 -> -59
F229: Décryptage
F230: =LEN(C230) -> 0 | G230: =F230-$G$3 -> -29 | I230: Quantité floodée : | J230: =IFERROR(VALUE(MID(B232,$H$4,G231)),0) -> 0
F231: =LEN(B232) -> 0 | G231: =F231-$G$4-G230 -> -59
F239: Décryptage
F240: =LEN(C240) -> 0 | G240: =F240-$G$3 -> -29 | I240: Quantité floodée : | J240: =IFERROR(VALUE(MID(B242,$H$4,G241)),0) -> 0
F241: =LEN(B242) -> 0 | G241: =F241-$G$4-G240 -> -59
F249: Décryptage
F250: =LEN(C250) -> 0 | G250: =F250-$G$3 -> -29 | I250: Quantité floodée : | J250: =IFERROR(VALUE(MID(B252,$H$4,G251)),0) -> 0
F251: =LEN(B252) -> 0 | G251: =F251-$G$4-G250 -> -59
F259: Décryptage
F260: =LEN(C260) -> 0 | G260: =F260-$G$3 -> -29 | I260: Quantité floodée : | J260: =IFERROR(VALUE(MID(B262,$H$4,G261)),0) -> 0
F261: =LEN(B262) -> 0 | G261: =F261-$G$4-G260 -> -59
F269: Décryptage
F270: =LEN(C270) -> 0 | G270: =F270-$G$3 -> -29 | I270: Quantité floodée : | J270: =IFERROR(VALUE(MID(B272,$H$4,G271)),0) -> 0
F271: =LEN(B272) -> 0 | G271: =F271-$G$4-G270 -> -59
F279: Décryptage
F280: =LEN(C280) -> 0 | G280: =F280-$G$3 -> -29 | I280: Quantité floodée : | J280: =IFERROR(VALUE(MID(B282,$H$4,G281)),0) -> 0
F281: =LEN(B282) -> 0 | G281: =F281-$G$4-G280 -> -59
F289: Décryptage
F290: =LEN(C290) -> 0 | G290: =F290-$G$3 -> -29 | I290: Quantité floodée : | J290: =IFERROR(VALUE(MID(B292,$H$4,G291)),0) -> 0
F291: =LEN(B292) -> 0 | G291: =F291-$G$4-G290 -> -59
F299: Décryptage
F300: =LEN(C300) -> 0 | G300: =F300-$G$3 -> -29 | I300: Quantité floodée : | J300: =IFERROR(VALUE(MID(B302,$H$4,G301)),0) -> 0
F301: =LEN(B302) -> 0 | G301: =F301-$G$4-G300 -> -59
F309: Décryptage
F310: =LEN(C310) -> 0 | G310: =F310-$G$3 -> -29 | I310: Quantité floodée : | J310: =IFERROR(VALUE(MID(B312,$H$4,G311)),0) -> 0
F311: =LEN(B312) -> 0 | G311: =F311-$G$4-G310 -> -59
F319: Décryptage
F320: =LEN(C320) -> 0 | G320: =F320-$G$3 -> -29 | I320: Quantité floodée : | J320: =IFERROR(VALUE(MID(B322,$H$4,G321)),0) -> 0
F321: =LEN(B322) -> 0 | G321: =F321-$G$4-G320 -> -59
F329: Décryptage
F330: =LEN(C330) -> 0 | G330: =F330-$G$3 -> -29 | I330: Quantité floodée : | J330: =IFERROR(VALUE(MID(B332,$H$4,G331)),0) -> 0
F331: =LEN(B332) -> 0 | G331: =F331-$G$4-G330 -> -59
F339: Décryptage
F340: =LEN(C340) -> 0 | G340: =F340-$G$3 -> -29 | I340: Quantité floodée : | J340: =IFERROR(VALUE(MID(B342,$H$4,G341)),0) -> 0
F341: =LEN(B342) -> 0 | G341: =F341-$G$4-G340 -> -59
F349: Décryptage
F350: =LEN(C350) -> 0 | G350: =F350-$G$3 -> -29 | I350: Quantité floodée : | J350: =IFERROR(VALUE(MID(B352,$H$4,G351)),0) -> 0
F351: =LEN(B352) -> 0 | G351: =F351-$G$4-G350 -> -59
F359: Décryptage
F360: =LEN(C360) -> 0 | G360: =F360-$G$3 -> -29 | I360: Quantité floodée : | J360: =IFERROR(VALUE(MID(B362,$H$4,G361)),0) -> 0
F361: =LEN(B362) -> 0 | G361: =F361-$G$4-G360 -> -59
F369: Décryptage
F370: =LEN(C370) -> 0 | G370: =F370-$G$3 -> -29 | I370: Quantité floodée : | J370: =IFERROR(VALUE(MID(B372,$H$4,G371)),0) -> 0
F371: =LEN(B372) -> 0 | G371: =F371-$G$4-G370 -> -59
F379: Décryptage
F380: =LEN(C380) -> 0 | G380: =F380-$G$3 -> -29 | I380: Quantité floodée : | J380: =IFERROR(VALUE(MID(B382,$H$4,G381)),0) -> 0
F381: =LEN(B382) -> 0 | G381: =F381-$G$4-G380 -> -59

Sheet LXM
A1: Dernière MaJ | B1: =TODAY() -> 2013-04-14 | D1: Mon tdc | E1: 431842364 | G1: VA | H1: 25 | J1: Pos perso: | K1: x | L1: 16 | M1: y | N1: 173
B3: MAP | C3: TDC | D3: A portée ? | E3: x | F3: y | G3: Distance | H3: Temps | J3: BONUS | K3: VA | L3: Dôme | M3: Loge | N3: BT | O3: Armes | P3: Evo TDP | R3: RC | S3: Vie Dôme | T3: Vie Loge | U3: Fdf | V3: Def | W3: Capa
A4: _Angel_ | C4: =VLOOKUP(A4,'DATA LXM'!$A$35:$B$64,2) -> 45216292 | D4: =IF(AND((C4<=(3*$E$1)),(C4>=(0.5*$E$1))),"A PORTEE"," ") ->  | E4: 40 | F4: 173 | G4: =ROUNDUP(SQRT((LXM!$L$1-LXM!E4)^2+(LXM!$N$1-LXM!F4)^2),0) -> 24 | H4: =CONCATENATE('DATA LXM'!D2,"h",'DATA LXM'!E2,"min",'DATA LXM'!F2,"sec") -> 0h50min32sec | K4: 24
A5: _diablo_ | C5: =VLOOKUP(A5,'DATA LXM'!$A$35:$B$64,2) -> 134710356 | E5: 5 | F5: 173 | G5: =ROUNDUP(SQRT((LXM!$L$1-LXM!E5)^2+(LXM!$N$1-LXM!F5)^2),0) -> 11 | H5: =CONCATENATE('DATA LXM'!D3,"h",'DATA LXM'!E3,"min",'DATA LXM'!F3,"sec") -> 0h23min36sec | K5: 1 | M5: 22 | N5: 20 | O5: 20 | R5: Troupes en attaque:45 806 563 Jeunes Soldates Naines, 37 315 470 Soldates Naines, 15 335 232 Naines d'Elites, 34 954 414 Jeunes Soldates, 29 395 848 Soldates, 1 Concierge, 1 Concierge d'élite, 1 Artilleuse, 2 500 000 Artilleuses d'élites, 48 963 324 Soldates d'élites, 15 487 644 Tanks, 36 682 800 Tanks d'élites, 1 Tueuse, 1 Tueuse d'élite.
A6: _Wolverine_ | C6: =VLOOKUP(A6,'DATA LXM'!$A$35:$B$64,2) -> 573345 | E6: 36 | F6: 173 | G6: =ROUNDUP(SQRT((LXM!$L$1-LXM!E6)^2+(LXM!$N$1-LXM!F6)^2),0) -> 20 | H6: =CONCATENATE('DATA LXM'!D4,"h",'DATA LXM'!E4,"min",'DATA LXM'!F4,"sec") -> 0h42min21sec | K6: 1
A7: 4midiable | C7: =VLOOKUP(A7,'DATA LXM'!$A$35:$B$64,2) -> 1940203 | E7: 40 | F7: 161 | G7: =ROUNDUP(SQRT((LXM!$L$1-LXM!E7)^2+(LXM!$N$1-LXM!F7)^2),0) -> 27 | H7: =CONCATENATE('DATA LXM'!D5,"h",'DATA LXM'!E5,"min",'DATA LXM'!F5,"sec") -> 0h56min16sec | K7: 1
A8: AB64 | C8: =VLOOKUP(A8,'DATA LXM'!$A$35:$B$64,2) -> 399362427 | D8: A PORTEE | E8: 22 | F8: 14 | G8: =ROUNDUP(SQRT((LXM!$L$1-LXM!E8)^2+(LXM!$N$1-LXM!F8)^2),0) -> 160 | H8: =CONCATENATE('DATA LXM'!D6,"h",'DATA LXM'!E6,"min",'DATA LXM'!F6,"sec") -> 4h38min31sec | K8: 1
A9: Allerdyce | C9: =VLOOKUP(A9,'DATA LXM'!$A$35:$B$64,2) -> 511366515 | D9: A PORTEE | E9: 9 | F9: 172 | G9: =ROUNDUP(SQRT((LXM!$L$1-LXM!E9)^2+(LXM!$N$1-LXM!F9)^2),0) -> 8 | H9: =CONCATENATE('DATA LXM'!D7,"h",'DATA LXM'!E7,"min",'DATA LXM'!F7,"sec") -> 0h15min15sec | K9: 24 | L9: 21 | M9: 24 | N9: 20 | O9: 21 | R9: Troupes en attaque:94 224 605 Jeunes Soldates Naines, 11 046 489 Soldates Naines, 664 456 Naines d'Elites, 43 575 635 Jeunes Soldates, 17 890 090 Soldates, 849 455 Artilleuses, 2 090 917 Artilleuses d'élites, 38 233 482 Soldates d'élites, 6 908 318 Tanks, 19 531 489 Tanks d'élites, 4 269 710 Tueuses, 11 475 316 Tueuses d'élites.
A10: bubulle | C10: =VLOOKUP(A10,'DATA LXM'!$A$35:$B$64,2) -> 3255300 | E10: 4 | F10: 225 | G10: =ROUNDUP(SQRT((LXM!$L$1-LXM!E10)^2+(LXM!$N$1-LXM!F10)^2),0) -> 54 | H10: =CONCATENATE('DATA LXM'!D8,"h",'DATA LXM'!E8,"min",'DATA LXM'!F8,"sec") -> 1h47min50sec | K10: 1
A11: creamy | C11: =VLOOKUP(A11,'DATA LXM'!$A$35:$B$64,2) -> 4979692 | E11: 39 | F11: 176 | G11: =ROUNDUP(SQRT((LXM!$L$1-LXM!E11)^2+(LXM!$N$1-LXM!F11)^2),0) -> 24 | H11: =CONCATENATE('DATA LXM'!D9,"h",'DATA LXM'!E9,"min",'DATA LXM'!F9,"sec") -> 0h48min54sec | K11: 1
A12: crunchy | C12: =VLOOKUP(A12,'DATA LXM'!$A$35:$B$64,2) -> 637917142 | D12: A PORTEE | E12: 34 | F12: 37 | G12: =ROUNDUP(SQRT((LXM!$L$1-LXM!E12)^2+(LXM!$N$1-LXM!F12)^2),0) -> 138 | H12: =CONCATENATE('DATA LXM'!D10,"h",'DATA LXM'!E10,"min",'DATA LXM'!F10,"sec") -> 4h7min14sec | K12: 1
A13: Cyclope | C13: =VLOOKUP(A13,'DATA LXM'!$A$35:$B$64,2) -> 111173 | E13: 11 | F13: 172 | G13: =ROUNDUP(SQRT((LXM!$L$1-LXM!E13)^2+(LXM!$N$1-LXM!F13)^2),0) -> 6 | H13: =CONCATENATE('DATA LXM'!D11,"h",'DATA LXM'!E11,"min",'DATA LXM'!F11,"sec") -> 0h11min2sec | K13: 1
A14: Domino | C14: =VLOOKUP(A14,'DATA LXM'!$A$35:$B$64,2) -> 892741 | E14: 10 | F14: 173 | G14: =ROUNDUP(SQRT((LXM!$L$1-LXM!E14)^2+(LXM!$N$1-LXM!F14)^2),0) -> 6 | H14: =CONCATENATE('DATA LXM'!D12,"h",'DATA LXM'!E12,"min",'DATA LXM'!F12,"sec") -> 0h12min58sec | K14: 1
A15: Eltornado | C15: =VLOOKUP(A15,'DATA LXM'!$A$35:$B$64,2) -> 119767 | E15: 45 | F15: 20 | G15: =ROUNDUP(SQRT((LXM!$L$1-LXM!E15)^2+(LXM!$N$1-LXM!F15)^2),0) -> 156 | H15: =CONCATENATE('DATA LXM'!D13,"h",'DATA LXM'!E13,"min",'DATA LXM'!F13,"sec") -> 4h33min49sec | K15: 1
A16: Fleau | C16: =VLOOKUP(A16,'DATA LXM'!$A$35:$B$64,2) -> 1034979412 | D16: A PORTEE | E16: 13 | F16: 173 | G16: =ROUNDUP(SQRT((LXM!$L$1-LXM!E16)^2+(LXM!$N$1-LXM!F16)^2),0) -> 3 | H16: =CONCATENATE('DATA LXM'!D14,"h",'DATA LXM'!E14,"min",'DATA LXM'!F14,"sec") -> 0h6min31sec | K16: 1
A17: Formidabilis | C17: =VLOOKUP(A17,'DATA LXM'!$A$35:$B$64,2) -> 215020 | E17: 17 | F17: 176 | G17: =ROUNDUP(SQRT((LXM!$L$1-LXM!E17)^2+(LXM!$N$1-LXM!F17)^2),0) -> 4 | H17: =CONCATENATE('DATA LXM'!D15,"h",'DATA LXM'!E15,"min",'DATA LXM'!F15,"sec") -> 0h6min52sec | K17: 1
A18: Jericho | C18: =VLOOKUP(A18,'DATA LXM'!$A$35:$B$64,2) -> 1839285687 | E18: 13 | F18: 209 | G18: =ROUNDUP(SQRT((LXM!$L$1-LXM!E18)^2+(LXM!$N$1-LXM!F18)^2),0) -> 37 | H18: =CONCATENATE('DATA LXM'!D16,"h",'DATA LXM'!E16,"min",'DATA LXM'!F16,"sec") -> 1h14min46sec | K18: 1
A19: kandide | C19: =VLOOKUP(A19,'DATA LXM'!$A$35:$B$64,2) -> 74951 | E19: 12 | F19: 55 | G19: =ROUNDUP(SQRT((LXM!$L$1-LXM!E19)^2+(LXM!$N$1-LXM!F19)^2),0) -> 119 | H19: =CONCATENATE('DATA LXM'!D17,"h",'DATA LXM'!E17,"min",'DATA LXM'!F17,"sec") -> 3h38min19sec | K19: 1
A20: laika | C20: =VLOOKUP(A20,'DATA LXM'!$A$35:$B$64,2) -> 352856 | E20: 42 | F20: 183 | G20: =ROUNDUP(SQRT((LXM!$L$1-LXM!E20)^2+(LXM!$N$1-LXM!F20)^2),0) -> 28 | H20: =CONCATENATE('DATA LXM'!D18,"h",'DATA LXM'!E18,"min",'DATA LXM'!F18,"sec") -> 0h58min20sec | K20: 1
A21: Matteo37 | C21: =VLOOKUP(A21,'DATA LXM'!$A$35:$B$64,2) -> 1045506653 | D21: A PORTEE | E21: 45 | F21: 169 | G21: =ROUNDUP(SQRT((LXM!$L$1-LXM!E21)^2+(LXM!$N$1-LXM!F21)^2),0) -> 30 | H21: =CONCATENATE('DATA LXM'!D19,"h",'DATA LXM'!E19,"min",'DATA LXM'!F19,"sec") -> 1h1min11sec | K21: 1
A22: maxbo | C22: =VLOOKUP(A22,'DATA LXM'!$A$35:$B$64,2) -> 474073 | E22: 18 | F22: 179 | G22: =ROUNDUP(SQRT((LXM!$L$1-LXM!E22)^2+(LXM!$N$1-LXM!F22)^2),0) -> 7 | H22: =CONCATENATE('DATA LXM'!D20,"h",'DATA LXM'!E20,"min",'DATA LXM'!F20,"sec") -> 0h13min40sec | K22: 1
A23: moontribe | C23: =VLOOKUP(A23,'DATA LXM'!$A$35:$B$64,2) -> 577004 | E23: 37 | F23: 144 | G23: =ROUNDUP(SQRT((LXM!$L$1-LXM!E23)^2+(LXM!$N$1-LXM!F23)^2),0) -> 36 | H23: =CONCATENATE('DATA LXM'!D21,"h",'DATA LXM'!E21,"min",'DATA LXM'!F21,"sec") -> 1h14min9sec | K23: 1
A24: mouche | C24: =VLOOKUP(A24,'DATA LXM'!$A$35:$B$64,2) -> 140617522 | E24: 7 | F24: 245 | G24: =ROUNDUP(SQRT((LXM!$L$1-LXM!E24)^2+(LXM!$N$1-LXM!F24)^2),0) -> 73 | H24: =CONCATENATE('DATA LXM'!D22,"h",'DATA LXM'!E22,"min",'DATA LXM'!F22,"sec") -> 2h22min46sec | K24: 1
A25: Norrin-Radd | C25: =VLOOKUP(A25,'DATA LXM'!$A$35:$B$64,2) -> 32853830 | E25: 33 | F25: 171 | G25: =ROUNDUP(SQRT((LXM!$L$1-LXM!E25)^2+(LXM!$N$1-LXM!F25)^2),0) -> 18 | H25: =CONCATENATE('DATA LXM'!D23,"h",'DATA LXM'!E23,"min",'DATA LXM'!F23,"sec") -> 0h36min24sec | K25: 1
A26: Prend-Ta-Claque | C26: =VLOOKUP(A26,'DATA LXM'!$A$35:$B$64,2) -> 2568004 | E26: 15 | F26: 20 | G26: =ROUNDUP(SQRT((LXM!$L$1-LXM!E26)^2+(LXM!$N$1-LXM!F26)^2),0) -> 154 | H26: =CONCATENATE('DATA LXM'!D24,"h",'DATA LXM'!E24,"min",'DATA LXM'!F24,"sec") -> 4h29min60sec | K26: 1
A27: sergioo | C27: =VLOOKUP(A27,'DATA LXM'!$A$35:$B$64,2) -> 29711962 | E27: 40 | F27: 21 | G27: =ROUNDUP(SQRT((LXM!$L$1-LXM!E27)^2+(LXM!$N$1-LXM!F27)^2),0) -> 154 | H27: =CONCATENATE('DATA LXM'!D25,"h",'DATA LXM'!E25,"min",'DATA LXM'!F25,"sec") -> 4h31min14sec | K27: 1
A28: shub | C28: =VLOOKUP(A28,'DATA LXM'!$A$35:$B$64,2) -> 728876 | E28: 42 | F28: 35 | G28: =ROUNDUP(SQRT((LXM!$L$1-LXM!E28)^2+(LXM!$N$1-LXM!F28)^2),0) -> 141 | H28: =CONCATENATE('DATA LXM'!D26,"h",'DATA LXM'!E26,"min",'DATA LXM'!F26,"sec") -> 4h11min59sec | K28: 1
A29: Slipstream | C29: =VLOOKUP(A29,'DATA LXM'!$A$35:$B$64,2) -> 104115 | E29: 3 | F29: 173 | G29: =ROUNDUP(SQRT((LXM!$L$1-LXM!E29)^2+(LXM!$N$1-LXM!F29)^2),0) -> 13 | H29: =CONCATENATE('DATA LXM'!D27,"h",'DATA LXM'!E27,"min",'DATA LXM'!F27,"sec") -> 0h27min48sec | K29: 1
A30: waylander | C30: =VLOOKUP(A30,'DATA LXM'!$A$35:$B$64,2) -> 145222702 | E30: 16 | F30: 30 | G30: =ROUNDUP(SQRT((LXM!$L$1-LXM!E30)^2+(LXM!$N$1-LXM!F30)^2),0) -> 143 | H30: =CONCATENATE('DATA LXM'!D28,"h",'DATA LXM'!E28,"min",'DATA LXM'!F28,"sec") -> 4h15min43sec | K30: 1
A31: weed | C31: =VLOOKUP(A31,'DATA LXM'!$A$35:$B$64,2) -> 1827888 | E31: 7 | F31: 128 | G31: =ROUNDUP(SQRT((LXM!$L$1-LXM!E31)^2+(LXM!$N$1-LXM!F31)^2),0) -> 46 | H31: =CONCATENATE('DATA LXM'!D29,"h",'DATA LXM'!E29,"min",'DATA LXM'!F29,"sec") -> 1h33min42sec | K31: 1
A32: Zerek | C32: =VLOOKUP(A32,'DATA LXM'!$A$35:$B$64,2) -> 305693 | E32: 9 | F32: 59 | G32: =ROUNDUP(SQRT((LXM!$L$1-LXM!E32)^2+(LXM!$N$1-LXM!F32)^2),0) -> 115 | H32: =CONCATENATE('DATA LXM'!D30,"h",'DATA LXM'!E30,"min",'DATA LXM'!F30,"sec") -> 3h32min17sec | K32: 1

Sheet BES
A1: Dernière MaJ | B1: =TODAY() -> 2013-04-14 | D1: Mon tdc | E1: =LXM!E1 -> 431842364 | G1: VA | H1: =LXM!H1 -> 25 | J1: Pos perso: | K1: x | L1: =LXM!L1 -> 16 | M1: y | N1: =LXM!N1 -> 173
B3: MAP | C3: TDC | D3: A portée ? | E3: x | F3: y | G3: Distance | H3: Temps
A4: agecanonix | C4: =VLOOKUP(A4,'DATA BES'!$A$67:$B$124,2) -> 3461184525 | D4: =IF(AND((C4<=(3*$E$1)),(C4>=(0.5*$E$1))),"A PORTEE"," ") ->  | E4: 12 | F4: 271 | G4: =ROUNDUP(SQRT(($L$1-E4)^2+($N$1-F4)^2),0) -> 99 | H4: =CONCATENATE('DATA BES'!D2,"h",'DATA BES'!E2,"min",'DATA BES'!F2,"sec") -> 3h6min20sec
A5: aubertignac | C5: =VLOOKUP(A5,'DATA BES'!$A$67:$B$124,2) -> 87905571 | D5: =IF(AND((C5<=(3*$E$1)),(C5>=(0.5*$E$1))),"A PORTEE"," ") ->  | E5: 6 | F5: 52 | G5: =ROUNDUP(SQRT(($L$1-E5)^2+($N$1-F5)^2),0) -> 122 | H5: =CONCATENATE('DATA BES'!D3,"h",'DATA BES'!E3,"min",'DATA BES'!F3,"sec") -> 3h43min29sec
A6: Azkanith | C6: =VLOOKUP(A6,'DATA BES'!$A$67:$B$124,2) -> 3500000000 | D6: =IF(AND((C6<=(3*$E$1)),(C6>=(0.5*$E$1))),"A PORTEE"," ") ->  | E6: 28 | F6: 61 | G6: =ROUNDUP(SQRT(($L$1-E6)^2+($N$1-F6)^2),0) -> 113 | H6: =CONCATENATE('DATA BES'!D4,"h",'DATA BES'!E4,"min",'DATA BES'!F4,"sec") -> 3h29min48sec
A7: Bactroban | C7: =VLOOKUP(A7,'DATA BES'!$A$67:$B$124,2) -> 2154874164 | E7: 20 | F7: 115 | G7: 59 | H7: =CONCATENATE('DATA BES'!D5,"h",'DATA BES'!E5,"min",'DATA BES'!F5,"sec") -> 1h56min41sec
A8: ben57 | C8: =VLOOKUP(A8,'DATA BES'!$A$67:$B$124,2) -> 149380852 | E8: 32 | F8: 6 | G8: 168 | H8: =CONCATENATE('DATA BES'!D6,"h",'DATA BES'!E6,"min",'DATA BES'!F6,"sec") -> 4h50min20sec
A9: bib595 | C9: =VLOOKUP(A9,'DATA BES'!$A$67:$B$124,2) -> 2905019 | E9: 12 | F9: 237 | G9: 65 | H9: =CONCATENATE('DATA BES'!D7,"h",'DATA BES'!E7,"min",'DATA BES'!F7,"sec") -> 2h7min39sec
A10: bill | C10: =VLOOKUP(A10,'DATA BES'!$A$67:$B$124,2) -> 54154338 | E10: 19 | F10: 112 | G10: 62 | H10: =CONCATENATE('DATA BES'!D8,"h",'DATA BES'!E8,"min",'DATA BES'!F8,"sec") -> 2h2min5sec
A11: Bruxelles | C11: =VLOOKUP(A11,'DATA BES'!$A$67:$B$124,2) -> 3200000000 | E11: 41 | F11: 56 | G11: 120 | H11: =CONCATENATE('DATA BES'!D9,"h",'DATA BES'!E9,"min",'DATA BES'!F9,"sec") -> 3h40min45sec
A12: Chryom | C12: =VLOOKUP(A12,'DATA BES'!$A$67:$B$124,2) -> 9996200 | E12: 9 | F12: 58 | G12: 116 | H12: =CONCATENATE('DATA BES'!D10,"h",'DATA BES'!E10,"min",'DATA BES'!F10,"sec") -> 3h33min51sec
A13: CroolisVar | C13: =VLOOKUP(A13,'DATA BES'!$A$67:$B$124,2) -> 786759706 | D13: A PORTEE | E13: 43 | F13: 205 | G13: 42 | H13: =CONCATENATE('DATA BES'!D11,"h",'DATA BES'!E11,"min",'DATA BES'!F11,"sec") -> 1h25min58sec
A14: Damping | C14: =VLOOKUP(A14,'DATA BES'!$A$67:$B$124,2) -> 16221345 | E14: 29 | F14: 270 | G14: 98 | H14: =CONCATENATE('DATA BES'!D12,"h",'DATA BES'!E12,"min",'DATA BES'!F12,"sec") -> 3h5min59sec
A15: DrAnts | C15: =VLOOKUP(A15,'DATA BES'!$A$67:$B$124,2) -> 3848814 | E15: 20 | F15: 276 | G15: 104 | H15: =CONCATENATE('DATA BES'!D13,"h",'DATA BES'!E13,"min",'DATA BES'!F13,"sec") -> 3h14min30sec
A16: Drusilla | C16: =VLOOKUP(A16,'DATA BES'!$A$67:$B$124,2) -> 1855225863 | E16: 31 | F16: 23 | G16: 151 | H16: =CONCATENATE('DATA BES'!D14,"h",'DATA BES'!E14,"min",'DATA BES'!F14,"sec") -> 4h26min49sec
A17: EllaVonZedanltha | C17: =VLOOKUP(A17,'DATA BES'!$A$67:$B$124,2) -> 1952804 | E17: 29 | F17: 59 | G17: 115 | H17: =CONCATENATE('DATA BES'!D15,"h",'DATA BES'!E15,"min",'DATA BES'!F15,"sec") -> 3h33min7sec
A18: Flipper1 | C18: =VLOOKUP(A18,'DATA BES'!$A$67:$B$124,2) -> 92127906 | E18: 22 | F18: 69 | G18: 105 | H18: =CONCATENATE('DATA BES'!D16,"h",'DATA BES'!E16,"min",'DATA BES'!F16,"sec") -> 3h16min16sec
A19: Greeny | C19: =VLOOKUP(A19,'DATA BES'!$A$67:$B$124,2) -> 26570199 | E19: 23 | F19: 50 | G19: 124 | H19: =CONCATENATE('DATA BES'!D17,"h",'DATA BES'!E17,"min",'DATA BES'!F17,"sec") -> 3h46min14sec
A20: Gueust | C20: =VLOOKUP(A20,'DATA BES'!$A$67:$B$124,2) -> 1480632393 | E20: 3 | F20: 385 | G20: 213 | H20: =CONCATENATE('DATA BES'!D18,"h",'DATA BES'!E18,"min",'DATA BES'!F18,"sec") -> 5h46min51sec
A21: hador | C21: =VLOOKUP(A21,'DATA BES'!$A$67:$B$124,2) -> 1289178436 | D21: A PORTEE | E21: 27 | F21: 186 | G21: 18 | H21: =CONCATENATE('DATA BES'!D19,"h",'DATA BES'!E19,"min",'DATA BES'!F19,"sec") -> 0h36min13sec
A22: Ishigo | C22: =VLOOKUP(A22,'DATA BES'!$A$67:$B$124,2) -> 757282747 | D22: A PORTEE | E22: 23 | F22: 103 | G22: 71 | H22: =CONCATENATE('DATA BES'!D20,"h",'DATA BES'!E20,"min",'DATA BES'!F20,"sec") -> 2h18min50sec
A23: Lesqual | C23: =VLOOKUP(A23,'DATA BES'!$A$67:$B$124,2) -> 4423829 | E23: 23 | F23: 295 | G23: 123 | H23: =CONCATENATE('DATA BES'!D21,"h",'DATA BES'!E21,"min",'DATA BES'!F21,"sec") -> 3h44min42sec
A24: lipoussou | C24: =VLOOKUP(A24,'DATA BES'!$A$67:$B$124,2) -> 11917308 | E24: 40 | F24: 147 | G24: 36 | H24: =CONCATENATE('DATA BES'!D22,"h",'DATA BES'!E22,"min",'DATA BES'!F22,"sec") -> 1h13min19sec
A25: Lockheed | C25: =VLOOKUP(A25,'DATA BES'!$A$67:$B$124,2) -> 11216156 | E25: 28 | F25: 176 | G25: 13 | H25: =CONCATENATE('DATA BES'!D23,"h",'DATA BES'!E23,"min",'DATA BES'!F23,"sec") -> 0h26min29sec
A26: MagnetO | C26: =VLOOKUP(A26,'DATA BES'!$A$67:$B$124,2) -> 111707 | E26: 26 | F26: 172 | G26: 11 | H26: =CONCATENATE('DATA BES'!D24,"h",'DATA BES'!E24,"min",'DATA BES'!F24,"sec") -> 0h21min35sec
A27: marchombre | C27: =VLOOKUP(A27,'DATA BES'!$A$67:$B$124,2) -> 1650134494 | E27: 16 | F27: 106 | G27: 67 | H27: =CONCATENATE('DATA BES'!D25,"h",'DATA BES'!E25,"min",'DATA BES'!F25,"sec") -> 2h12min50sec
A28: Melissa | C28: =VLOOKUP(A28,'DATA BES'!$A$67:$B$124,2) -> 4325226 | E28: 33 | F28: 316 | G28: 145 | H28: =CONCATENATE('DATA BES'!D26,"h",'DATA BES'!E26,"min",'DATA BES'!F26,"sec") -> 4h17min11sec
A29: MilesGloriosus | C29: =VLOOKUP(A29,'DATA BES'!$A$67:$B$124,2) -> 1229557 | E29: 5 | F29: 94 | G29: 80 | H29: =CONCATENATE('DATA BES'!D27,"h",'DATA BES'!E27,"min",'DATA BES'!F27,"sec") -> 2h35min23sec
A30: miloveam | C30: =VLOOKUP(A30,'DATA BES'!$A$67:$B$124,2) -> 10733921 | E30: 26 | F30: 40 | G30: 134 | H30: =CONCATENATE('DATA BES'!D28,"h",'DATA BES'!E28,"min",'DATA BES'!F28,"sec") -> 4h1min36sec
A31: Mime | C31: =VLOOKUP(A31,'DATA BES'!$A$67:$B$124,2) -> 1741606 | E31: 14 | F31: 128 | G31: 46 | H31: =CONCATENATE('DATA BES'!D29,"h",'DATA BES'!E29,"min",'DATA BES'!F29,"sec") -> 1h32min5sec
A32: Mimic | C32: =VLOOKUP(A32,'DATA BES'!$A$67:$B$124,2) -> 510734725 | D32: A PORTEE | E32: 44 | F32: 173 | G32: 28 | H32: =CONCATENATE('DATA BES'!D30,"h",'DATA BES'!E30,"min",'DATA BES'!F30,"sec") -> 0h58min38sec
A33: Morphy | C33: =VLOOKUP(A33,'DATA BES'!$A$67:$B$124,2) -> 1927950 | E33: 35 | F33: 6 | G33: 169 | H33: =CONCATENATE('DATA BES'!D31,"h",'DATA BES'!E31,"min",'DATA BES'!F31,"sec") -> 4h50min45sec
A34: Myvin | C34: =VLOOKUP(A34,'DATA BES'!$A$67:$B$124,2) -> 1983940382 | E34: 29 | F34: 37 | G34: 137 | H34: =CONCATENATE('DATA BES'!D32,"h",'DATA BES'!E32,"min",'DATA BES'!F32,"sec") -> 4h6min24sec
A35: osman | C35: =VLOOKUP(A35,'DATA BES'!$A$67:$B$124,2) -> 953794 | E35: 19 | F35: 28 | G35: 146 | H35: =CONCATENATE('DATA BES'!D33,"h",'DATA BES'!E33,"min",'DATA BES'!F33,"sec") -> 4h18min39sec
A36: pacpac001 | C36: =VLOOKUP(A36,'DATA BES'!$A$67:$B$124,2) -> 2291704 | E36: 6 | F36: 51 | G36: 123 | H36: =CONCATENATE('DATA BES'!D34,"h",'DATA BES'!E34,"min",'DATA BES'!F34,"sec") -> 3h45min1sec
A37: Panda | C37: =VLOOKUP(A37,'DATA BES'!$A$67:$B$124,2) -> 74522661 | E37: 4 | F37: 35 | G37: 139 | H37: =CONCATENATE('DATA BES'!D35,"h",'DATA BES'!E35,"min",'DATA BES'!F35,"sec") -> 4h9min12sec
A38: pANTSu | C38: =VLOOKUP(A38,'DATA BES'!$A$67:$B$124,2) -> 1909810001 | E38: 29 | F38: 292 | G38: 120 | H38: =CONCATENATE('DATA BES'!D36,"h",'DATA BES'!E36,"min",'DATA BES'!F36,"sec") -> 3h40min51sec
A39: Phenixx | C39: =VLOOKUP(A39,'DATA BES'!$A$67:$B$124,2) -> 908308062 | D39: A PORTEE | E39: 7 | F39: 181 | G39: 13 | H39: =CONCATENATE('DATA BES'!D37,"h",'DATA BES'!E37,"min",'DATA BES'!F37,"sec") -> 0h25min48sec
A40: Pinou | C40: =VLOOKUP(A40,'DATA BES'!$A$67:$B$124,2) -> 7212325 | E40: 43 | F40: 21 | G40: 155 | H40: =CONCATENATE('DATA BES'!D38,"h",'DATA BES'!E38,"min",'DATA BES'!F38,"sec") -> 4h31min56sec
A41: pluginbaby | C41: =VLOOKUP(A41,'DATA BES'!$A$67:$B$124,2) -> 12705822 | E41: 35 | F41: 23 | G41: 152 | H41: =CONCATENATE('DATA BES'!D39,"h",'DATA BES'!E39,"min",'DATA BES'!F39,"sec") -> 4h27min27sec
A42: Quivala | C42: =VLOOKUP(A42,'DATA BES'!$A$67:$B$124,2) -> 9761369 | E42: 44 | F42: 143 | G42: 42 | H42: =CONCATENATE('DATA BES'!D40,"h",'DATA BES'!E40,"min",'DATA BES'!F40,"sec") -> 1h24min21sec
A43: Reex | C43: =VLOOKUP(A43,'DATA BES'!$A$67:$B$124,2) -> 1332809 | E43: 36 | F43: 193 | G43: 29 | H43: =CONCATENATE('DATA BES'!D41,"h",'DATA BES'!E41,"min",'DATA BES'!F41,"sec") -> 0h59min12sec
A44: riblibli | C44: =VLOOKUP(A44,'DATA BES'!$A$67:$B$124,2) -> 194929 | E44: 39 | F44: 25 | G44: 150 | H44: =CONCATENATE('DATA BES'!D42,"h",'DATA BES'!E42,"min",'DATA BES'!F42,"sec") -> 4h25min26sec
A45: Rita | C45: =VLOOKUP(A45,'DATA BES'!$A$67:$B$124,2) -> 616559697 | D45: A PORTEE | E45: 33 | F45: 318 | G45: 146 | H45: =CONCATENATE('DATA BES'!D43,"h",'DATA BES'!E43,"min",'DATA BES'!F43,"sec") -> 4h20min2sec
A46: Rockslide | C46: =VLOOKUP(A46,'DATA BES'!$A$67:$B$124,2) -> 192556364 | E46: 16 | F46: 173 | G46: 0 | H46: =CONCATENATE('DATA BES'!D44,"h",'DATA BES'!E44,"min",'DATA BES'!F44,"sec") -> 0h0min0sec
A47: Rofulus | C47: =VLOOKUP(A47,'DATA BES'!$A$67:$B$124,2) -> 599979 | E47: 13 | F47: 107 | G47: 67 | H47: =CONCATENATE('DATA BES'!D45,"h",'DATA BES'!E45,"min",'DATA BES'!F45,"sec") -> 2h11min9sec
A48: ryuk44 | C48: =VLOOKUP(A48,'DATA BES'!$A$67:$B$124,2) -> 53860510 | E48: 12 | F48: 61 | G48: 113 | H48: =CONCATENATE('DATA BES'!D46,"h",'DATA BES'!E46,"min",'DATA BES'!F46,"sec") -> 3h28min54sec
A49: Seiduna | C49: =VLOOKUP(A49,'DATA BES'!$A$67:$B$124,2) -> 184276 | E49: 10 | F49: 63 | G49: 111 | H49: =CONCATENATE('DATA BES'!D47,"h",'DATA BES'!E47,"min",'DATA BES'!F47,"sec") -> 3h25min53sec
A50: sentih | C50: =VLOOKUP(A50,'DATA BES'!$A$67:$B$124,2) -> 12854744 | E50: 6 | F50: 55 | G50: 119 | H50: =CONCATENATE('DATA BES'!D48,"h",'DATA BES'!E48,"min",'DATA BES'!F48,"sec") -> 3h38min52sec
A51: Shikamaru | C51: =VLOOKUP(A51,'DATA BES'!$A$67:$B$124,2) -> 8133785 | E51: 35 | F51: 169 | G51: 20 | H51: =CONCATENATE('DATA BES'!D49,"h",'DATA BES'!E49,"min",'DATA BES'!F49,"sec") -> 0h41min9sec
A52: spetsnaz | C52: =VLOOKUP(A52,'DATA BES'!$A$67:$B$124,2) -> 3500000000 | E52: 40 | F52: 125 | G52: 54 | H52: =CONCATENATE('DATA BES'!D50,"h",'DATA BES'!E50,"min",'DATA BES'!F50,"sec") -> 1h48min23sec
A53: svanhilde | C53: =VLOOKUP(A53,'DATA BES'!$A$67:$B$124,2) -> 2500000000 | E53: 29 | F53: 124 | G53: 51 | H53: =CONCATENATE('DATA BES'!D51,"h",'DATA BES'!E51,"min",'DATA BES'!F51,"sec") -> 1h42min49sec
A54: Taouret | C54: =VLOOKUP(A54,'DATA BES'!$A$67:$B$124,2) -> 688628575 | D54: A PORTEE | E54: 33 | F54: 237 | G54: 67 | H54: =CONCATENATE('DATA BES'!D52,"h",'DATA BES'!E52,"min",'DATA BES'!F52,"sec") -> 2h11min26sec
A55: TheDentist | C55: =VLOOKUP(A55,'DATA BES'!$A$67:$B$124,2) -> 14367717 | E55: 19 | F55: 53 | G55: 121 | H55: =CONCATENATE('DATA BES'!D53,"h",'DATA BES'!E53,"min",'DATA BES'!F53,"sec") -> 3h41min22sec
A56: Thunderbird | C56: =VLOOKUP(A56,'DATA BES'!$A$67:$B$124,2) -> 2202808830 | E56: 5 | F56: 172 | G56: 12 | H56: =CONCATENATE('DATA BES'!D54,"h",'DATA BES'!E54,"min",'DATA BES'!F54,"sec") -> 0h23min42sec
A57: Tradjette | C57: =VLOOKUP(A57,'DATA BES'!$A$67:$B$124,2) -> 34256999 | E57: 7 | F57: 13 | G57: 161 | H57: =CONCATENATE('DATA BES'!D55,"h",'DATA BES'!E55,"min",'DATA BES'!F55,"sec") -> 4h40min6sec
A58: vinkou | C58: =VLOOKUP(A58,'DATA BES'!$A$67:$B$124,2) -> 2046872542 | E58: 45 | F58: 107 | G58: 73 | H58: =CONCATENATE('DATA BES'!D56,"h",'DATA BES'!E56,"min",'DATA BES'!F56,"sec") -> 2h21min56sec
A59: weaver | C59: =VLOOKUP(A59,'DATA BES'!$A$67:$B$124,2) -> 12457093 | E59: 16 | F59: 13 | G59: 160 | H59: =CONCATENATE('DATA BES'!D57,"h",'DATA BES'!E57,"min",'DATA BES'!F57,"sec") -> 4h39min45sec
A60: Wolverine | C60: =VLOOKUP(A60,'DATA BES'!$A$67:$B$124,2) -> 2500000000 | E60: 6 | F60: 34 | G60: 140 | H60: =CONCATENATE('DATA BES'!D58,"h",'DATA BES'!E58,"min",'DATA BES'!F58,"sec") -> 4h10min25sec

Sheet CC Page LXM
B2: 1 | C2: Alpha -12- | D2: Jericho | E2: 1839285687 | F2: 162 | G2: 283
B3: 2 | C3: Alpha -12- | D3: Matteo37 | E3: 1045506653 | F3: 154 | G3: 290
B4: 3 | C4: Alpha -13- | D4: Fleau | E4: 1034979412 | F4: 167 | G4: 299
B5: 4 | C5: Bravo -11- | D5: crunchy | E5: 637917142 | F5: 174 | G5: 308
B6: 5 | C6: Alpha -01- Officier chaine | D6: Allerdyce | E6: 511366515 | F6: 174 | G6: 321
B7: 6 | C7: Bravo -10- | D7: AB64 | E7: 399362427 | F7: 184 | G7: 318
B8: 7 | C8: Bravo -08- | D8: waylander | E8: 145222702 | F8: 181 | G8: 310
B9: 8 | C9: Alpha -01- | D9: mouche | E9: 140617522 | F9: 171 | G9: 297
B10: 9 | C10: Alpha -01- | D10: _diablo_ | E10: 134710356 | F10: 194 | G10: 314
B11: 10 | C11: Mutante en récupération - Diplomate | D11: _Angel_ | E11: 45216292 | F11: 180 | G11: 320
B12: 11 | C12: Alpha -11- | D12: Norrin-Radd | E12: 32853830 | F12: 184 | G12: 332
B13: 12 | C13: Bravo -07- | D13: sergioo | E13: 29711962 | F13: 182 | G13: 300
B14: 13 | C14: No flood | D14: creamy | E14: 4979692 | F14: 191 | G14: 323
B15: 14 | C15: Alpha -13- | D15: bubulle | E15: 3255300 | F15: 174 | G15: 286
B16: 15 | C16: Bravo -01- | D16: Prend-Ta-Claque | E16: 2568004 | F16: 188 | G16: 323
B17: 16 | C17: Alpha -09- | D17: 4midiable | E17: 1940203 | F17: 173 | G17: 297
B18: 17 | C18: Alpha -05- | D18: weed | E18: 1827888 | F18: 181 | G18: 302
B19: 18 | C19: Alpha -07- | D19: Domino | E19: 892741 | F19: 206 | G19: 331
B20: 19 | C20: Bravo -04- | D20: shub | E20: 728876 | F20: 169 | G20: 306
B21: 20 | C21: Alpha -04- | D21: moontribe | E21: 577004 | F21: 171 | G21: 303
B22: 21 | C22: Alpha -06- | D22: _Wolverine_ | E22: 573345 | F22: 180 | G22: 312
B23: 22 | C23: Alpha -03- | D23: maxbo | E23: 474073 | F23: 177 | G23: 283
B24: 23 | C24: Alpha -06- | D24: laika | E24: 352856 | F24: 183 | G24: 313
B25: 24 | C25: Bravo -03- | D25: Zerek | E25: 305693 | F25: 181 | G25: 307
B26: 25 | C26: Alpha -03- | D26: Formidabilis | E26: 215020 | F26: 173 | G26: 299
B27: 26 | C27: Bravo -02- | D27: ElTornado | E27: 119767 | F27: 166 | G27: 303
B28: 27 | C28: Alpha -03- Chef | D28: Cyclope | E28: 111173 | F28: 187 | G28: 319
B29: 28 | C29: Alpha -01- | D29: Slipstream | E29: 104115 | F29: 179 | G29: 318
B30: 29 | C30: Bravo -02- | D30: kandide | E30: 74951 | F30: 176 | G30: 316
B31: 30 | C31: Recrue | D31: Charles_Francois_Xavier | E31: 405 | F31: 28 | G31: 51

Sheet CC Page BES
B2: 1 | C2: Harvestkiller | D2: Azkanith | E2: 3500000000 | F2: 196 | G2: 315
B3: 2 | C3: Harvestkiller | D3: spetsnaz | E3: 3500000000 | F3: 177 | G3: 313
B4: 3 | C4: Harvestkiller | D4: agecanonix | E4: 3461184525 | F4: 143 | G4: 273
B5: 4 | C5: Harvestkiller | D5: Bruxelles | E5: 3200000000 | F5: 152 | G5: 287
B6: 5 | C6: Harvestkiller | D6: svanhilde | E6: 2500000000 | F6: 181 | G6: 318
B7: 6 | C7: Harvestkiller | D7: Wolverine | E7: 2500000000 | F7: 172 | G7: 280
B8: 7 | C8: Géokiller | D8: Thunderbird | E8: 2202808830 | F8: 183 | G8: 314
B9: 8 | C9: Harvestkiller | D9: Bactroban | E9: 2154874164 | F9: 133 | G9: 256
B10: 9 | C10: Relief Fund | D10: vinkou | E10: 2046872542 | F10: 169 | G10: 304
B11: 10 | C11: Relief Fund | D11: Myvin | E11: 1983940382 | F11: 170 | G11: 311
B12: 11 | C12: Géokiller | D12: pANTSu | E12: 1909810001 | F12: 174 | G12: 304
B13: 12 | C13: Géokiller | D13: Drusilla | E13: 1855225863 | F13: 173 | G13: 313
B14: 13 | C14: Harvestkiller | D14: marchombre | E14: 1650134494 | F14: 180 | G14: 312
B15: 14 | C15: Économe Noir - Géokiller ₪ | D15: Gueust | E15: 1480632393 | F15: 170 | G15: 306
B16: 15 | C16: Harvestkiller | D16: hador | E16: 1289178436 | F16: 180 | G16: 322
B17: 16 | C17: Nomade - sous protection Théocrâte | D17: Phenixx | E17: 908308062 | F17: 191 | G17: 310
B18: 17 | C18: Géokiller | D18: CroolisVar | E18: 786759706 | F18: 173 | G18: 321
B19: 18 | C19: Économe Noir - Géokiller ₪ | D19: Ishigo | E19: 757282747 | F19: 177 | G19: 324
B20: 19 | C20: Gardien Noir - Harvestkiller 🔑 | D20: Taouret | E20: 688628575 | F20: 137 | G20: 245
B21: 20 | C21: Géostratège Noire - Géokiller | D21: Rita | E21: 616559697 | F21: 180 | G21: 309
B22: 21 | C22: Géokiller | D22: Mimic | E22: 510734725 | F22: 176 | G22: 292
B23: 22 | C23: Nomarque Noir - Géokiller ۞ | D23: Rockslide | E23: 192556364 | F23: 183 | G23: 325
B24: 23 | C24: Nomade - sous protection Théocrâte | D24: ben57 | E24: 149380852 | F24: 182 | G24: 312
B25: 24 | C25: Géokiller | D25: Flipper1 | E25: 92127906 | F25: 168 | G25: 313
B26: 25 | C26: Géokiller | D26: aubertignac | E26: 87905571 | F26: 184 | G26: 319
B27: 26 | C27: Géokiller | D27: Panda | E27: 74522661 | F27: 180 | G27: 316
B28: 27 | C28: Géokiller | D28: bill | E28: 54154338 | F28: 190 | G28: 316
B29: 28 | C29: Économe Noir - Géokiller ₪ | D29: ryuk44 | E29: 53860510 | F29: 187 | G29: 307
B30: 29 | C30: Shadowkiller | D30: Tradjette | E30: 34256999 | F30: 185 | G30: 314
B31: 30 | C31: Shadowkiller | D31: Greeny | E31: 26570199 | F31: 171 | G31: 310
B32: 31 | C32: Shadowkiller | D32: Damping | E32: 16221345 | F32: 174 | G32: 305
B33: 32 | C33: Shadowkiller | D33: TheDentist | E33: 14367717 | F33: 170 | G33: 299
B34: 33 | C34: Shadowkiller | D34: sentih | E34: 12854744 | F34: 170 | G34: 304
B35: 34 | C35: Nomade - sous protection Théocrâte | D35: pluginbaby | E35: 12705822 | F35: 179 | G35: 310
B36: 35 | C36: Nomarque Noir - Shadowkiller ۞ | D36: weaver | E36: 12457093 | F36: 190 | G36: 322
B37: 36 | C37: Nomarque Noir - Shadowkiller ۞ | D37: lipoussou | E37: 11917308 | F37: 178 | G37: 310
B38: 37 | C38: Antskiller | D38: Lockheed | E38: 11216156 | F38: 182 | G38: 317
B39: 38 | C39: Harvestkiller | D39: miloveam | E39: 10733921 | F39: 161 | G39: 287
B40: 39 | C40: Shadowkiller | D40: Chryom | E40: 9996200 | F40: 180 | G40: 315
B41: 40 | C41: Antskiller | D41: Quivala | E41: 9761369 | F41: 177 | G41: 311
B42: 41 | C42: Shadowkiller. | D42: Shikamaru | E42: 8133785 | F42: 186 | G42: 315
B43: 42 | C43: Économe Noir - Shadowkiller ₪ | D43: Pinou | E43: 7212325 | F43: 166 | G43: 296
B44: 43 | C44: Vizir Noir - Shadowkiller ۝ | D44: Lesqual | E44: 4423829 | F44: 194 | G44: 320
B45: 44 | C45: Relief Fund | D45: Melissa | E45: 4325226 | F45: 136 | G45: 260
B46: 45 | C46: Pharaon Noir - Antskiller 🐜 | D46: DrAnts | E46: 3848814 | F46: 192 | G46: 313
B47: 46 | C47: Économe Noir - Antskiller ₪ | D47: bib595 | E47: 2905019 | F47: 184 | G47: 320
B48: 47 | C48: Shadowkiller | D48: pacpac001 | E48: 2291704 | F48: 179 | G48: 317
B49: 48 | C49: Antskiller | D49: EllaVonZedanltha | E49: 1952804 | F49: 190 | G49: 317
B50: 49 | C50: Shaman Noir - Enfermé dans sa tente | D50: Morphy | E50: 1927950 | F50: 156 | G50: 265
B51: 50 | C51: Antskiller | D51: Mime | E51: 1741606 | F51: 176 | G51: 303
B52: 51 | C52: Antskiller | D52: Reex | E52: 1332809 | F52: 190 | G52: 324
B53: 52 | C53: Harvestkiller | D53: MilesGloriosus | E53: 1229557 | F53: 190 | G53: 313
B54: 53 | C54: Antskiller | D54: osman | E54: 953794 | F54: 171 | G54: 316
B55: 54 | C55: Antskiller | D55: Rofulus | E55: 599979 | F55: 177 | G55: 307
B56: 55 | C56: Nomade - Aube Grise | D56: riblibli | E56: 194929 | F56: 164 | G56: 283
B57: 56 | C57: Nomarque Noir - Shadowkiller ۞ | D57: Seiduna | E57: 184276 | F57: 173 | G57: 312
B58: 57 | C58: Nomarque Noir - Antskiller ۞ | D58: MagnetO | E58: 111707 | F58: 187 | G58: 315

Sheet FLOOD
C1: HEURE ACTUELLE | D1: =NOW() -> 41378.45886
B3: Choix 1ere cible :
B4: Allerdyce | E4: Rockslide | F4: =B4 -> Allerdyce | H4: Prise | I4: Limite | J4: Precision | M4: Rockslide | N4: =B7 -> _diablo_ | P4: Prise | Q4: Limite | R4: Precision
D5: Initial | E5: =LXM!E1 -> 431842364 | F5: =VLOOKUP(B4,'DATA LXM'!A35:B64,2) -> 511366515 | I5: =IF(AND((F5<=(3*E5)),(F5>=(0.5*E5))),(((E5+F5)/3)+J5),"HORS PORTEE") -> 314403059.7 | J5: 100 | L5: Initial | M5: =E15 -> 691686431.3 | N5: =VLOOKUP(B7,'DATA LXM'!A35:B64,2) -> 134710356 | Q5: =IF(AND((N5<=(3*M5)),(N5>=(0.5*M5))),(((M5+N5)/3)+R5),"HORS PORTEE") -> HORS PORTEE | R5: 100
B6: Choix 2eme cible | G6: - | H6: =IF(($I$5="HORS PORTEE"),0,IF((F5=$I$5),(0.2*F5),IF(((0.8*F5)>$I$5),(0.2*F5),(F5-$I$5)))) -> 102273303 | I6: =H6 -> 102273303 | O6: - | P6: =IF(($Q$5="HORS PORTEE"),0,IF((N5=$Q$5),(0.2*N5),IF(((0.8*N5)>$Q$5),(0.2*N5),(N5-$Q$5)))) -> 0 | Q6: =P6 -> 0
B7: _diablo_ | E7: =E5+H6 -> 534115667 | F7: =F5-H6 -> 409093212 | M7: =M5+P6 -> 691686431.3 | N7: =N5-P6 -> 134710356
G8: - | H8: =IF(($I$5="HORS PORTEE"),0,IF((F7=$I$5),(0.2*F7),IF(((0.8*F7)>$I$5),(0.2*F7),(F7-$I$5)))) -> 81818642.4 | I8: =H8 -> 81818642.4 | O8: - | P8: =IF(($Q$5="HORS PORTEE"),0,IF((N7=$Q$5),(0.2*N7),IF(((0.8*N7)>$Q$5),(0.2*N7),(N7-$Q$5)))) -> 0 | Q8: =P8 -> 0
B9: Choix 3eme cible | E9: =E7+H8 -> 615934309.4 | F9: =F7-H8 -> 327274569.6 | M9: =M7+P8 -> 691686431.3 | N9: =N7-P8 -> 134710356
B10: Fleau | G10: - | H10: =IF((H6<>(F5*0.2)),0,(IF((F9=$I$5),(0.2*F9),IF(((0.8*F9)>$I$5),(0.2*F9),IF((H8=0),0,(F9-$I$5)))))) -> 12871509.93 | I10: 12871509.93 | O10: - | P10: =IF((P6<>(N5*0.2)),0,(IF((N9=$Q$5),(0.2*N9),IF(((0.8*N9)>$Q$5),(0.2*N9),IF((P8=0),0,(N9-$Q$5)))))) -> 0 | Q10: =P10 -> 0
E11: =E9+H10 -> 628805819.3 | F11: =F9-H10 -> 314403059.7 | M11: =M9+P10 -> 691686431.3 | N11: =N9-P10 -> 134710356
B12: Choix 4eme cible | G12: - | H12: =IF((H8<>(F7*0.2)),0,(IF((F11=$I$5),(0.2*F11),IF(((0.8*F11)>$I$5),(0.2*F11),IF((H10=0),0,(F11-$I$5)))))) -> 62880611.93 | I12: 62880611.93 | O12: - | P12: =IF((P8<>(N7*0.2)),0,(IF((N11=$Q$5),(0.2*N11),IF(((0.8*N11)>$Q$5),(0.2*N11),IF((P10=0),0,(N11-$Q$5)))))) -> 0 | Q12: =P12 -> 0
B13: AB64 | E13: =E11+H12 -> 691686431.3 | F13: =F11-H12 -> 251522447.7 | M13: =M11+P12 -> 691686431.3 | N13: =N11-P12 -> 134710356
G14: - | H14: =IF((H10<>(F9*0.2)),0,(IF((F13=$I$5),(0.2*F13),IF(((0.8*F13)>$I$5),(0.2*F13),IF((H12=0),0,(F13-$I$5)))))) -> 0 | I14: 0 | O14: - | P14: =IF((P10<>(N9*0.2)),0,(IF((N13=$Q$5),(0.2*N13),IF(((0.8*N13)>$Q$5),(0.2*N13),IF((P12=0),0,(N13-$Q$5)))))) -> 0 | Q14: =P14 -> 0
B15: Choix 5eme cible | D15: Final | E15: =E13+H14 -> 691686431.3 | F15: =F13-H14 -> 251522447.7 | G15: Durée : | H15: =TIME(VLOOKUP(B4,'DATA COMMON'!A2:F87,4),VLOOKUP(B4,'DATA COMMON'!A2:F87,5),VLOOKUP(B4,'DATA COMMON'!A2:F87,6)) -> 00:15:15 | L15: Final | M15: =M13+P14 -> 691686431.3 | N15: =N13-P14 -> 134710356 | O15: Durée : | P15: =TIME(VLOOKUP(B7,'DATA COMMON'!A2:F87,4),VLOOKUP(B7,'DATA COMMON'!A2:F87,5),VLOOKUP(B7,'DATA COMMON'!A2:F87,6)) -> 00:23:36
B16: Matteo37 | F16: Arrivée : | G16: =$D$1+H15 -> 41378.46945 | N16: Arrivée : | O16: =$D$1+P15 -> 41378.47524
B18: Choix 6eme cible
B19: Allerdyce | E19: Rockslide | F19: =B10 -> Fleau | H19: Prise | I19: Limite | J19: Precision | M19: Rockslide | N19: =B13 -> AB64 | P19: Prise | Q19: Limite | R19: Precision
D20: Initial | E20: =M15 -> 691686431.3 | F20: =VLOOKUP(B10,'DATA LXM'!A35:B64,2) -> 1034979412 | I20: =IF(AND((F20<=(3*E20)),(F20>=(0.5*E20))),(((E20+F20)/3)+J20),"HORS PORTEE") -> 575555381.1 | J20: 100 | L20: Initial | M20: =E30 -> 1266221538 | N20: =VLOOKUP(B13,'DATA LXM'!A35:B64,2) -> 399362427 | Q20: =IF(AND((N20<=(3*M20)),(N20>=(0.5*M20))),(((M20+N20)/3)+R20),"HORS PORTEE") -> HORS PORTEE | R20: 100
G21: - | H21: =IF(($I$20="HORS PORTEE"),0,IF((F20=$I$20),(0.2*F20),IF(((0.8*F20)>$I$20),(0.2*F20),(F20-$I$20)))) -> 206995882.4 | I21: =H21 -> 206995882.4 | O21: - | P21: =IF(($Q$20="HORS PORTEE"),0,IF((N20=$Q$20),(0.2*N20),IF(((0.8*N20)>$Q$20),(0.2*N20),(N20-$Q$20)))) -> 0 | Q21: =P21 -> 0
E22: =E20+H21 -> 898682313.7 | F22: =F20-H21 -> 827983529.6 | M22: =M20+P21 -> 1266221538 | N22: =N20-P21 -> 399362427
G23: - | H23: =IF(($I$20="HORS PORTEE"),0,IF((F22=$I$20),(0.2*F22),IF(((0.8*F22)>$I$20),(0.2*F22),(F22-$I$20)))) -> 165596705.9 | I23: =H23 -> 165596705.9 | O23: - | P23: =IF(($Q$20="HORS PORTEE"),0,IF((N22=$Q$20),(0.2*N22),IF(((0.8*N22)>$Q$20),(0.2*N22),(N22-$Q$20)))) -> 0 | Q23: =P23 -> 0
E24: =E22+H23 -> 1064279020 | F24: =F22-H23 -> 662386823.7 | M24: =M22+P23 -> 1266221538 | N24: =N22-P23 -> 399362427
G25: - | H25: =IF((H21<>(F20*0.2)),0,(IF((F24=$I$20),(0.2*F24),IF(((0.8*F24)>$I$20),(0.2*F24),IF((H23=0),0,(F24-$I$20)))))) -> 86831442.59 | I25: 86831442.59 | O25: - | P25: =IF((P21<>(N20*0.2)),0,(IF((N24=$Q$20),(0.2*N24),IF(((0.8*N24)>$Q$20),(0.2*N24),IF((P23=0),0,(N24-$Q$20)))))) -> 0 | Q25: =P25 -> 0
E26: =E24+H25 -> 1151110462 | F26: =F24-H25 -> 575555381.1 | M26: =M24+P25 -> 1266221538 | N26: =N24-P25 -> 399362427
G27: - | H27: =IF((H23<>(F22*0.2)),0,(IF((F26=$I$20),(0.2*F26),IF(((0.8*F26)>$I$20),(0.2*F26),IF((H25=0),0,(F26-$I$20)))))) -> 115111076.2 | I27: 115111076.2 | O27: - | P27: =IF((P23<>(N22*0.2)),0,(IF((N26=$Q$20),(0.2*N26),IF(((0.8*N26)>$Q$20),(0.2*N26),IF((P25=0),0,(N26-$Q$20)))))) -> 0 | Q27: =P27 -> 0
E28: =E26+H27 -> 1266221538 | F28: =F26-H27 -> 460444304.9 | M28: =M26+P27 -> 1266221538 | N28: =N26-P27 -> 399362427
G29: - | H29: =IF((H25<>(F24*0.2)),0,(IF((F28=$I$20),(0.2*F28),IF(((0.8*F28)>$I$20),(0.2*F28),IF((H27=0),0,(F28-$I$20)))))) -> 0 | I29: 0 | O29: - | P29: =IF((P25<>(N24*0.2)),0,(IF((N28=$Q$20),(0.2*N28),IF(((0.8*N28)>$Q$20),(0.2*N28),IF((P27=0),0,(N28-$Q$20)))))) -> 0 | Q29: =P29 -> 0
D30: Final | E30: =E28+H29 -> 1266221538 | F30: =F28-H29 -> 460444304.9 | G30: Durée : | H30: =TIME(VLOOKUP(B10,'DATA COMMON'!A2:F87,4),VLOOKUP(B10,'DATA COMMON'!A2:F87,5),VLOOKUP(B10,'DATA COMMON'!A2:F87,6)) -> 00:06:31 | L30: Final | M30: =E30 -> 1266221538 | N30: =N28-P29 -> 399362427 | O30: Durée : | P30: =TIME(VLOOKUP(B13,'DATA COMMON'!A2:F87,4),VLOOKUP(B13,'DATA COMMON'!A2:F87,5),VLOOKUP(B13,'DATA COMMON'!A2:F87,6)) -> 04:38:31
F31: Arrivée : | G31: =$D$1+H30 -> 41378.46338 | N31: Arrivée : | O31: =$D$1+P30 -> 41378.65227
E34: Rockslide | F34: =B16 -> Matteo37 | H34: Prise | I34: Limite | J34: Precision | M34: Rockslide | N34: =B19 -> Allerdyce | P34: Prise | Q34: Limite | R34: Precision
D35: Initial | E35: =M30 -> 1266221538 | F35: =VLOOKUP(B16,'DATA LXM'!A35:B64,2) -> 1045506653 | I35: =IF(AND((F35<=(3*E35)),(F35>=(0.5*E35))),(((E35+F35)/3)+J35),"HORS PORTEE") -> 770576163.8 | J35: 100 | L35: Initial | M35: =E45 -> 1695267260 | N35: =VLOOKUP(B19,'DATA LXM'!A35:B64,2) -> 511366515 | Q35: =IF(AND((N35<=(3*M35)),(N35>=(0.5*M35))),(((M35+N35)/3)+R35),"HORS PORTEE") -> HORS PORTEE | R35: 100
G36: - | H36: =IF(($I$35="HORS PORTEE"),0,IF((F35=$I$35),(0.2*F35),IF(((0.8*F35)>$I$35),(0.2*F35),(F35-$I$35)))) -> 209101330.6 | I36: =H36 -> 209101330.6 | O36: - | P36: =IF(($Q$35="HORS PORTEE"),0,IF((N35=$Q$35),(0.2*N35),IF(((0.8*N35)>$Q$35),(0.2*N35),(N35-$Q$35)))) -> 0 | Q36: =P36 -> 0
E37: =E35+H36 -> 1475322869 | F37: =F35-H36 -> 836405322.4 | M37: =M35+P36 -> 1695267260 | N37: =N35-P36 -> 511366515
G38: - | H38: =IF(($I$35="HORS PORTEE"),0,IF((F37=$I$35),(0.2*F37),IF(((0.8*F37)>$I$35),(0.2*F37),(F37-$I$35)))) -> 65829158.6 | I38: =H38 -> 65829158.6 | O38: - | P38: =IF(($Q$35="HORS PORTEE"),0,IF((N37=$Q$35),(0.2*N37),IF(((0.8*N37)>$Q$35),(0.2*N37),(N37-$Q$35)))) -> 0 | Q38: =P38 -> 0
E39: =E37+H38 -> 1541152028 | F39: =F37-H38 -> 770576163.8 | M39: =M37+P38 -> 1695267260 | N39: =N37-P38 -> 511366515
G40: - | H40: =IF((H36<>(F35*0.2)),0,(IF((F39=$I$35),(0.2*F39),IF(((0.8*F39)>$I$35),(0.2*F39),IF((H38=0),0,(F39-$I$35)))))) -> 154115232.8 | I40: 154115232.8 | O40: - | P40: =IF((P36<>(N35*0.2)),0,(IF((N39=$Q$35),(0.2*N39),IF(((0.8*N39)>$Q$35),(0.2*N39),IF((P38=0),0,(N39-$Q$35)))))) -> 0 | Q40: =P40 -> 0
E41: =E39+H40 -> 1695267260 | F41: =F39-H40 -> 616460931 | M41: =M39+P40 -> 1695267260 | N41: =N39-P40 -> 511366515
G42: - | H42: =IF((H38<>(F37*0.2)),0,(IF((F41=$I$35),(0.2*F41),IF(((0.8*F41)>$I$35),(0.2*F41),IF((H40=0),0,(F41-$I$35)))))) -> 0 | I42: 0 | O42: - | P42: =IF((P38<>(N37*0.2)),0,(IF((N41=$Q$35),(0.2*N41),IF(((0.8*N41)>$Q$35),(0.2*N41),IF((P40=0),0,(N41-$Q$35)))))) -> 0 | Q42: =P42 -> 0
E43: =E41+H42 -> 1695267260 | F43: =F41-H42 -> 616460931 | M43: =M41+P42 -> 1695267260 | N43: =N41-P42 -> 511366515
G44: - | H44: =IF((H40<>(F39*0.2)),0,(IF((F43=$I$35),(0.2*F43),IF(((0.8*F43)>$I$35),(0.2*F43),IF((H42=0),0,(F43-$I$35)))))) -> 0 | I44: 0 | O44: - | P44: =IF((P40<>(N39*0.2)),0,(IF((N43=$Q$35),(0.2*N43),IF(((0.8*N43)>$Q$35),(0.2*N43),IF((P42=0),0,(N43-$Q$35)))))) -> 0 | Q44: =P44 -> 0
D45: Final | E45: =E43+H44 -> 1695267260 | F45: =F43-H44 -> 616460931 | G45: Durée : | H45: =TIME(VLOOKUP(B16,'DATA COMMON'!A2:F87,4),VLOOKUP(B16,'DATA COMMON'!A2:F87,5),VLOOKUP(B16,'DATA COMMON'!A2:F87,6)) -> 01:01:11 | L45: Final | M45: =M43+P44 -> 1695267260 | N45: =N43-P44 -> 511366515 | O45: Durée : | P45: =TIME(VLOOKUP(B19,'DATA COMMON'!A2:F87,4),VLOOKUP(B19,'DATA COMMON'!A2:F87,5),VLOOKUP(B19,'DATA COMMON'!A2:F87,6)) -> 00:15:15
F46: Arrivée : | G46: =$D$1+H45 -> 41378.50134 | N46: Arrivée : | O46: =$D$1+P45 -> 41378.46945
B98: Pseudo | C98: Colonne2 | D98: TDC
B99: =IF('DATA LXM'!L31="A PORTEE",'DATA LXM'!M31,"") -> AB64 | D99: =IF('DATA LXM'!L31="A PORTEE",'DATA LXM'!N31,"") -> 399362427
B100: =IF('DATA BES'!L55="A PORTEE",'DATA BES'!M55,"") -> Mimic | D100: =IF('DATA BES'!L55="A PORTEE",'DATA BES'!N55,"") -> 510734725
B101: =IF('DATA LXM'!L27="A PORTEE",'DATA LXM'!M27,"") -> Allerdyce | D101: =IF('DATA LXM'!L27="A PORTEE",'DATA LXM'!N27,"") -> 511366515
B102: =IF('DATA BES'!L57="A PORTEE",'DATA BES'!M57,"") -> Rita | D102: =IF('DATA BES'!L57="A PORTEE",'DATA BES'!N57,"") -> 616559697
B103: =IF('DATA LXM'!L30="A PORTEE",'DATA LXM'!M30,"") -> crunchy | D103: =IF('DATA LXM'!L30="A PORTEE",'DATA LXM'!N30,"") -> 637917142
B104: =IF('DATA BES'!L58="A PORTEE",'DATA BES'!M58,"") -> Taouret | D104: =IF('DATA BES'!L58="A PORTEE",'DATA BES'!N58,"") -> 688628575
B105: =IF('DATA BES'!L54="A PORTEE",'DATA BES'!M54,"") -> Ishigo | D105: =IF('DATA BES'!L54="A PORTEE",'DATA BES'!N54,"") -> 757282747
B106: =IF('DATA BES'!L52="A PORTEE",'DATA BES'!M52,"") -> CroolisVar | D106: =IF('DATA BES'!L52="A PORTEE",'DATA BES'!N52,"") -> 786759706
B107: =IF('DATA BES'!L56="A PORTEE",'DATA BES'!M56,"") -> Phenixx | D107: =IF('DATA BES'!L56="A PORTEE",'DATA BES'!N56,"") -> 908308062
B108: =IF('DATA LXM'!L28="A PORTEE",'DATA LXM'!M28,"") -> Fleau | D108: =IF('DATA LXM'!L28="A PORTEE",'DATA LXM'!N28,"") -> 1034979412
B109: =IF('DATA LXM'!L29="A PORTEE",'DATA LXM'!M29,"") -> Matteo37 | D109: =IF('DATA LXM'!L29="A PORTEE",'DATA LXM'!N29,"") -> 1045506653
B110: =IF('DATA BES'!L53="A PORTEE",'DATA BES'!M53,"") -> hador | D110: =IF('DATA BES'!L53="A PORTEE",'DATA BES'!N53,"") -> 1289178436
B111: =IF('DATA LXM'!L22="A PORTEE",'DATA LXM'!M22,"") ->  | D111: =IF('DATA LXM'!L22="A PORTEE",'DATA LXM'!N22,"") -> 
B112: =IF('DATA LXM'!L23="A PORTEE",'DATA LXM'!M23,"") ->  | D112: =IF('DATA LXM'!L23="A PORTEE",'DATA LXM'!N23,"") -> 
B113: =IF('DATA LXM'!L20="A PORTEE",'DATA LXM'!M20,"") ->  | D113: =IF('DATA LXM'!L20="A PORTEE",'DATA LXM'!N20,"") -> 
B114: =IF('DATA LXM'!L21="A PORTEE",'DATA LXM'!M21,"") ->  | D114: =IF('DATA LXM'!L21="A PORTEE",'DATA LXM'!N21,"") -> 
B115: =IF('DATA LXM'!L26="A PORTEE",'DATA LXM'!M26,"") ->  | D115: =IF('DATA LXM'!L26="A PORTEE",'DATA LXM'!N26,"") -> 
B116: =IF('DATA LXM'!L18="A PORTEE",'DATA LXM'!M18,"") ->  | D116: =IF('DATA LXM'!L18="A PORTEE",'DATA LXM'!N18,"") -> 
B117: =IF('DATA LXM'!L19="A PORTEE",'DATA LXM'!M19,"") ->  | D117: =IF('DATA LXM'!L19="A PORTEE",'DATA LXM'!N19,"") -> 
B118: =IF('DATA LXM'!L24="A PORTEE",'DATA LXM'!M24,"") ->  | D118: =IF('DATA LXM'!L24="A PORTEE",'DATA LXM'!N24,"") -> 
B119: =IF('DATA LXM'!L4="A PORTEE",'DATA LXM'!M4,"") ->  | D119: =IF('DATA LXM'!L4="A PORTEE",'DATA LXM'!N4,"") -> 
B120: =IF('DATA LXM'!L5="A PORTEE",'DATA LXM'!M5,"") ->  | D120: =IF('DATA LXM'!L5="A PORTEE",'DATA LXM'!N5,"") -> 
B121: =IF('DATA LXM'!L6="A PORTEE",'DATA LXM'!M6,"") ->  | D121: =IF('DATA LXM'!L6="A PORTEE",'DATA LXM'!N6,"") -> 
B122: =IF('DATA LXM'!L7="A PORTEE",'DATA LXM'!M7,"") ->  | D122: =IF('DATA LXM'!L7="A PORTEE",'DATA LXM'!N7,"") -> 
B123: =IF('DATA LXM'!L8="A PORTEE",'DATA LXM'!M8,"") ->  | D123: =IF('DATA LXM'!L8="A PORTEE",'DATA LXM'!N8,"") -> 
B124: =IF('DATA LXM'!L9="A PORTEE",'DATA LXM'!M9,"") ->  | D124: =IF('DATA LXM'!L9="A PORTEE",'DATA LXM'!N9,"") -> 
B125: =IF('DATA LXM'!L10="A PORTEE",'DATA LXM'!M10,"") ->  | D125: =IF('DATA LXM'!L10="A PORTEE",'DATA LXM'!N10,"") -> 
B126: =IF('DATA LXM'!L11="A PORTEE",'DATA LXM'!M11,"") ->  | D126: =IF('DATA LXM'!L11="A PORTEE",'DATA LXM'!N11,"") -> 
B127: =IF('DATA LXM'!L12="A PORTEE",'DATA LXM'!M12,"") ->  | D127: =IF('DATA LXM'!L12="A PORTEE",'DATA LXM'!N12,"") -> 
B128: =IF('DATA LXM'!L13="A PORTEE",'DATA LXM'!M13,"") ->  | D128: =IF('DATA LXM'!L13="A PORTEE",'DATA LXM'!N13,"") -> 
B129: =IF('DATA LXM'!L14="A PORTEE",'DATA LXM'!M14,"") ->  | D129: =IF('DATA LXM'!L14="A PORTEE",'DATA LXM'!N14,"") -> 
B130: =IF('DATA LXM'!L15="A PORTEE",'DATA LXM'!M15,"") ->  | D130: =IF('DATA LXM'!L15="A PORTEE",'DATA LXM'!N15,"") -> 
B131: =IF('DATA LXM'!L16="A PORTEE",'DATA LXM'!M16,"") ->  | D131: =IF('DATA LXM'!L16="A PORTEE",'DATA LXM'!N16,"") -> 
B132: =IF('DATA LXM'!L17="A PORTEE",'DATA LXM'!M17,"") ->  | D132: =IF('DATA LXM'!L17="A PORTEE",'DATA LXM'!N17,"") -> 
B133: =IF('DATA BES'!L2="A PORTEE",'DATA BES'!M2,"") ->  | D133: =IF('DATA BES'!L2="A PORTEE",'DATA BES'!N2,"") -> 
B134: =IF('DATA BES'!L3="A PORTEE",'DATA BES'!M3,"") ->  | D134: =IF('DATA BES'!L3="A PORTEE",'DATA BES'!N3,"") -> 
B135: =IF('DATA BES'!L4="A PORTEE",'DATA BES'!M4,"") ->  | D135: =IF('DATA BES'!L4="A PORTEE",'DATA BES'!N4,"") -> 
B136: =IF('DATA BES'!L5="A PORTEE",'DATA BES'!M5,"") ->  | D136: =IF('DATA BES'!L5="A PORTEE",'DATA BES'!N5,"") -> 
B137: =IF('DATA BES'!L6="A PORTEE",'DATA BES'!M6,"") ->  | D137: =IF('DATA BES'!L6="A PORTEE",'DATA BES'!N6,"") -> 
B138: =IF('DATA BES'!L7="A PORTEE",'DATA BES'!M7,"") ->  | D138: =IF('DATA BES'!L7="A PORTEE",'DATA BES'!N7,"") -> 
B139: =IF('DATA BES'!L8="A PORTEE",'DATA BES'!M8,"") ->  | D139: =IF('DATA BES'!L8="A PORTEE",'DATA BES'!N8,"") -> 
B140: =IF('DATA BES'!L9="A PORTEE",'DATA BES'!M9,"") ->  | D140: =IF('DATA BES'!L9="A PORTEE",'DATA BES'!N9,"") -> 
B141: =IF('DATA BES'!L10="A PORTEE",'DATA BES'!M10,"") ->  | D141: =IF('DATA BES'!L10="A PORTEE",'DATA BES'!N10,"") -> 
B142: =IF('DATA BES'!L11="A PORTEE",'DATA BES'!M11,"") ->  | D142: =IF('DATA BES'!L11="A PORTEE",'DATA BES'!N11,"") -> 
B143: =IF('DATA BES'!L12="A PORTEE",'DATA BES'!M12,"") ->  | D143: =IF('DATA BES'!L12="A PORTEE",'DATA BES'!N12,"") -> 
B144: =IF('DATA BES'!L13="A PORTEE",'DATA BES'!M13,"") ->  | D144: =IF('DATA BES'!L13="A PORTEE",'DATA BES'!N13,"") -> 
B145: =IF('DATA BES'!L14="A PORTEE",'DATA BES'!M14,"") ->  | D145: =IF('DATA BES'!L14="A PORTEE",'DATA BES'!N14,"") -> 
B146: =IF('DATA BES'!L15="A PORTEE",'DATA BES'!M15,"") ->  | D146: =IF('DATA BES'!L15="A PORTEE",'DATA BES'!N15,"") -> 
B147: =IF('DATA BES'!L16="A PORTEE",'DATA BES'!M16,"") ->  | D147: =IF('DATA BES'!L16="A PORTEE",'DATA BES'!N16,"") -> 
B148: =IF('DATA BES'!L17="A PORTEE",'DATA BES'!M17,"") ->  | D148: =IF('DATA BES'!L17="A PORTEE",'DATA BES'!N17,"") -> 
B149: =IF('DATA BES'!L18="A PORTEE",'DATA BES'!M18,"") ->  | D149: =IF('DATA BES'!L18="A PORTEE",'DATA BES'!N18,"") -> 
B150: =IF('DATA BES'!L19="A PORTEE",'DATA BES'!M19,"") ->  | D150: =IF('DATA BES'!L19="A PORTEE",'DATA BES'!N19,"") -> 
B151: =IF('DATA BES'!L20="A PORTEE",'DATA BES'!M20,"") ->  | D151: =IF('DATA BES'!L20="A PORTEE",'DATA BES'!N20,"") -> 
B152: =IF('DATA BES'!L21="A PORTEE",'DATA BES'!M21,"") ->  | D152: =IF('DATA BES'!L21="A PORTEE",'DATA BES'!N21,"") -> 
B153: =IF('DATA BES'!L22="A PORTEE",'DATA BES'!M22,"") ->  | D153: =IF('DATA BES'!L22="A PORTEE",'DATA BES'!N22,"") -> 
B154: =IF('DATA BES'!L23="A PORTEE",'DATA BES'!M23,"") ->  | D154: =IF('DATA BES'!L23="A PORTEE",'DATA BES'!N23,"") -> 
B155: =IF('DATA BES'!L24="A PORTEE",'DATA BES'!M24,"") ->  | D155: =IF('DATA BES'!L24="A PORTEE",'DATA BES'!N24,"") -> 
B156: =IF('DATA BES'!L25="A PORTEE",'DATA BES'!M25,"") ->  | D156: =IF('DATA BES'!L25="A PORTEE",'DATA BES'!N25,"") -> 
B157: =IF('DATA BES'!L26="A PORTEE",'DATA BES'!M26,"") ->  | D157: =IF('DATA BES'!L26="A PORTEE",'DATA BES'!N26,"") -> 
B158: =IF('DATA BES'!L27="A PORTEE",'DATA BES'!M27,"") ->  | D158: =IF('DATA BES'!L27="A PORTEE",'DATA BES'!N27,"") -> 
B159: =IF('DATA BES'!L28="A PORTEE",'DATA BES'!M28,"") ->  | D159: =IF('DATA BES'!L28="A PORTEE",'DATA BES'!N28,"") -> 
B160: =IF('DATA BES'!L29="A PORTEE",'DATA BES'!M29,"") ->  | D160: =IF('DATA BES'!L29="A PORTEE",'DATA BES'!N29,"") -> 
B161: =IF('DATA BES'!L30="A PORTEE",'DATA BES'!M30,"") ->  | D161: =IF('DATA BES'!L30="A PORTEE",'DATA BES'!N30,"") -> 
B162: =IF('DATA BES'!L31="A PORTEE",'DATA BES'!M31,"") ->  | D162: =IF('DATA BES'!L31="A PORTEE",'DATA BES'!N31,"") -> 
B163: =IF('DATA BES'!L32="A PORTEE",'DATA BES'!M32,"") ->  | D163: =IF('DATA BES'!L32="A PORTEE",'DATA BES'!N32,"") -> 
B164: =IF('DATA BES'!L33="A PORTEE",'DATA BES'!M33,"") ->  | D164: =IF('DATA BES'!L33="A PORTEE",'DATA BES'!N33,"") -> 
B165: =IF('DATA BES'!L34="A PORTEE",'DATA BES'!M34,"") ->  | D165: =IF('DATA BES'!L34="A PORTEE",'DATA BES'!N34,"") -> 
B166: =IF('DATA BES'!L35="A PORTEE",'DATA BES'!M35,"") ->  | D166: =IF('DATA BES'!L35="A PORTEE",'DATA BES'!N35,"") -> 
B167: =IF('DATA BES'!L36="A PORTEE",'DATA BES'!M36,"") ->  | D167: =IF('DATA BES'!L36="A PORTEE",'DATA BES'!N36,"") -> 
B168: =IF('DATA BES'!L37="A PORTEE",'DATA BES'!M37,"") ->  | D168: =IF('DATA BES'!L37="A PORTEE",'DATA BES'!N37,"") -> 
B169: =IF('DATA BES'!L38="A PORTEE",'DATA BES'!M38,"") ->  | D169: =IF('DATA BES'!L38="A PORTEE",'DATA BES'!N38,"") -> 
B170: =IF('DATA BES'!L39="A PORTEE",'DATA BES'!M39,"") ->  | D170: =IF('DATA BES'!L39="A PORTEE",'DATA BES'!N39,"") -> 
B171: =IF('DATA BES'!L40="A PORTEE",'DATA BES'!M40,"") ->  | D171: =IF('DATA BES'!L40="A PORTEE",'DATA BES'!N40,"") -> 
B172: =IF('DATA BES'!L41="A PORTEE",'DATA BES'!M41,"") ->  | D172: =IF('DATA BES'!L41="A PORTEE",'DATA BES'!N41,"") -> 
B173: =IF('DATA BES'!L42="A PORTEE",'DATA BES'!M42,"") ->  | D173: =IF('DATA BES'!L42="A PORTEE",'DATA BES'!N42,"") -> 
B174: =IF('DATA BES'!L43="A PORTEE",'DATA BES'!M43,"") ->  | D174: =IF('DATA BES'!L43="A PORTEE",'DATA BES'!N43,"") -> 
B175: =IF('DATA BES'!L44="A PORTEE",'DATA BES'!M44,"") ->  | D175: =IF('DATA BES'!L44="A PORTEE",'DATA BES'!N44,"") -> 
B176: =IF('DATA BES'!L45="A PORTEE",'DATA BES'!M45,"") ->  | D176: =IF('DATA BES'!L45="A PORTEE",'DATA BES'!N45,"") -> 
B177: =IF('DATA BES'!L46="A PORTEE",'DATA BES'!M46,"") ->  | D177: =IF('DATA BES'!L46="A PORTEE",'DATA BES'!N46,"") -> 
B178: =IF('DATA BES'!L47="A PORTEE",'DATA BES'!M47,"") ->  | D178: =IF('DATA BES'!L47="A PORTEE",'DATA BES'!N47,"") -> 
B179: =IF('DATA BES'!L48="A PORTEE",'DATA BES'!M48,"") ->  | D179: =IF('DATA BES'!L48="A PORTEE",'DATA BES'!N48,"") -> 
B180: =IF('DATA BES'!L49="A PORTEE",'DATA BES'!M49,"") ->  | D180: =IF('DATA BES'!L49="A PORTEE",'DATA BES'!N49,"") -> 
B181: =IF('DATA BES'!L50="A PORTEE",'DATA BES'!M50,"") ->  | D181: =IF('DATA BES'!L50="A PORTEE",'DATA BES'!N50,"") -> 
B182: =IF('DATA BES'!L51="A PORTEE",'DATA BES'!M51,"") ->  | D182: =IF('DATA BES'!L51="A PORTEE",'DATA BES'!N51,"") -> 
B183: =IF('DATA BES'!L59="A PORTEE",'DATA BES'!M59,"") ->  | D183: =IF('DATA BES'!L59="A PORTEE",'DATA BES'!N59,"") -> 
B184: =IF('DATA BES'!L60="A PORTEE",'DATA BES'!M60,"") ->  | D184: =IF('DATA BES'!L60="A PORTEE",'DATA BES'!N60,"") -> 
B185: =IF('DATA BES'!L61="A PORTEE",'DATA BES'!M61,"") ->  | D185: =IF('DATA BES'!L61="A PORTEE",'DATA BES'!N61,"") -> 
B186: =IF('DATA BES'!L62="A PORTEE",'DATA BES'!M62,"") ->  | D186: =IF('DATA BES'!L62="A PORTEE",'DATA BES'!N62,"") -> 

Sheet TRAQUE
D1: Marge de lancement | F1: Temps loge ennemie | J1: Calcul de l'heure si absence de RC
B2: Choisir un LXM | C2: Heure dernier RC | D2: minutes | E2: secondes | F2: minutes | G2: secondes | H2: VA | O2: Quantité sur sonde | P2: Jsn | Q2: Sn | R2: Ne | S2: Js | T2: S | U2: C | V2: Ce | W2: A | X2: Ae | Y2: Se | Z2: Tk | AA2: Tke | AB2: Tu | AC2: Tue | AD2: Temps Total
B3: Allerdyce | C3: 17h30 | D3: 1 | E3: 30 | F3: 1 | H3: =VLOOKUP(B3,'DATA TRAQUE'!B2:D30,3) -> 24 | J3: Heure de la sonde | K3: Nombre d'evo de tdp | L3: Soit Tdp Tueuse | P3: 15356 | Q3: 0 | R3: 0 | S3: 0 | T3: 0 | U3: 0 | V3: 0 | W3: 0 | X3: 0 | Y3: 0 | Z3: 4568 | AA3: 25 | AB3: 0 | AC3: 0
J4: 17h40 | K4: 85 | L4: ='DATA TRAQUE'!Q14*0.9^K4 -> 0.3534792014 | O4: Temps correspondant | P4: =TIME('DATA TRAQUE'!P19,'DATA TRAQUE'!Q19,'DATA TRAQUE'!R19) -> 00:09:55 | Q4: =TIME('DATA TRAQUE'!P20,'DATA TRAQUE'!Q20,'DATA TRAQUE'!R20) -> 00:00:00 | R4: =TIME('DATA TRAQUE'!P21,'DATA TRAQUE'!Q21,'DATA TRAQUE'!R21) -> 00:00:00 | S4: =TIME('DATA TRAQUE'!P22,'DATA TRAQUE'!Q22,'DATA TRAQUE'!R22) -> 00:00:00 | T4: =TIME('DATA TRAQUE'!P23,'DATA TRAQUE'!Q23,'DATA TRAQUE'!R23) -> 00:00:00 | U4: =TIME('DATA TRAQUE'!P24,'DATA TRAQUE'!Q24,'DATA TRAQUE'!R24) -> 00:00:00 | V4: =TIME('DATA TRAQUE'!P25,'DATA TRAQUE'!Q25,'DATA TRAQUE'!R25) -> 00:00:00 | W4: =TIME('DATA TRAQUE'!P26,'DATA TRAQUE'!Q26,'DATA TRAQUE'!R26) -> 00:00:00 | X4: =TIME('DATA TRAQUE'!P27,'DATA TRAQUE'!Q27,'DATA TRAQUE'!R27) -> 00:00:00 | Y4: =TIME('DATA TRAQUE'!P28,'DATA TRAQUE'!Q28,'DATA TRAQUE'!R28) -> 00:00:00 | Z4: =TIME('DATA TRAQUE'!P29,'DATA TRAQUE'!Q29,'DATA TRAQUE'!R29) -> 00:18:17 | AA4: =TIME('DATA TRAQUE'!P30,'DATA TRAQUE'!Q30,'DATA TRAQUE'!R30) -> 00:00:06 | AB4: =TIME('DATA TRAQUE'!P31,'DATA TRAQUE'!Q31,'DATA TRAQUE'!R31) -> 00:00:00 | AC4: =TIME('DATA TRAQUE'!P32,'DATA TRAQUE'!Q32,'DATA TRAQUE'!R32) -> 00:00:00 | AD4: ='DATA TRAQUE'!P34 -> 00:28:18
B5: TDC | C5: x | D5: y | J5: Heure de départ
B6: =VLOOKUP(B3,'DATA TRAQUE'!B2:D30,2) -> 511366515 | C6: =VLOOKUP(B3,'DATA TRAQUE'!B2:F30,4) -> 9 | D6: =VLOOKUP(B3,'DATA TRAQUE'!B2:F30,5) -> 172 | J6: ='DATA TRAQUE'!M6-'DATA TRAQUE'!P34 -> 17:11:42
G8: DOME | I8: LOGE
B9: Joueur | C9: TDC | D9: Distance | E9: Temps | F9: A portée ? | G9: Heure d'arrivée | H9: Lancer à partir de | I9: Heure d'arrivée2 | J9: Lancer à partir de 2
B10: ='DATA TRAQUE'!B41 -> _Angel_ | C10: ='DATA TRAQUE'!C41 -> 45216292 | D10: =SQRT(($C$6-'DATA TRAQUE'!D41)^2+(TRAQUE!$D$6-'DATA TRAQUE'!E41)^2) -> 31.01612484 | E10: =CONCATENATE('DATA TRAQUE'!G41,"h",'DATA TRAQUE'!H41,"min",'DATA TRAQUE'!I41,"s") -> 1h11min51s | F10: =IF(AND((C10<=(3*$B$6)),(C10>=(0.5*$B$6))),"A PORTEE"," ") ->  | G10: =IF(F10="A PORTEE",'DATA TRAQUE'!$M$2+TIME(0,$D$3,$E$3)+TIME('DATA TRAQUE'!G41,'DATA TRAQUE'!H41,'DATA TRAQUE'!I41)," ") ->  | H10: =IF(F10="A PORTEE",G10-VLOOKUP($B$3,'DATA TRAQUE'!$B$41:$L$126,11),"") ->  | I10: =IF(F10="A PORTEE",'DATA TRAQUE'!$M$2+TIME(0,$D$3,$E$3)+2*TIME('DATA TRAQUE'!G41,'DATA TRAQUE'!H41,'DATA TRAQUE'!I41)+TIME(0,$F$3,$G$3)," ") ->  | J10: =IF(F10="A PORTEE",I10-VLOOKUP($B$3,'DATA TRAQUE'!$B$41:$L$126,11),"") -> 
B11: ='DATA TRAQUE'!B42 -> _diablo_ | C11: ='DATA TRAQUE'!C42 -> 134710356 | D11: =SQRT(($C$6-'DATA TRAQUE'!D42)^2+(TRAQUE!$D$6-'DATA TRAQUE'!E42)^2) -> 4.123105626 | E11: =CONCATENATE('DATA TRAQUE'!G42,"h",'DATA TRAQUE'!H42,"min",'DATA TRAQUE'!I42,"s") -> 0h9min56s | G11: =IF(F11="A PORTEE",'DATA TRAQUE'!$M$2+TIME(0,$D$3,$E$3)+TIME('DATA TRAQUE'!G42,'DATA TRAQUE'!H42,'DATA TRAQUE'!I42)," ") ->  | H11: =IF(F11="A PORTEE",G11-VLOOKUP($B$3,'DATA TRAQUE'!$B$41:$L$126,11),"") ->  | I11: =IF(F11="A PORTEE",'DATA TRAQUE'!$M$2+TIME(0,$D$3,$E$3)+2*TIME('DATA TRAQUE'!G42,'DATA TRAQUE'!H42,'DATA TRAQUE'!I42)+TIME(0,$F$3,$G$3)," ") ->  | J11: =IF(F11="A PORTEE",I11-VLOOKUP($B$3,'DATA TRAQUE'!$B$41:$L$126,11),"") -> 
B12: ='DATA TRAQUE'!B43 -> _Wolverine_ | C12: ='DATA TRAQUE'!C43 -> 573345 | D12: =SQRT(($C$6-'DATA TRAQUE'!D43)^2+(TRAQUE!$D$6-'DATA TRAQUE'!E43)^2) -> 27.01851217 | E12: =CONCATENATE('DATA TRAQUE'!G43,"h",'DATA TRAQUE'!H43,"min",'DATA TRAQUE'!I43,"s") -> 1h2min57s | G12: =IF(F12="A PORTEE",'DATA TRAQUE'!$M$2+TIME(0,$D$3,$E$3)+TIME('DATA TRAQUE'!G43,'DATA TRAQUE'!H43,'DATA TRAQUE'!I43)," ") ->  | H12: =IF(F12="A PORTEE",G12-VLOOKUP($B$3,'DATA TRAQUE'!$B$41:$L$126,11),"") ->  | I12: =IF(F12="A PORTEE",'DATA TRAQUE'!$M$2+TIME(0,$D$3,$E$3)+2*TIME('DATA TRAQUE'!G43,'DATA TRAQUE'!H43,'DATA TRAQUE'!I43)+TIME(0,$F$3,$G$3)," ") ->  | J12: =IF(F12="A PORTEE",I12-VLOOKUP($B$3,'DATA TRAQUE'!$B$41:$L$126,11),"") -> 
B13: ='DATA TRAQUE'!B44 -> 4midiable | C13: ='DATA TRAQUE'!C44 -> 1940203 | D13: =SQRT(($C$6-'DATA TRAQUE'!D44)^2+(TRAQUE!$D$6-'DATA TRAQUE'!E44)^2) -> 32.89376841 | E13: =CONCATENATE('DATA TRAQUE'!G44,"h",'DATA TRAQUE'!H44,"min",'DATA TRAQUE'!I44,"s") -> 1h15min60s | G13: =IF(F13="A PORTEE",'DATA TRAQUE'!$M$2+TIME(0,$D$3,$E$3)+TIME('DATA TRAQUE'!G44,'DATA TRAQUE'!H44,'DATA TRAQUE'!I44)," ") ->  | H13: =IF(F13="A PORTEE",G13-VLOOKUP($B$3,'DATA TRAQUE'!$B$41:$L$126,11),"") ->  | I13: =IF(F13="A PORTEE",'DATA TRAQUE'!$M$2+TIME(0,$D$3,$E$3)+2*TIME('DATA TRAQUE'!G44,'DATA TRAQUE'!H44,'DATA TRAQUE'!I44)+TIME(0,$F$3,$G$3)," ") ->  | J13: =IF(F13="A PORTEE",I13-VLOOKUP($B$3,'DATA TRAQUE'!$B$41:$L$126,11),"") -> 
B14: ='DATA TRAQUE'!B45 -> AB64 | C14: ='DATA TRAQUE'!C45 -> 399362427 | D14: =SQRT(($C$6-'DATA TRAQUE'!D45)^2+(TRAQUE!$D$6-'DATA TRAQUE'!E45)^2) -> 158.533908 | E14: =CONCATENATE('DATA TRAQUE'!G45,"h",'DATA TRAQUE'!H45,"min",'DATA TRAQUE'!I45,"s") -> 5h8min34s | F14: A PORTEE | G14: =IF(F14="A PORTEE",'DATA TRAQUE'!$M$2+TIME(0,$D$3,$E$3)+TIME('DATA TRAQUE'!G45,'DATA TRAQUE'!H45,'DATA TRAQUE'!I45)," ") -> 22:40:04 | H14: =IF(F14="A PORTEE",G14-VLOOKUP($B$3,'DATA TRAQUE'!$B$41:$L$126,11),"") -> 22:24:49 | I14: =IF(F14="A PORTEE",'DATA TRAQUE'!$M$2+TIME(0,$D$3,$E$3)+2*TIME('DATA TRAQUE'!G45,'DATA TRAQUE'!H45,'DATA TRAQUE'!I45)+TIME(0,$F$3,$G$3)," ") -> 1.159467593 | J14: =IF(F14="A PORTEE",I14-VLOOKUP($B$3,'DATA TRAQUE'!$B$41:$L$126,11),"") -> 1.148877315
B15: ='DATA TRAQUE'!B70 -> agecanonix | C15: ='DATA TRAQUE'!C70 -> 3461184525 | D15: =SQRT(($C$6-'DATA TRAQUE'!D70)^2+(TRAQUE!$D$6-'DATA TRAQUE'!E70)^2) -> 99.04544412 | E15: =CONCATENATE('DATA TRAQUE'!G70,"h",'DATA TRAQUE'!H70,"min",'DATA TRAQUE'!I70,"s") -> 3h28min48s | G15: =IF(F15="A PORTEE",'DATA TRAQUE'!$M$2+TIME(0,$D$3,$E$3)+TIME('DATA TRAQUE'!G70,'DATA TRAQUE'!H70,'DATA TRAQUE'!I70)," ") ->  | H15: =IF(F15="A PORTEE",G15-VLOOKUP($B$3,'DATA TRAQUE'!$B$41:$L$126,11),"") ->  | I15: =IF(F15="A PORTEE",'DATA TRAQUE'!$M$2+TIME(0,$D$3,$E$3)+2*TIME('DATA TRAQUE'!G46,'DATA TRAQUE'!H46,'DATA TRAQUE'!I46)+TIME(0,$F$3,$G$3)," ") ->  | J15: =IF(F15="A PORTEE",I15-VLOOKUP($B$3,'DATA TRAQUE'!$B$41:$L$126,11),"") -> 
B16: ='DATA TRAQUE'!B46 -> Allerdyce | C16: ='DATA TRAQUE'!C46 -> 511366515 | D16: =SQRT(($C$6-'DATA TRAQUE'!D46)^2+(TRAQUE!$D$6-'DATA TRAQUE'!E46)^2) -> 0 | E16: =CONCATENATE('DATA TRAQUE'!G46,"h",'DATA TRAQUE'!H46,"min",'DATA TRAQUE'!I46,"s") -> 0h0min0s | F16: A PORTEE | G16: =IF(F16="A PORTEE",'DATA TRAQUE'!$M$2+TIME(0,$D$3,$E$3)+TIME('DATA TRAQUE'!G46,'DATA TRAQUE'!H46,'DATA TRAQUE'!I46)," ") -> 17:31:30 | H16: =IF(F16="A PORTEE",G16-VLOOKUP($B$3,'DATA TRAQUE'!$B$41:$L$126,11),"") -> 17:16:15 | I16: =IF(F16="A PORTEE",'DATA TRAQUE'!$M$2+TIME(0,$D$3,$E$3)+2*TIME('DATA TRAQUE'!G47,'DATA TRAQUE'!H47,'DATA TRAQUE'!I47)+TIME(0,$F$3,$G$3)," ") -> 21:31:34 | J16: =IF(F16="A PORTEE",I16-VLOOKUP($B$3,'DATA TRAQUE'!$B$41:$L$126,11),"") -> 21:16:19
B17: ='DATA TRAQUE'!B71 -> aubertignac | C17: ='DATA TRAQUE'!C71 -> 87905571 | D17: =SQRT(($C$6-'DATA TRAQUE'!D71)^2+(TRAQUE!$D$6-'DATA TRAQUE'!E71)^2) -> 120.0374941 | E17: =CONCATENATE('DATA TRAQUE'!G71,"h",'DATA TRAQUE'!H71,"min",'DATA TRAQUE'!I71,"s") -> 4h5min57s | G17: =IF(F17="A PORTEE",'DATA TRAQUE'!$M$2+TIME(0,$D$3,$E$3)+TIME('DATA TRAQUE'!G71,'DATA TRAQUE'!H71,'DATA TRAQUE'!I71)," ") ->  | H17: =IF(F17="A PORTEE",G17-VLOOKUP($B$3,'DATA TRAQUE'!$B$41:$L$126,11),"") ->  | I17: =IF(F17="A PORTEE",'DATA TRAQUE'!$M$2+TIME(0,$D$3,$E$3)+2*TIME('DATA TRAQUE'!G48,'DATA TRAQUE'!H48,'DATA TRAQUE'!I48)+TIME(0,$F$3,$G$3)," ") ->  | J17: =IF(F17="A PORTEE",I17-VLOOKUP($B$3,'DATA TRAQUE'!$B$41:$L$126,11),"") -> 
B18: ='DATA TRAQUE'!B72 -> Azkanith | C18: ='DATA TRAQUE'!C72 -> 3500000000 | D18: =SQRT(($C$6-'DATA TRAQUE'!D72)^2+(TRAQUE!$D$6-'DATA TRAQUE'!E72)^2) -> 112.6143863 | E18: =CONCATENATE('DATA TRAQUE'!G72,"h",'DATA TRAQUE'!H72,"min",'DATA TRAQUE'!I72,"s") -> 3h53min4s | G18: =IF(F18="A PORTEE",'DATA TRAQUE'!$M$2+TIME(0,$D$3,$E$3)+TIME('DATA TRAQUE'!G72,'DATA TRAQUE'!H72,'DATA TRAQUE'!I72)," ") ->  | H18: =IF(F18="A PORTEE",G18-VLOOKUP($B$3,'DATA TRAQUE'!$B$41:$L$126,11),"") ->  | I18: =IF(F18="A PORTEE",'DATA TRAQUE'!$M$2+TIME(0,$D$3,$E$3)+2*TIME('DATA TRAQUE'!G49,'DATA TRAQUE'!H49,'DATA TRAQUE'!I49)+TIME(0,$F$3,$G$3)," ") ->  | J18: =IF(F18="A PORTEE",I18-VLOOKUP($B$3,'DATA TRAQUE'!$B$41:$L$126,11),"") -> 
B19: ='DATA TRAQUE'!B73 -> Bactroban | C19: ='DATA TRAQUE'!C73 -> 2154874164 | D19: =SQRT(($C$6-'DATA TRAQUE'!D73)^2+(TRAQUE!$D$6-'DATA TRAQUE'!E73)^2) -> 58.05170109 | E19: =CONCATENATE('DATA TRAQUE'!G73,"h",'DATA TRAQUE'!H73,"min",'DATA TRAQUE'!I73,"s") -> 2h9min29s | G19: =IF(F19="A PORTEE",'DATA TRAQUE'!$M$2+TIME(0,$D$3,$E$3)+TIME('DATA TRAQUE'!G73,'DATA TRAQUE'!H73,'DATA TRAQUE'!I73)," ") ->  | H19: =IF(F19="A PORTEE",G19-VLOOKUP($B$3,'DATA TRAQUE'!$B$41:$L$126,11),"") ->  | I19: =IF(F19="A PORTEE",'DATA TRAQUE'!$M$2+TIME(0,$D$3,$E$3)+2*TIME('DATA TRAQUE'!G50,'DATA TRAQUE'!H50,'DATA TRAQUE'!I50)+TIME(0,$F$3,$G$3)," ") ->  | J19: =IF(F19="A PORTEE",I19-VLOOKUP($B$3,'DATA TRAQUE'!$B$41:$L$126,11),"") -> 
B20: ='DATA TRAQUE'!B74 -> ben57 | C20: ='DATA TRAQUE'!C74 -> 149380852 | D20: =SQRT(($C$6-'DATA TRAQUE'!D74)^2+(TRAQUE!$D$6-'DATA TRAQUE'!E74)^2) -> 167.5857989 | E20: =CONCATENATE('DATA TRAQUE'!G74,"h",'DATA TRAQUE'!H74,"min",'DATA TRAQUE'!I74,"s") -> 5h22min19s | G20: =IF(F20="A PORTEE",'DATA TRAQUE'!$M$2+TIME(0,$D$3,$E$3)+TIME('DATA TRAQUE'!G74,'DATA TRAQUE'!H74,'DATA TRAQUE'!I74)," ") ->  | H20: =IF(F20="A PORTEE",G20-VLOOKUP($B$3,'DATA TRAQUE'!$B$41:$L$126,11),"") ->  | I20: =IF(F20="A PORTEE",'DATA TRAQUE'!$M$2+TIME(0,$D$3,$E$3)+2*TIME('DATA TRAQUE'!G51,'DATA TRAQUE'!H51,'DATA TRAQUE'!I51)+TIME(0,$F$3,$G$3)," ") ->  | J20: =IF(F20="A PORTEE",I20-VLOOKUP($B$3,'DATA TRAQUE'!$B$41:$L$126,11),"") -> 
B21: ='DATA TRAQUE'!B75 -> bib595 | C21: ='DATA TRAQUE'!C75 -> 2905019 | D21: =SQRT(($C$6-'DATA TRAQUE'!D75)^2+(TRAQUE!$D$6-'DATA TRAQUE'!E75)^2) -> 65.06919394 | E21: =CONCATENATE('DATA TRAQUE'!G75,"h",'DATA TRAQUE'!H75,"min",'DATA TRAQUE'!I75,"s") -> 2h23min43s | G21: =IF(F21="A PORTEE",'DATA TRAQUE'!$M$2+TIME(0,$D$3,$E$3)+TIME('DATA TRAQUE'!G75,'DATA TRAQUE'!H75,'DATA TRAQUE'!I75)," ") ->  | H21: =IF(F21="A PORTEE",G21-VLOOKUP($B$3,'DATA TRAQUE'!$B$41:$L$126,11),"") ->  | I21: =IF(F21="A PORTEE",'DATA TRAQUE'!$M$2+TIME(0,$D$3,$E$3)+2*TIME('DATA TRAQUE'!G52,'DATA TRAQUE'!H52,'DATA TRAQUE'!I52)+TIME(0,$F$3,$G$3)," ") ->  | J21: =IF(F21="A PORTEE",I21-VLOOKUP($B$3,'DATA TRAQUE'!$B$41:$L$126,11),"") -> 
B22: ='DATA TRAQUE'!B76 -> bill | C22: ='DATA TRAQUE'!C76 -> 54154338 | D22: =SQRT(($C$6-'DATA TRAQUE'!D76)^2+(TRAQUE!$D$6-'DATA TRAQUE'!E76)^2) -> 60.8276253 | E22: =CONCATENATE('DATA TRAQUE'!G76,"h",'DATA TRAQUE'!H76,"min",'DATA TRAQUE'!I76,"s") -> 2h15min9s | G22: =IF(F22="A PORTEE",'DATA TRAQUE'!$M$2+TIME(0,$D$3,$E$3)+TIME('DATA TRAQUE'!G76,'DATA TRAQUE'!H76,'DATA TRAQUE'!I76)," ") ->  | H22: =IF(F22="A PORTEE",G22-VLOOKUP($B$3,'DATA TRAQUE'!$B$41:$L$126,11),"") ->  | I22: =IF(F22="A PORTEE",'DATA TRAQUE'!$M$2+TIME(0,$D$3,$E$3)+2*TIME('DATA TRAQUE'!G53,'DATA TRAQUE'!H53,'DATA TRAQUE'!I53)+TIME(0,$F$3,$G$3)," ") ->  | J22: =IF(F22="A PORTEE",I22-VLOOKUP($B$3,'DATA TRAQUE'!$B$41:$L$126,11),"") -> 
B23: ='DATA TRAQUE'!B77 -> Bruxelles | C23: ='DATA TRAQUE'!C77 -> 3200000000 | D23: =SQRT(($C$6-'DATA TRAQUE'!D77)^2+(TRAQUE!$D$6-'DATA TRAQUE'!E77)^2) -> 120.3328717 | E23: =CONCATENATE('DATA TRAQUE'!G77,"h",'DATA TRAQUE'!H77,"min",'DATA TRAQUE'!I77,"s") -> 4h6min28s | G23: =IF(F23="A PORTEE",'DATA TRAQUE'!$M$2+TIME(0,$D$3,$E$3)+TIME('DATA TRAQUE'!G77,'DATA TRAQUE'!H77,'DATA TRAQUE'!I77)," ") ->  | H23: =IF(F23="A PORTEE",G23-VLOOKUP($B$3,'DATA TRAQUE'!$B$41:$L$126,11),"") ->  | I23: =IF(F23="A PORTEE",'DATA TRAQUE'!$M$2+TIME(0,$D$3,$E$3)+2*TIME('DATA TRAQUE'!G54,'DATA TRAQUE'!H54,'DATA TRAQUE'!I54)+TIME(0,$F$3,$G$3)," ") ->  | J23: =IF(F23="A PORTEE",I23-VLOOKUP($B$3,'DATA TRAQUE'!$B$41:$L$126,11),"") -> 
B24: ='DATA TRAQUE'!B47 -> bubulle | C24: ='DATA TRAQUE'!C47 -> 3255300 | D24: =SQRT(($C$6-'DATA TRAQUE'!D47)^2+(TRAQUE!$D$6-'DATA TRAQUE'!E47)^2) -> 53.23532662 | E24: =CONCATENATE('DATA TRAQUE'!G47,"h",'DATA TRAQUE'!H47,"min",'DATA TRAQUE'!I47,"s") -> 1h59min32s | G24: =IF(F24="A PORTEE",'DATA TRAQUE'!$M$2+TIME(0,$D$3,$E$3)+TIME('DATA TRAQUE'!G47,'DATA TRAQUE'!H47,'DATA TRAQUE'!I47)," ") ->  | H24: =IF(F24="A PORTEE",G24-VLOOKUP($B$3,'DATA TRAQUE'!$B$41:$L$126,11),"") ->  | I24: =IF(F24="A PORTEE",'DATA TRAQUE'!$M$2+TIME(0,$D$3,$E$3)+2*TIME('DATA TRAQUE'!G55,'DATA TRAQUE'!H55,'DATA TRAQUE'!I55)+TIME(0,$F$3,$G$3)," ") ->  | J24: =IF(F24="A PORTEE",I24-VLOOKUP($B$3,'DATA TRAQUE'!$B$41:$L$126,11),"") -> 
B25: ='DATA TRAQUE'!B78 -> Chryom | C25: ='DATA TRAQUE'!C78 -> 9996200 | D25: =SQRT(($C$6-'DATA TRAQUE'!D78)^2+(TRAQUE!$D$6-'DATA TRAQUE'!E78)^2) -> 114 | E25: =CONCATENATE('DATA TRAQUE'!G78,"h",'DATA TRAQUE'!H78,"min",'DATA TRAQUE'!I78,"s") -> 3h55min30s | G25: =IF(F25="A PORTEE",'DATA TRAQUE'!$M$2+TIME(0,$D$3,$E$3)+TIME('DATA TRAQUE'!G78,'DATA TRAQUE'!H78,'DATA TRAQUE'!I78)," ") ->  | H25: =IF(F25="A PORTEE",G25-VLOOKUP($B$3,'DATA TRAQUE'!$B$41:$L$126,11),"") ->  | I25: =IF(F25="A PORTEE",'DATA TRAQUE'!$M$2+TIME(0,$D$3,$E$3)+2*TIME('DATA TRAQUE'!G56,'DATA TRAQUE'!H56,'DATA TRAQUE'!I56)+TIME(0,$F$3,$G$3)," ") ->  | J25: =IF(F25="A PORTEE",I25-VLOOKUP($B$3,'DATA TRAQUE'!$B$41:$L$126,11),"") -> 
B26: ='DATA TRAQUE'!B48 -> creamy | C26: ='DATA TRAQUE'!C48 -> 4979692 | D26: =SQRT(($C$6-'DATA TRAQUE'!D48)^2+(TRAQUE!$D$6-'DATA TRAQUE'!E48)^2) -> 30.2654919 | E26: =CONCATENATE('DATA TRAQUE'!G48,"h",'DATA TRAQUE'!H48,"min",'DATA TRAQUE'!I48,"s") -> 1h10min11s | G26: =IF(F26="A PORTEE",'DATA TRAQUE'!$M$2+TIME(0,$D$3,$E$3)+TIME('DATA TRAQUE'!G48,'DATA TRAQUE'!H48,'DATA TRAQUE'!I48)," ") ->  | H26: =IF(F26="A PORTEE",G26-VLOOKUP($B$3,'DATA TRAQUE'!$B$41:$L$126,11),"") ->  | I26: =IF(F26="A PORTEE",'DATA TRAQUE'!$M$2+TIME(0,$D$3,$E$3)+2*TIME('DATA TRAQUE'!G57,'DATA TRAQUE'!H57,'DATA TRAQUE'!I57)+TIME(0,$F$3,$G$3)," ") ->  | J26: =IF(F26="A PORTEE",I26-VLOOKUP($B$3,'DATA TRAQUE'!$B$41:$L$126,11),"") -> 
B27: ='DATA TRAQUE'!B79 -> CroolisVar | C27: ='DATA TRAQUE'!C79 -> 786759706 | D27: =SQRT(($C$6-'DATA TRAQUE'!D79)^2+(TRAQUE!$D$6-'DATA TRAQUE'!E79)^2) -> 47.38143096 | E27: =CONCATENATE('DATA TRAQUE'!G79,"h",'DATA TRAQUE'!H79,"min",'DATA TRAQUE'!I79,"s") -> 1h47min16s | F27: A PORTEE | G27: =IF(F27="A PORTEE",'DATA TRAQUE'!$M$2+TIME(0,$D$3,$E$3)+TIME('DATA TRAQUE'!G79,'DATA TRAQUE'!H79,'DATA TRAQUE'!I79)," ") -> 19:18:46 | H27: =IF(F27="A PORTEE",G27-VLOOKUP($B$3,'DATA TRAQUE'!$B$41:$L$126,11),"") -> 19:03:31 | I27: =IF(F27="A PORTEE",'DATA TRAQUE'!$M$2+TIME(0,$D$3,$E$3)+2*TIME('DATA TRAQUE'!G58,'DATA TRAQUE'!H58,'DATA TRAQUE'!I58)+TIME(0,$F$3,$G$3)," ") -> 20:18:40 | J27: =IF(F27="A PORTEE",I27-VLOOKUP($B$3,'DATA TRAQUE'!$B$41:$L$126,11),"") -> 20:03:25
B28: ='DATA TRAQUE'!B49 -> crunchy | C28: ='DATA TRAQUE'!C49 -> 637917142 | D28: =SQRT(($C$6-'DATA TRAQUE'!D49)^2+(TRAQUE!$D$6-'DATA TRAQUE'!E49)^2) -> 137.2953022 | E28: =CONCATENATE('DATA TRAQUE'!G49,"h",'DATA TRAQUE'!H49,"min",'DATA TRAQUE'!I49,"s") -> 4h34min53s | F28: A PORTEE | G28: =IF(F28="A PORTEE",'DATA TRAQUE'!$M$2+TIME(0,$D$3,$E$3)+TIME('DATA TRAQUE'!G49,'DATA TRAQUE'!H49,'DATA TRAQUE'!I49)," ") -> 22:06:23 | H28: =IF(F28="A PORTEE",G28-VLOOKUP($B$3,'DATA TRAQUE'!$B$41:$L$126,11),"") -> 21:51:08 | I28: =IF(F28="A PORTEE",'DATA TRAQUE'!$M$2+TIME(0,$D$3,$E$3)+2*TIME('DATA TRAQUE'!G59,'DATA TRAQUE'!H59,'DATA TRAQUE'!I59)+TIME(0,$F$3,$G$3)," ") -> 18:26:50 | J28: =IF(F28="A PORTEE",I28-VLOOKUP($B$3,'DATA TRAQUE'!$B$41:$L$126,11),"") -> 18:11:35
B29: ='DATA TRAQUE'!B50 -> Cyclope | C29: ='DATA TRAQUE'!C50 -> 111173 | D29: =SQRT(($C$6-'DATA TRAQUE'!D50)^2+(TRAQUE!$D$6-'DATA TRAQUE'!E50)^2) -> 2 | E29: =CONCATENATE('DATA TRAQUE'!G50,"h",'DATA TRAQUE'!H50,"min",'DATA TRAQUE'!I50,"s") -> 0h4min50s | G29: =IF(F29="A PORTEE",'DATA TRAQUE'!$M$2+TIME(0,$D$3,$E$3)+TIME('DATA TRAQUE'!G50,'DATA TRAQUE'!H50,'DATA TRAQUE'!I50)," ") ->  | H29: =IF(F29="A PORTEE",G29-VLOOKUP($B$3,'DATA TRAQUE'!$B$41:$L$126,11),"") ->  | I29: =IF(F29="A PORTEE",'DATA TRAQUE'!$M$2+TIME(0,$D$3,$E$3)+2*TIME('DATA TRAQUE'!G60,'DATA TRAQUE'!H60,'DATA TRAQUE'!I60)+TIME(0,$F$3,$G$3)," ") ->  | J29: =IF(F29="A PORTEE",I29-VLOOKUP($B$3,'DATA TRAQUE'!$B$41:$L$126,11),"") -> 
B30: ='DATA TRAQUE'!B80 -> Damping | C30: ='DATA TRAQUE'!C80 -> 16221345 | D30: =SQRT(($C$6-'DATA TRAQUE'!D80)^2+(TRAQUE!$D$6-'DATA TRAQUE'!E80)^2) -> 100.019998 | E30: =CONCATENATE('DATA TRAQUE'!G80,"h",'DATA TRAQUE'!H80,"min",'DATA TRAQUE'!I80,"s") -> 3h30min34s | G30: =IF(F30="A PORTEE",'DATA TRAQUE'!$M$2+TIME(0,$D$3,$E$3)+TIME('DATA TRAQUE'!G80,'DATA TRAQUE'!H80,'DATA TRAQUE'!I80)," ") ->  | H30: =IF(F30="A PORTEE",G30-VLOOKUP($B$3,'DATA TRAQUE'!$B$41:$L$126,11),"") ->  | I30: =IF(F30="A PORTEE",'DATA TRAQUE'!$M$2+TIME(0,$D$3,$E$3)+2*TIME('DATA TRAQUE'!G61,'DATA TRAQUE'!H61,'DATA TRAQUE'!I61)+TIME(0,$F$3,$G$3)," ") ->  | J30: =IF(F30="A PORTEE",I30-VLOOKUP($B$3,'DATA TRAQUE'!$B$41:$L$126,11),"") -> 
B31: ='DATA TRAQUE'!B51 -> Domino | C31: ='DATA TRAQUE'!C51 -> 892741 | D31: =SQRT(($C$6-'DATA TRAQUE'!D51)^2+(TRAQUE!$D$6-'DATA TRAQUE'!E51)^2) -> 1.414213562 | E31: =CONCATENATE('DATA TRAQUE'!G51,"h",'DATA TRAQUE'!H51,"min",'DATA TRAQUE'!I51,"s") -> 0h3min25s | G31: =IF(F31="A PORTEE",'DATA TRAQUE'!$M$2+TIME(0,$D$3,$E$3)+TIME('DATA TRAQUE'!G51,'DATA TRAQUE'!H51,'DATA TRAQUE'!I51)," ") ->  | H31: =IF(F31="A PORTEE",G31-VLOOKUP($B$3,'DATA TRAQUE'!$B$41:$L$126,11),"") ->  | I31: =IF(F31="A PORTEE",'DATA TRAQUE'!$M$2+TIME(0,$D$3,$E$3)+2*TIME('DATA TRAQUE'!G62,'DATA TRAQUE'!H62,'DATA TRAQUE'!I62)+TIME(0,$F$3,$G$3)," ") ->  | J31: =IF(F31="A PORTEE",I31-VLOOKUP($B$3,'DATA TRAQUE'!$B$41:$L$126,11),"") -> 
B32: ='DATA TRAQUE'!B81 -> DrAnts | C32: ='DATA TRAQUE'!C81 -> 3848814 | D32: =SQRT(($C$6-'DATA TRAQUE'!D81)^2+(TRAQUE!$D$6-'DATA TRAQUE'!E81)^2) -> 104.5801128 | E32: =CONCATENATE('DATA TRAQUE'!G81,"h",'DATA TRAQUE'!H81,"min",'DATA TRAQUE'!I81,"s") -> 3h38min49s | G32: =IF(F32="A PORTEE",'DATA TRAQUE'!$M$2+TIME(0,$D$3,$E$3)+TIME('DATA TRAQUE'!G81,'DATA TRAQUE'!H81,'DATA TRAQUE'!I81)," ") ->  | H32: =IF(F32="A PORTEE",G32-VLOOKUP($B$3,'DATA TRAQUE'!$B$41:$L$126,11),"") ->  | I32: =IF(F32="A PORTEE",'DATA TRAQUE'!$M$2+TIME(0,$D$3,$E$3)+2*TIME('DATA TRAQUE'!G63,'DATA TRAQUE'!H63,'DATA TRAQUE'!I63)+TIME(0,$F$3,$G$3)," ") ->  | J32: =IF(F32="A PORTEE",I32-VLOOKUP($B$3,'DATA TRAQUE'!$B$41:$L$126,11),"") -> 
B33: ='DATA TRAQUE'!B82 -> Drusilla | C33: ='DATA TRAQUE'!C82 -> 1855225863 | D33: =SQRT(($C$6-'DATA TRAQUE'!D82)^2+(TRAQUE!$D$6-'DATA TRAQUE'!E82)^2) -> 150.6154043 | E33: =CONCATENATE('DATA TRAQUE'!G82,"h",'DATA TRAQUE'!H82,"min",'DATA TRAQUE'!I82,"s") -> 4h56min15s | G33: =IF(F33="A PORTEE",'DATA TRAQUE'!$M$2+TIME(0,$D$3,$E$3)+TIME('DATA TRAQUE'!G82,'DATA TRAQUE'!H82,'DATA TRAQUE'!I82)," ") ->  | H33: =IF(F33="A PORTEE",G33-VLOOKUP($B$3,'DATA TRAQUE'!$B$41:$L$126,11),"") ->  | I33: =IF(F33="A PORTEE",'DATA TRAQUE'!$M$2+TIME(0,$D$3,$E$3)+2*TIME('DATA TRAQUE'!G64,'DATA TRAQUE'!H64,'DATA TRAQUE'!I64)+TIME(0,$F$3,$G$3)," ") ->  | J33: =IF(F33="A PORTEE",I33-VLOOKUP($B$3,'DATA TRAQUE'!$B$41:$L$126,11),"") -> 
B34: ='DATA TRAQUE'!B83 -> EllaVonZedanltha | C34: ='DATA TRAQUE'!C83 -> 1952804 | D34: =SQRT(($C$6-'DATA TRAQUE'!D83)^2+(TRAQUE!$D$6-'DATA TRAQUE'!E83)^2) -> 114.7562634 | E34: =CONCATENATE('DATA TRAQUE'!G83,"h",'DATA TRAQUE'!H83,"min",'DATA TRAQUE'!I83,"s") -> 3h56min49s | G34: =IF(F34="A PORTEE",'DATA TRAQUE'!$M$2+TIME(0,$D$3,$E$3)+TIME('DATA TRAQUE'!G83,'DATA TRAQUE'!H83,'DATA TRAQUE'!I83)," ") ->  | H34: =IF(F34="A PORTEE",G34-VLOOKUP($B$3,'DATA TRAQUE'!$B$41:$L$126,11),"") ->  | I34: =IF(F34="A PORTEE",'DATA TRAQUE'!$M$2+TIME(0,$D$3,$E$3)+2*TIME('DATA TRAQUE'!G65,'DATA TRAQUE'!H65,'DATA TRAQUE'!I65)+TIME(0,$F$3,$G$3)," ") ->  | J34: =IF(F34="A PORTEE",I34-VLOOKUP($B$3,'DATA TRAQUE'!$B$41:$L$126,11),"") -> 
B35: ='DATA TRAQUE'!B52 -> Eltornado | C35: ='DATA TRAQUE'!C52 -> 119767 | D35: =SQRT(($C$6-'DATA TRAQUE'!D52)^2+(TRAQUE!$D$6-'DATA TRAQUE'!E52)^2) -> 156.2049935 | E35: =CONCATENATE('DATA TRAQUE'!G52,"h",'DATA TRAQUE'!H52,"min",'DATA TRAQUE'!I52,"s") -> 5h4min59s | G35: =IF(F35="A PORTEE",'DATA TRAQUE'!$M$2+TIME(0,$D$3,$E$3)+TIME('DATA TRAQUE'!G52,'DATA TRAQUE'!H52,'DATA TRAQUE'!I52)," ") ->  | H35: =IF(F35="A PORTEE",G35-VLOOKUP($B$3,'DATA TRAQUE'!$B$41:$L$126,11),"") ->  | I35: =IF(F35="A PORTEE",'DATA TRAQUE'!$M$2+TIME(0,$D$3,$E$3)+2*TIME('DATA TRAQUE'!G66,'DATA TRAQUE'!H66,'DATA TRAQUE'!I66)+TIME(0,$F$3,$G$3)," ") ->  | J35: =IF(F35="A PORTEE",I35-VLOOKUP($B$3,'DATA TRAQUE'!$B$41:$L$126,11),"") -> 
B36: ='DATA TRAQUE'!B53 -> Fleau | C36: ='DATA TRAQUE'!C53 -> 1034979412 | D36: =SQRT(($C$6-'DATA TRAQUE'!D53)^2+(TRAQUE!$D$6-'DATA TRAQUE'!E53)^2) -> 4.123105626 | E36: =CONCATENATE('DATA TRAQUE'!G53,"h",'DATA TRAQUE'!H53,"min",'DATA TRAQUE'!I53,"s") -> 0h9min56s | F36: A PORTEE | G36: =IF(F36="A PORTEE",'DATA TRAQUE'!$M$2+TIME(0,$D$3,$E$3)+TIME('DATA TRAQUE'!G53,'DATA TRAQUE'!H53,'DATA TRAQUE'!I53)," ") -> 17:41:26 | H36: =IF(F36="A PORTEE",G36-VLOOKUP($B$3,'DATA TRAQUE'!$B$41:$L$126,11),"") -> 17:26:11 | I36: =IF(F36="A PORTEE",'DATA TRAQUE'!$M$2+TIME(0,$D$3,$E$3)+2*TIME('DATA TRAQUE'!G67,'DATA TRAQUE'!H67,'DATA TRAQUE'!I67)+TIME(0,$F$3,$G$3)," ") -> 1.123680556 | J36: =IF(F36="A PORTEE",I36-VLOOKUP($B$3,'DATA TRAQUE'!$B$41:$L$126,11),"") -> 1.113090278
B37: ='DATA TRAQUE'!B84 -> Flipper1 | C37: ='DATA TRAQUE'!C84 -> 92127906 | D37: =SQRT(($C$6-'DATA TRAQUE'!D84)^2+(TRAQUE!$D$6-'DATA TRAQUE'!E84)^2) -> 103.8171469 | E37: =CONCATENATE('DATA TRAQUE'!G84,"h",'DATA TRAQUE'!H84,"min",'DATA TRAQUE'!I84,"s") -> 3h37min27s | G37: =IF(F37="A PORTEE",'DATA TRAQUE'!$M$2+TIME(0,$D$3,$E$3)+TIME('DATA TRAQUE'!G84,'DATA TRAQUE'!H84,'DATA TRAQUE'!I84)," ") ->  | H37: =IF(F37="A PORTEE",G37-VLOOKUP($B$3,'DATA TRAQUE'!$B$41:$L$126,11),"") ->  | I37: =IF(F37="A PORTEE",'DATA TRAQUE'!$M$2+TIME(0,$D$3,$E$3)+2*TIME('DATA TRAQUE'!G68,'DATA TRAQUE'!H68,'DATA TRAQUE'!I68)+TIME(0,$F$3,$G$3)," ") ->  | J37: =IF(F37="A PORTEE",I37-VLOOKUP($B$3,'DATA TRAQUE'!$B$41:$L$126,11),"") -> 
B38: ='DATA TRAQUE'!B54 -> Formidabilis | C38: ='DATA TRAQUE'!C54 -> 215020 | D38: =SQRT(($C$6-'DATA TRAQUE'!D54)^2+(TRAQUE!$D$6-'DATA TRAQUE'!E54)^2) -> 8.94427191 | E38: =CONCATENATE('DATA TRAQUE'!G54,"h",'DATA TRAQUE'!H54,"min",'DATA TRAQUE'!I54,"s") -> 0h21min23s | G38: =IF(F38="A PORTEE",'DATA TRAQUE'!$M$2+TIME(0,$D$3,$E$3)+TIME('DATA TRAQUE'!G54,'DATA TRAQUE'!H54,'DATA TRAQUE'!I54)," ") ->  | H38: =IF(F38="A PORTEE",G38-VLOOKUP($B$3,'DATA TRAQUE'!$B$41:$L$126,11),"") ->  | I38: =IF(F38="A PORTEE",'DATA TRAQUE'!$M$2+TIME(0,$D$3,$E$3)+2*TIME('DATA TRAQUE'!G69,'DATA TRAQUE'!H69,'DATA TRAQUE'!I69)+TIME(0,$F$3,$G$3)," ") ->  | J38: =IF(F38="A PORTEE",I38-VLOOKUP($B$3,'DATA TRAQUE'!$B$41:$L$126,11),"") -> 
B39: ='DATA TRAQUE'!B85 -> Greeny | C39: ='DATA TRAQUE'!C85 -> 26570199 | D39: =SQRT(($C$6-'DATA TRAQUE'!D85)^2+(TRAQUE!$D$6-'DATA TRAQUE'!E85)^2) -> 122.8006515 | E39: =CONCATENATE('DATA TRAQUE'!G85,"h",'DATA TRAQUE'!H85,"min",'DATA TRAQUE'!I85,"s") -> 4h10min41s | G39: =IF(F39="A PORTEE",'DATA TRAQUE'!$M$2+TIME(0,$D$3,$E$3)+TIME('DATA TRAQUE'!G85,'DATA TRAQUE'!H85,'DATA TRAQUE'!I85)," ") ->  | H39: =IF(F39="A PORTEE",G39-VLOOKUP($B$3,'DATA TRAQUE'!$B$41:$L$126,11),"") ->  | I39: =IF(F39="A PORTEE",'DATA TRAQUE'!$M$2+TIME(0,$D$3,$E$3)+2*TIME('DATA TRAQUE'!G70,'DATA TRAQUE'!H70,'DATA TRAQUE'!I70)+TIME(0,$F$3,$G$3)," ") ->  | J39: =IF(F39="A PORTEE",I39-VLOOKUP($B$3,'DATA TRAQUE'!$B$41:$L$126,11),"") -> 
B40: ='DATA TRAQUE'!B86 -> Gueust | C40: ='DATA TRAQUE'!C86 -> 1480632393 | D40: =SQRT(($C$6-'DATA TRAQUE'!D86)^2+(TRAQUE!$D$6-'DATA TRAQUE'!E86)^2) -> 213.0844903 | E40: =CONCATENATE('DATA TRAQUE'!G86,"h",'DATA TRAQUE'!H86,"min",'DATA TRAQUE'!I86,"s") -> 6h26min18s | F40: A PORTEE | G40: =IF(F40="A PORTEE",'DATA TRAQUE'!$M$2+TIME(0,$D$3,$E$3)+TIME('DATA TRAQUE'!G86,'DATA TRAQUE'!H86,'DATA TRAQUE'!I86)," ") -> 23:57:48 | H40: =IF(F40="A PORTEE",G40-VLOOKUP($B$3,'DATA TRAQUE'!$B$41:$L$126,11),"") -> 23:42:33 | I40: =IF(F40="A PORTEE",'DATA TRAQUE'!$M$2+TIME(0,$D$3,$E$3)+2*TIME('DATA TRAQUE'!G71,'DATA TRAQUE'!H71,'DATA TRAQUE'!I71)+TIME(0,$F$3,$G$3)," ") -> 1.0725 | J40: =IF(F40="A PORTEE",I40-VLOOKUP($B$3,'DATA TRAQUE'!$B$41:$L$126,11),"") -> 1.061909722
B41: ='DATA TRAQUE'!B87 -> hador | C41: ='DATA TRAQUE'!C87 -> 1289178436 | D41: =SQRT(($C$6-'DATA TRAQUE'!D87)^2+(TRAQUE!$D$6-'DATA TRAQUE'!E87)^2) -> 22.8035085 | E41: =CONCATENATE('DATA TRAQUE'!G87,"h",'DATA TRAQUE'!H87,"min",'DATA TRAQUE'!I87,"s") -> 0h53min26s | F41: A PORTEE | G41: =IF(F41="A PORTEE",'DATA TRAQUE'!$M$2+TIME(0,$D$3,$E$3)+TIME('DATA TRAQUE'!G87,'DATA TRAQUE'!H87,'DATA TRAQUE'!I87)," ") -> 18:24:56 | H41: =IF(F41="A PORTEE",G41-VLOOKUP($B$3,'DATA TRAQUE'!$B$41:$L$126,11),"") -> 18:09:41 | I41: =IF(F41="A PORTEE",'DATA TRAQUE'!$M$2+TIME(0,$D$3,$E$3)+2*TIME('DATA TRAQUE'!G72,'DATA TRAQUE'!H72,'DATA TRAQUE'!I72)+TIME(0,$F$3,$G$3)," ") -> 1.054606481 | J41: =IF(F41="A PORTEE",I41-VLOOKUP($B$3,'DATA TRAQUE'!$B$41:$L$126,11),"") -> 1.044016204
B42: ='DATA TRAQUE'!B88 -> Ishigo | C42: ='DATA TRAQUE'!C88 -> 757282747 | D42: =SQRT(($C$6-'DATA TRAQUE'!D88)^2+(TRAQUE!$D$6-'DATA TRAQUE'!E88)^2) -> 70.40596566 | E42: =CONCATENATE('DATA TRAQUE'!G88,"h",'DATA TRAQUE'!H88,"min",'DATA TRAQUE'!I88,"s") -> 2h34min22s | F42: =IF(AND((C42<=(3*$B$6)),(C42>=(0.5*$B$6))),"A PORTEE"," ") -> A PORTEE | G42: =IF(F42="A PORTEE",'DATA TRAQUE'!$M$2+TIME(0,$D$3,$E$3)+TIME('DATA TRAQUE'!G88,'DATA TRAQUE'!H88,'DATA TRAQUE'!I88)," ") -> 20:05:52 | H42: =IF(F42="A PORTEE",G42-VLOOKUP($B$3,'DATA TRAQUE'!$B$41:$L$126,11),"") -> 19:50:37 | I42: =IF(F42="A PORTEE",'DATA TRAQUE'!$M$2+TIME(0,$D$3,$E$3)+2*TIME('DATA TRAQUE'!G73,'DATA TRAQUE'!H73,'DATA TRAQUE'!I73)+TIME(0,$F$3,$G$3)," ") -> 21:51:28 | J42: =IF(F42="A PORTEE",I42-VLOOKUP($B$3,'DATA TRAQUE'!$B$41:$L$126,11),"") -> 21:36:13
B43: ='DATA TRAQUE'!B55 -> Jericho | C43: ='DATA TRAQUE'!C55 -> 1839285687 | D43: =SQRT(($C$6-'DATA TRAQUE'!D55)^2+(TRAQUE!$D$6-'DATA TRAQUE'!E55)^2) -> 37.21558813 | E43: =CONCATENATE('DATA TRAQUE'!G55,"h",'DATA TRAQUE'!H55,"min",'DATA TRAQUE'!I55,"s") -> 1h25min28s | G43: =IF(F43="A PORTEE",'DATA TRAQUE'!$M$2+TIME(0,$D$3,$E$3)+TIME('DATA TRAQUE'!G55,'DATA TRAQUE'!H55,'DATA TRAQUE'!I55)," ") ->  | H43: =IF(F43="A PORTEE",G43-VLOOKUP($B$3,'DATA TRAQUE'!$B$41:$L$126,11),"") ->  | I43: =IF(F43="A PORTEE",'DATA TRAQUE'!$M$2+TIME(0,$D$3,$E$3)+2*TIME('DATA TRAQUE'!G74,'DATA TRAQUE'!H74,'DATA TRAQUE'!I74)+TIME(0,$F$3,$G$3)," ") ->  | J43: =IF(F43="A PORTEE",I43-VLOOKUP($B$3,'DATA TRAQUE'!$B$41:$L$126,11),"") -> 
B44: ='DATA TRAQUE'!B56 -> kandide | C44: ='DATA TRAQUE'!C56 -> 74951 | D44: =SQRT(($C$6-'DATA TRAQUE'!D56)^2+(TRAQUE!$D$6-'DATA TRAQUE'!E56)^2) -> 117.0384552 | E44: =CONCATENATE('DATA TRAQUE'!G56,"h",'DATA TRAQUE'!H56,"min",'DATA TRAQUE'!I56,"s") -> 4h0min47s | G44: =IF(F44="A PORTEE",'DATA TRAQUE'!$M$2+TIME(0,$D$3,$E$3)+TIME('DATA TRAQUE'!G56,'DATA TRAQUE'!H56,'DATA TRAQUE'!I56)," ") ->  | H44: =IF(F44="A PORTEE",G44-VLOOKUP($B$3,'DATA TRAQUE'!$B$41:$L$126,11),"") ->  | I44: =IF(F44="A PORTEE",'DATA TRAQUE'!$M$2+TIME(0,$D$3,$E$3)+2*TIME('DATA TRAQUE'!G75,'DATA TRAQUE'!H75,'DATA TRAQUE'!I75)+TIME(0,$F$3,$G$3)," ") ->  | J44: =IF(F44="A PORTEE",I44-VLOOKUP($B$3,'DATA TRAQUE'!$B$41:$L$126,11),"") -> 
B45: ='DATA TRAQUE'!B57 -> laika | C45: ='DATA TRAQUE'!C57 -> 352856 | D45: =SQRT(($C$6-'DATA TRAQUE'!D57)^2+(TRAQUE!$D$6-'DATA TRAQUE'!E57)^2) -> 34.78505426 | E45: =CONCATENATE('DATA TRAQUE'!G57,"h",'DATA TRAQUE'!H57,"min",'DATA TRAQUE'!I57,"s") -> 1h20min9s | G45: =IF(F45="A PORTEE",'DATA TRAQUE'!$M$2+TIME(0,$D$3,$E$3)+TIME('DATA TRAQUE'!G57,'DATA TRAQUE'!H57,'DATA TRAQUE'!I57)," ") ->  | H45: =IF(F45="A PORTEE",G45-VLOOKUP($B$3,'DATA TRAQUE'!$B$41:$L$126,11),"") ->  | I45: =IF(F45="A PORTEE",'DATA TRAQUE'!$M$2+TIME(0,$D$3,$E$3)+2*TIME('DATA TRAQUE'!G76,'DATA TRAQUE'!H76,'DATA TRAQUE'!I76)+TIME(0,$F$3,$G$3)," ") ->  | J45: =IF(F45="A PORTEE",I45-VLOOKUP($B$3,'DATA TRAQUE'!$B$41:$L$126,11),"") -> 
B46: ='DATA TRAQUE'!B89 -> Lesqual | C46: ='DATA TRAQUE'!C89 -> 4423829 | D46: =SQRT(($C$6-'DATA TRAQUE'!D89)^2+(TRAQUE!$D$6-'DATA TRAQUE'!E89)^2) -> 123.794184 | E46: =CONCATENATE('DATA TRAQUE'!G89,"h",'DATA TRAQUE'!H89,"min",'DATA TRAQUE'!I89,"s") -> 4h12min23s | G46: =IF(F46="A PORTEE",'DATA TRAQUE'!$M$2+TIME(0,$D$3,$E$3)+TIME('DATA TRAQUE'!G89,'DATA TRAQUE'!H89,'DATA TRAQUE'!I89)," ") ->  | H46: =IF(F46="A PORTEE",G46-VLOOKUP($B$3,'DATA TRAQUE'!$B$41:$L$126,11),"") ->  | I46: =IF(F46="A PORTEE",'DATA TRAQUE'!$M$2+TIME(0,$D$3,$E$3)+2*TIME('DATA TRAQUE'!G77,'DATA TRAQUE'!H77,'DATA TRAQUE'!I77)+TIME(0,$F$3,$G$3)," ") ->  | J46: =IF(F46="A PORTEE",I46-VLOOKUP($B$3,'DATA TRAQUE'!$B$41:$L$126,11),"") -> 
B47: ='DATA TRAQUE'!B90 -> lipoussou | C47: ='DATA TRAQUE'!C90 -> 11917308 | D47: =SQRT(($C$6-'DATA TRAQUE'!D90)^2+(TRAQUE!$D$6-'DATA TRAQUE'!E90)^2) -> 39.8246155 | E47: =CONCATENATE('DATA TRAQUE'!G90,"h",'DATA TRAQUE'!H90,"min",'DATA TRAQUE'!I90,"s") -> 1h31min7s | G47: =IF(F47="A PORTEE",'DATA TRAQUE'!$M$2+TIME(0,$D$3,$E$3)+TIME('DATA TRAQUE'!G90,'DATA TRAQUE'!H90,'DATA TRAQUE'!I90)," ") ->  | H47: =IF(F47="A PORTEE",G47-VLOOKUP($B$3,'DATA TRAQUE'!$B$41:$L$126,11),"") ->  | I47: =IF(F47="A PORTEE",'DATA TRAQUE'!$M$2+TIME(0,$D$3,$E$3)+2*TIME('DATA TRAQUE'!G78,'DATA TRAQUE'!H78,'DATA TRAQUE'!I78)+TIME(0,$F$3,$G$3)," ") ->  | J47: =IF(F47="A PORTEE",I47-VLOOKUP($B$3,'DATA TRAQUE'!$B$41:$L$126,11),"") -> 
B48: ='DATA TRAQUE'!B91 -> Lockheed | C48: ='DATA TRAQUE'!C91 -> 11216156 | D48: =SQRT(($C$6-'DATA TRAQUE'!D91)^2+(TRAQUE!$D$6-'DATA TRAQUE'!E91)^2) -> 19.41648784 | E48: =CONCATENATE('DATA TRAQUE'!G91,"h",'DATA TRAQUE'!H91,"min",'DATA TRAQUE'!I91,"s") -> 0h45min43s | G48: =IF(F48="A PORTEE",'DATA TRAQUE'!$M$2+TIME(0,$D$3,$E$3)+TIME('DATA TRAQUE'!G91,'DATA TRAQUE'!H91,'DATA TRAQUE'!I91)," ") ->  | H48: =IF(F48="A PORTEE",G48-VLOOKUP($B$3,'DATA TRAQUE'!$B$41:$L$126,11),"") ->  | I48: =IF(F48="A PORTEE",'DATA TRAQUE'!$M$2+TIME(0,$D$3,$E$3)+2*TIME('DATA TRAQUE'!G79,'DATA TRAQUE'!H79,'DATA TRAQUE'!I79)+TIME(0,$F$3,$G$3)," ") ->  | J48: =IF(F48="A PORTEE",I48-VLOOKUP($B$3,'DATA TRAQUE'!$B$41:$L$126,11),"") -> 
B49: ='DATA TRAQUE'!B92 -> MagnetO | C49: ='DATA TRAQUE'!C92 -> 111707 | D49: =SQRT(($C$6-'DATA TRAQUE'!D92)^2+(TRAQUE!$D$6-'DATA TRAQUE'!E92)^2) -> 17 | E49: =CONCATENATE('DATA TRAQUE'!G92,"h",'DATA TRAQUE'!H92,"min",'DATA TRAQUE'!I92,"s") -> 0h40min10s | G49: =IF(F49="A PORTEE",'DATA TRAQUE'!$M$2+TIME(0,$D$3,$E$3)+TIME('DATA TRAQUE'!G92,'DATA TRAQUE'!H92,'DATA TRAQUE'!I92)," ") ->  | H49: =IF(F49="A PORTEE",G49-VLOOKUP($B$3,'DATA TRAQUE'!$B$41:$L$126,11),"") ->  | I49: =IF(F49="A PORTEE",'DATA TRAQUE'!$M$2+TIME(0,$D$3,$E$3)+2*TIME('DATA TRAQUE'!G80,'DATA TRAQUE'!H80,'DATA TRAQUE'!I80)+TIME(0,$F$3,$G$3)," ") ->  | J49: =IF(F49="A PORTEE",I49-VLOOKUP($B$3,'DATA TRAQUE'!$B$41:$L$126,11),"") -> 
B50: ='DATA TRAQUE'!B93 -> marchombre | C50: ='DATA TRAQUE'!C93 -> 1650134494 | D50: =SQRT(($C$6-'DATA TRAQUE'!D93)^2+(TRAQUE!$D$6-'DATA TRAQUE'!E93)^2) -> 66.37017402 | E50: =CONCATENATE('DATA TRAQUE'!G93,"h",'DATA TRAQUE'!H93,"min",'DATA TRAQUE'!I93,"s") -> 2h26min20s | G50: =IF(F50="A PORTEE",'DATA TRAQUE'!$M$2+TIME(0,$D$3,$E$3)+TIME('DATA TRAQUE'!G93,'DATA TRAQUE'!H93,'DATA TRAQUE'!I93)," ") ->  | H50: =IF(F50="A PORTEE",G50-VLOOKUP($B$3,'DATA TRAQUE'!$B$41:$L$126,11),"") ->  | I50: =IF(F50="A PORTEE",'DATA TRAQUE'!$M$2+TIME(0,$D$3,$E$3)+2*TIME('DATA TRAQUE'!G81,'DATA TRAQUE'!H81,'DATA TRAQUE'!I81)+TIME(0,$F$3,$G$3)," ") ->  | J50: =IF(F50="A PORTEE",I50-VLOOKUP($B$3,'DATA TRAQUE'!$B$41:$L$126,11),"") -> 
B51: ='DATA TRAQUE'!B58 -> Matteo37 | C51: ='DATA TRAQUE'!C58 -> 1045506653 | D51: =SQRT(($C$6-'DATA TRAQUE'!D58)^2+(TRAQUE!$D$6-'DATA TRAQUE'!E58)^2) -> 36.12478374 | E51: =CONCATENATE('DATA TRAQUE'!G58,"h",'DATA TRAQUE'!H58,"min",'DATA TRAQUE'!I58,"s") -> 1h23min5s | F51: A PORTEE | G51: =IF(F51="A PORTEE",'DATA TRAQUE'!$M$2+TIME(0,$D$3,$E$3)+TIME('DATA TRAQUE'!G58,'DATA TRAQUE'!H58,'DATA TRAQUE'!I58)," ") -> 18:54:35 | H51: =IF(F51="A PORTEE",G51-VLOOKUP($B$3,'DATA TRAQUE'!$B$41:$L$126,11),"") -> 18:39:20 | I51: =IF(F51="A PORTEE",'DATA TRAQUE'!$M$2+TIME(0,$D$3,$E$3)+2*TIME('DATA TRAQUE'!G82,'DATA TRAQUE'!H82,'DATA TRAQUE'!I82)+TIME(0,$F$3,$G$3)," ") -> 1.142361111 | J51: =IF(F51="A PORTEE",I51-VLOOKUP($B$3,'DATA TRAQUE'!$B$41:$L$126,11),"") -> 1.131770833
B52: ='DATA TRAQUE'!B59 -> maxbo | C52: ='DATA TRAQUE'!C59 -> 474073 | D52: =SQRT(($C$6-'DATA TRAQUE'!D59)^2+(TRAQUE!$D$6-'DATA TRAQUE'!E59)^2) -> 11.40175425 | E52: =CONCATENATE('DATA TRAQUE'!G59,"h",'DATA TRAQUE'!H59,"min",'DATA TRAQUE'!I59,"s") -> 0h27min10s | G52: =IF(F52="A PORTEE",'DATA TRAQUE'!$M$2+TIME(0,$D$3,$E$3)+TIME('DATA TRAQUE'!G59,'DATA TRAQUE'!H59,'DATA TRAQUE'!I59)," ") ->  | H52: =IF(F52="A PORTEE",G52-VLOOKUP($B$3,'DATA TRAQUE'!$B$41:$L$126,11),"") ->  | I52: =IF(F52="A PORTEE",'DATA TRAQUE'!$M$2+TIME(0,$D$3,$E$3)+2*TIME('DATA TRAQUE'!G83,'DATA TRAQUE'!H83,'DATA TRAQUE'!I83)+TIME(0,$F$3,$G$3)," ") ->  | J52: =IF(F52="A PORTEE",I52-VLOOKUP($B$3,'DATA TRAQUE'!$B$41:$L$126,11),"") -> 
B53: ='DATA TRAQUE'!B94 -> Melissa | C53: ='DATA TRAQUE'!C94 -> 4325226 | D53: =SQRT(($C$6-'DATA TRAQUE'!D94)^2+(TRAQUE!$D$6-'DATA TRAQUE'!E94)^2) -> 145.9863007 | E53: =CONCATENATE('DATA TRAQUE'!G94,"h",'DATA TRAQUE'!H94,"min",'DATA TRAQUE'!I94,"s") -> 4h48min55s | G53: =IF(F53="A PORTEE",'DATA TRAQUE'!$M$2+TIME(0,$D$3,$E$3)+TIME('DATA TRAQUE'!G94,'DATA TRAQUE'!H94,'DATA TRAQUE'!I94)," ") ->  | H53: =IF(F53="A PORTEE",G53-VLOOKUP($B$3,'DATA TRAQUE'!$B$41:$L$126,11),"") ->  | I53: =IF(F53="A PORTEE",'DATA TRAQUE'!$M$2+TIME(0,$D$3,$E$3)+2*TIME('DATA TRAQUE'!G84,'DATA TRAQUE'!H84,'DATA TRAQUE'!I84)+TIME(0,$F$3,$G$3)," ") ->  | J53: =IF(F53="A PORTEE",I53-VLOOKUP($B$3,'DATA TRAQUE'!$B$41:$L$126,11),"") -> 
B54: ='DATA TRAQUE'!B95 -> MilesGloriosus | C54: ='DATA TRAQUE'!C95 -> 1229557 | D54: =SQRT(($C$6-'DATA TRAQUE'!D95)^2+(TRAQUE!$D$6-'DATA TRAQUE'!E95)^2) -> 78.10249676 | E54: =CONCATENATE('DATA TRAQUE'!G95,"h",'DATA TRAQUE'!H95,"min",'DATA TRAQUE'!I95,"s") -> 2h49min26s | G54: =IF(F54="A PORTEE",'DATA TRAQUE'!$M$2+TIME(0,$D$3,$E$3)+TIME('DATA TRAQUE'!G95,'DATA TRAQUE'!H95,'DATA TRAQUE'!I95)," ") ->  | H54: =IF(F54="A PORTEE",G54-VLOOKUP($B$3,'DATA TRAQUE'!$B$41:$L$126,11),"") ->  | I54: =IF(F54="A PORTEE",'DATA TRAQUE'!$M$2+TIME(0,$D$3,$E$3)+2*TIME('DATA TRAQUE'!G85,'DATA TRAQUE'!H85,'DATA TRAQUE'!I85)+TIME(0,$F$3,$G$3)," ") ->  | J54: =IF(F54="A PORTEE",I54-VLOOKUP($B$3,'DATA TRAQUE'!$B$41:$L$126,11),"") -> 
B55: ='DATA TRAQUE'!B96 -> miloveam | C55: ='DATA TRAQUE'!C96 -> 10733921 | D55: =SQRT(($C$6-'DATA TRAQUE'!D96)^2+(TRAQUE!$D$6-'DATA TRAQUE'!E96)^2) -> 133.090195 | E55: =CONCATENATE('DATA TRAQUE'!G96,"h",'DATA TRAQUE'!H96,"min",'DATA TRAQUE'!I96,"s") -> 4h27min58s | G55: =IF(F55="A PORTEE",'DATA TRAQUE'!$M$2+TIME(0,$D$3,$E$3)+TIME('DATA TRAQUE'!G96,'DATA TRAQUE'!H96,'DATA TRAQUE'!I96)," ") ->  | H55: =IF(F55="A PORTEE",G55-VLOOKUP($B$3,'DATA TRAQUE'!$B$41:$L$126,11),"") ->  | I55: =IF(F55="A PORTEE",'DATA TRAQUE'!$M$2+TIME(0,$D$3,$E$3)+2*TIME('DATA TRAQUE'!G86,'DATA TRAQUE'!H86,'DATA TRAQUE'!I86)+TIME(0,$F$3,$G$3)," ") ->  | J55: =IF(F55="A PORTEE",I55-VLOOKUP($B$3,'DATA TRAQUE'!$B$41:$L$126,11),"") -> 
B56: ='DATA TRAQUE'!B97 -> Mime | C56: ='DATA TRAQUE'!C97 -> 1741606 | D56: =SQRT(($C$6-'DATA TRAQUE'!D97)^2+(TRAQUE!$D$6-'DATA TRAQUE'!E97)^2) -> 44.28317965 | E56: =CONCATENATE('DATA TRAQUE'!G97,"h",'DATA TRAQUE'!H97,"min",'DATA TRAQUE'!I97,"s") -> 1h40min41s | G56: =IF(F56="A PORTEE",'DATA TRAQUE'!$M$2+TIME(0,$D$3,$E$3)+TIME('DATA TRAQUE'!G97,'DATA TRAQUE'!H97,'DATA TRAQUE'!I97)," ") ->  | H56: =IF(F56="A PORTEE",G56-VLOOKUP($B$3,'DATA TRAQUE'!$B$41:$L$126,11),"") ->  | I56: =IF(F56="A PORTEE",'DATA TRAQUE'!$M$2+TIME(0,$D$3,$E$3)+2*TIME('DATA TRAQUE'!G87,'DATA TRAQUE'!H87,'DATA TRAQUE'!I87)+TIME(0,$F$3,$G$3)," ") ->  | J56: =IF(F56="A PORTEE",I56-VLOOKUP($B$3,'DATA TRAQUE'!$B$41:$L$126,11),"") -> 
B57: ='DATA TRAQUE'!B98 -> Mimic | C57: ='DATA TRAQUE'!C98 -> 510734725 | D57: =SQRT(($C$6-'DATA TRAQUE'!D98)^2+(TRAQUE!$D$6-'DATA TRAQUE'!E98)^2) -> 35.0142828 | E57: =CONCATENATE('DATA TRAQUE'!G98,"h",'DATA TRAQUE'!H98,"min",'DATA TRAQUE'!I98,"s") -> 1h20min39s | F57: A PORTEE | G57: =IF(F57="A PORTEE",'DATA TRAQUE'!$M$2+TIME(0,$D$3,$E$3)+TIME('DATA TRAQUE'!G98,'DATA TRAQUE'!H98,'DATA TRAQUE'!I98)," ") -> 18:52:09 | H57: =IF(F57="A PORTEE",G57-VLOOKUP($B$3,'DATA TRAQUE'!$B$41:$L$126,11),"") -> 18:36:54 | I57: =IF(F57="A PORTEE",'DATA TRAQUE'!$M$2+TIME(0,$D$3,$E$3)+2*TIME('DATA TRAQUE'!G88,'DATA TRAQUE'!H88,'DATA TRAQUE'!I88)+TIME(0,$F$3,$G$3)," ") -> 22:41:14 | J57: =IF(F57="A PORTEE",I57-VLOOKUP($B$3,'DATA TRAQUE'!$B$41:$L$126,11),"") -> 22:25:59
B58: ='DATA TRAQUE'!B60 -> moontribe | C58: ='DATA TRAQUE'!C60 -> 577004 | D58: =SQRT(($C$6-'DATA TRAQUE'!D60)^2+(TRAQUE!$D$6-'DATA TRAQUE'!E60)^2) -> 39.59797975 | E58: =CONCATENATE('DATA TRAQUE'!G60,"h",'DATA TRAQUE'!H60,"min",'DATA TRAQUE'!I60,"s") -> 1h30min38s | G58: =IF(F58="A PORTEE",'DATA TRAQUE'!$M$2+TIME(0,$D$3,$E$3)+TIME('DATA TRAQUE'!G60,'DATA TRAQUE'!H60,'DATA TRAQUE'!I60)," ") ->  | H58: =IF(F58="A PORTEE",G58-VLOOKUP($B$3,'DATA TRAQUE'!$B$41:$L$126,11),"") ->  | I58: =IF(F58="A PORTEE",'DATA TRAQUE'!$M$2+TIME(0,$D$3,$E$3)+2*TIME('DATA TRAQUE'!G89,'DATA TRAQUE'!H89,'DATA TRAQUE'!I89)+TIME(0,$F$3,$G$3)," ") ->  | J58: =IF(F58="A PORTEE",I58-VLOOKUP($B$3,'DATA TRAQUE'!$B$41:$L$126,11),"") -> 
B59: ='DATA TRAQUE'!B99 -> Morphy | C59: ='DATA TRAQUE'!C99 -> 1927950 | D59: =SQRT(($C$6-'DATA TRAQUE'!D99)^2+(TRAQUE!$D$6-'DATA TRAQUE'!E99)^2) -> 168.0238078 | E59: =CONCATENATE('DATA TRAQUE'!G99,"h",'DATA TRAQUE'!H99,"min",'DATA TRAQUE'!I99,"s") -> 5h22min59s | G59: =IF(F59="A PORTEE",'DATA TRAQUE'!$M$2+TIME(0,$D$3,$E$3)+TIME('DATA TRAQUE'!G99,'DATA TRAQUE'!H99,'DATA TRAQUE'!I99)," ") ->  | H59: =IF(F59="A PORTEE",G59-VLOOKUP($B$3,'DATA TRAQUE'!$B$41:$L$126,11),"") ->  | I59: =IF(F59="A PORTEE",'DATA TRAQUE'!$M$2+TIME(0,$D$3,$E$3)+2*TIME('DATA TRAQUE'!G90,'DATA TRAQUE'!H90,'DATA TRAQUE'!I90)+TIME(0,$F$3,$G$3)," ") ->  | J59: =IF(F59="A PORTEE",I59-VLOOKUP($B$3,'DATA TRAQUE'!$B$41:$L$126,11),"") -> 
B60: ='DATA TRAQUE'!B61 -> mouche | C60: ='DATA TRAQUE'!C61 -> 140617522 | D60: =SQRT(($C$6-'DATA TRAQUE'!D61)^2+(TRAQUE!$D$6-'DATA TRAQUE'!E61)^2) -> 73.02739212 | E60: =CONCATENATE('DATA TRAQUE'!G61,"h",'DATA TRAQUE'!H61,"min",'DATA TRAQUE'!I61,"s") -> 2h39min32s | G60: =IF(F60="A PORTEE",'DATA TRAQUE'!$M$2+TIME(0,$D$3,$E$3)+TIME('DATA TRAQUE'!G61,'DATA TRAQUE'!H61,'DATA TRAQUE'!I61)," ") ->  | H60: =IF(F60="A PORTEE",G60-VLOOKUP($B$3,'DATA TRAQUE'!$B$41:$L$126,11),"") ->  | I60: =IF(F60="A PORTEE",'DATA TRAQUE'!$M$2+TIME(0,$D$3,$E$3)+2*TIME('DATA TRAQUE'!G91,'DATA TRAQUE'!H91,'DATA TRAQUE'!I91)+TIME(0,$F$3,$G$3)," ") ->  | J60: =IF(F60="A PORTEE",I60-VLOOKUP($B$3,'DATA TRAQUE'!$B$41:$L$126,11),"") -> 
B61: ='DATA TRAQUE'!B100 -> Myvin | C61: ='DATA TRAQUE'!C100 -> 1983940382 | D61: =SQRT(($C$6-'DATA TRAQUE'!D100)^2+(TRAQUE!$D$6-'DATA TRAQUE'!E100)^2) -> 136.4734406 | E61: =CONCATENATE('DATA TRAQUE'!G100,"h",'DATA TRAQUE'!H100,"min",'DATA TRAQUE'!I100,"s") -> 4h33min32s | G61: =IF(F61="A PORTEE",'DATA TRAQUE'!$M$2+TIME(0,$D$3,$E$3)+TIME('DATA TRAQUE'!G100,'DATA TRAQUE'!H100,'DATA TRAQUE'!I100)," ") ->  | H61: =IF(F61="A PORTEE",G61-VLOOKUP($B$3,'DATA TRAQUE'!$B$41:$L$126,11),"") ->  | I61: =IF(F61="A PORTEE",'DATA TRAQUE'!$M$2+TIME(0,$D$3,$E$3)+2*TIME('DATA TRAQUE'!G92,'DATA TRAQUE'!H92,'DATA TRAQUE'!I92)+TIME(0,$F$3,$G$3)," ") ->  | J61: =IF(F61="A PORTEE",I61-VLOOKUP($B$3,'DATA TRAQUE'!$B$41:$L$126,11),"") -> 
B62: ='DATA TRAQUE'!B62 -> Norrin-Radd | C62: ='DATA TRAQUE'!C62 -> 32853830 | D62: =SQRT(($C$6-'DATA TRAQUE'!D62)^2+(TRAQUE!$D$6-'DATA TRAQUE'!E62)^2) -> 24.0208243 | E62: =CONCATENATE('DATA TRAQUE'!G62,"h",'DATA TRAQUE'!H62,"min",'DATA TRAQUE'!I62,"s") -> 0h56min12s | G62: =IF(F62="A PORTEE",'DATA TRAQUE'!$M$2+TIME(0,$D$3,$E$3)+TIME('DATA TRAQUE'!G62,'DATA TRAQUE'!H62,'DATA TRAQUE'!I62)," ") ->  | H62: =IF(F62="A PORTEE",G62-VLOOKUP($B$3,'DATA TRAQUE'!$B$41:$L$126,11),"") ->  | I62: =IF(F62="A PORTEE",'DATA TRAQUE'!$M$2+TIME(0,$D$3,$E$3)+2*TIME('DATA TRAQUE'!G93,'DATA TRAQUE'!H93,'DATA TRAQUE'!I93)+TIME(0,$F$3,$G$3)," ") ->  | J62: =IF(F62="A PORTEE",I62-VLOOKUP($B$3,'DATA TRAQUE'!$B$41:$L$126,11),"") -> 
B63: ='DATA TRAQUE'!B101 -> osman | C63: ='DATA TRAQUE'!C101 -> 953794 | D63: =SQRT(($C$6-'DATA TRAQUE'!D101)^2+(TRAQUE!$D$6-'DATA TRAQUE'!E101)^2) -> 144.3468046 | E63: =CONCATENATE('DATA TRAQUE'!G101,"h",'DATA TRAQUE'!H101,"min",'DATA TRAQUE'!I101,"s") -> 4h46min18s | G63: =IF(F63="A PORTEE",'DATA TRAQUE'!$M$2+TIME(0,$D$3,$E$3)+TIME('DATA TRAQUE'!G101,'DATA TRAQUE'!H101,'DATA TRAQUE'!I101)," ") ->  | H63: =IF(F63="A PORTEE",G63-VLOOKUP($B$3,'DATA TRAQUE'!$B$41:$L$126,11),"") ->  | I63: =IF(F63="A PORTEE",'DATA TRAQUE'!$M$2+TIME(0,$D$3,$E$3)+2*TIME('DATA TRAQUE'!G94,'DATA TRAQUE'!H94,'DATA TRAQUE'!I94)+TIME(0,$F$3,$G$3)," ") ->  | J63: =IF(F63="A PORTEE",I63-VLOOKUP($B$3,'DATA TRAQUE'!$B$41:$L$126,11),"") -> 
B64: ='DATA TRAQUE'!B102 -> pacpac001 | C64: ='DATA TRAQUE'!C102 -> 2291704 | D64: =SQRT(($C$6-'DATA TRAQUE'!D102)^2+(TRAQUE!$D$6-'DATA TRAQUE'!E102)^2) -> 121.0371844 | E64: =CONCATENATE('DATA TRAQUE'!G102,"h",'DATA TRAQUE'!H102,"min",'DATA TRAQUE'!I102,"s") -> 4h7min40s | G64: =IF(F64="A PORTEE",'DATA TRAQUE'!$M$2+TIME(0,$D$3,$E$3)+TIME('DATA TRAQUE'!G102,'DATA TRAQUE'!H102,'DATA TRAQUE'!I102)," ") ->  | H64: =IF(F64="A PORTEE",G64-VLOOKUP($B$3,'DATA TRAQUE'!$B$41:$L$126,11),"") ->  | I64: =IF(F64="A PORTEE",'DATA TRAQUE'!$M$2+TIME(0,$D$3,$E$3)+2*TIME('DATA TRAQUE'!G95,'DATA TRAQUE'!H95,'DATA TRAQUE'!I95)+TIME(0,$F$3,$G$3)," ") ->  | J64: =IF(F64="A PORTEE",I64-VLOOKUP($B$3,'DATA TRAQUE'!$B$41:$L$126,11),"") -> 
B65: ='DATA TRAQUE'!B103 -> Panda | C65: ='DATA TRAQUE'!C103 -> 74522661 | D65: =SQRT(($C$6-'DATA TRAQUE'!D103)^2+(TRAQUE!$D$6-'DATA TRAQUE'!E103)^2) -> 137.0912105 | E65: =CONCATENATE('DATA TRAQUE'!G103,"h",'DATA TRAQUE'!H103,"min",'DATA TRAQUE'!I103,"s") -> 4h34min33s | G65: =IF(F65="A PORTEE",'DATA TRAQUE'!$M$2+TIME(0,$D$3,$E$3)+TIME('DATA TRAQUE'!G103,'DATA TRAQUE'!H103,'DATA TRAQUE'!I103)," ") ->  | H65: =IF(F65="A PORTEE",G65-VLOOKUP($B$3,'DATA TRAQUE'!$B$41:$L$126,11),"") ->  | I65: =IF(F65="A PORTEE",'DATA TRAQUE'!$M$2+TIME(0,$D$3,$E$3)+2*TIME('DATA TRAQUE'!G96,'DATA TRAQUE'!H96,'DATA TRAQUE'!I96)+TIME(0,$F$3,$G$3)," ") ->  | J65: =IF(F65="A PORTEE",I65-VLOOKUP($B$3,'DATA TRAQUE'!$B$41:$L$126,11),"") -> 
B66: ='DATA TRAQUE'!B104 -> pANTSu | C66: ='DATA TRAQUE'!C104 -> 1909810001 | D66: =SQRT(($C$6-'DATA TRAQUE'!D104)^2+(TRAQUE!$D$6-'DATA TRAQUE'!E104)^2) -> 121.6552506 | E66: =CONCATENATE('DATA TRAQUE'!G104,"h",'DATA TRAQUE'!H104,"min",'DATA TRAQUE'!I104,"s") -> 4h8min44s | G66: =IF(F66="A PORTEE",'DATA TRAQUE'!$M$2+TIME(0,$D$3,$E$3)+TIME('DATA TRAQUE'!G104,'DATA TRAQUE'!H104,'DATA TRAQUE'!I104)," ") ->  | H66: =IF(F66="A PORTEE",G66-VLOOKUP($B$3,'DATA TRAQUE'!$B$41:$L$126,11),"") ->  | I66: =IF(F66="A PORTEE",'DATA TRAQUE'!$M$2+TIME(0,$D$3,$E$3)+2*TIME('DATA TRAQUE'!G97,'DATA TRAQUE'!H97,'DATA TRAQUE'!I97)+TIME(0,$F$3,$G$3)," ") ->  | J66: =IF(F66="A PORTEE",I66-VLOOKUP($B$3,'DATA TRAQUE'!$B$41:$L$126,11),"") -> 
B67: ='DATA TRAQUE'!B105 -> Phenixx | C67: ='DATA TRAQUE'!C105 -> 908308062 | D67: =SQRT(($C$6-'DATA TRAQUE'!D105)^2+(TRAQUE!$D$6-'DATA TRAQUE'!E105)^2) -> 9.219544457 | E67: =CONCATENATE('DATA TRAQUE'!G105,"h",'DATA TRAQUE'!H105,"min",'DATA TRAQUE'!I105,"s") -> 0h22min2s | F67: A PORTEE | G67: =IF(F67="A PORTEE",'DATA TRAQUE'!$M$2+TIME(0,$D$3,$E$3)+TIME('DATA TRAQUE'!G105,'DATA TRAQUE'!H105,'DATA TRAQUE'!I105)," ") -> 17:53:32 | H67: =IF(F67="A PORTEE",G67-VLOOKUP($B$3,'DATA TRAQUE'!$B$41:$L$126,11),"") -> 17:38:17 | I67: =IF(F67="A PORTEE",'DATA TRAQUE'!$M$2+TIME(0,$D$3,$E$3)+2*TIME('DATA TRAQUE'!G98,'DATA TRAQUE'!H98,'DATA TRAQUE'!I98)+TIME(0,$F$3,$G$3)," ") -> 20:13:48 | J67: =IF(F67="A PORTEE",I67-VLOOKUP($B$3,'DATA TRAQUE'!$B$41:$L$126,11),"") -> 19:58:33
B68: ='DATA TRAQUE'!B106 -> Pinou | C68: ='DATA TRAQUE'!C106 -> 7212325 | D68: =SQRT(($C$6-'DATA TRAQUE'!D106)^2+(TRAQUE!$D$6-'DATA TRAQUE'!E106)^2) -> 154.7804897 | E68: =CONCATENATE('DATA TRAQUE'!G106,"h",'DATA TRAQUE'!H106,"min",'DATA TRAQUE'!I106,"s") -> 5h2min46s | G68: =IF(F68="A PORTEE",'DATA TRAQUE'!$M$2+TIME(0,$D$3,$E$3)+TIME('DATA TRAQUE'!G106,'DATA TRAQUE'!H106,'DATA TRAQUE'!I106)," ") ->  | H68: =IF(F68="A PORTEE",G68-VLOOKUP($B$3,'DATA TRAQUE'!$B$41:$L$126,11),"") ->  | I68: =IF(F68="A PORTEE",'DATA TRAQUE'!$M$2+TIME(0,$D$3,$E$3)+2*TIME('DATA TRAQUE'!G99,'DATA TRAQUE'!H99,'DATA TRAQUE'!I99)+TIME(0,$F$3,$G$3)," ") ->  | J68: =IF(F68="A PORTEE",I68-VLOOKUP($B$3,'DATA TRAQUE'!$B$41:$L$126,11),"") -> 
B69: ='DATA TRAQUE'!B107 -> pluginbaby | C69: ='DATA TRAQUE'!C107 -> 12705822 | D69: =SQRT(($C$6-'DATA TRAQUE'!D107)^2+(TRAQUE!$D$6-'DATA TRAQUE'!E107)^2) -> 151.2514463 | E69: =CONCATENATE('DATA TRAQUE'!G107,"h",'DATA TRAQUE'!H107,"min",'DATA TRAQUE'!I107,"s") -> 4h57min15s | G69: =IF(F69="A PORTEE",'DATA TRAQUE'!$M$2+TIME(0,$D$3,$E$3)+TIME('DATA TRAQUE'!G107,'DATA TRAQUE'!H107,'DATA TRAQUE'!I107)," ") ->  | H69: =IF(F69="A PORTEE",G69-VLOOKUP($B$3,'DATA TRAQUE'!$B$41:$L$126,11),"") ->  | I69: =IF(F69="A PORTEE",'DATA TRAQUE'!$M$2+TIME(0,$D$3,$E$3)+2*TIME('DATA TRAQUE'!G100,'DATA TRAQUE'!H100,'DATA TRAQUE'!I100)+TIME(0,$F$3,$G$3)," ") ->  | J69: =IF(F69="A PORTEE",I69-VLOOKUP($B$3,'DATA TRAQUE'!$B$41:$L$126,11),"") -> 
B70: ='DATA TRAQUE'!B63 -> Prend-Ta-Claque | C70: ='DATA TRAQUE'!C63 -> 2568004 | D70: =SQRT(($C$6-'DATA TRAQUE'!D63)^2+(TRAQUE!$D$6-'DATA TRAQUE'!E63)^2) -> 152.118375 | E70: =CONCATENATE('DATA TRAQUE'!G63,"h",'DATA TRAQUE'!H63,"min",'DATA TRAQUE'!I63,"s") -> 4h58min37s | G70: =IF(F70="A PORTEE",'DATA TRAQUE'!$M$2+TIME(0,$D$3,$E$3)+TIME('DATA TRAQUE'!G63,'DATA TRAQUE'!H63,'DATA TRAQUE'!I63)," ") ->  | H70: =IF(F70="A PORTEE",G70-VLOOKUP($B$3,'DATA TRAQUE'!$B$41:$L$126,11),"") ->  | I70: =IF(F70="A PORTEE",'DATA TRAQUE'!$M$2+TIME(0,$D$3,$E$3)+2*TIME('DATA TRAQUE'!G101,'DATA TRAQUE'!H101,'DATA TRAQUE'!I101)+TIME(0,$F$3,$G$3)," ") ->  | J70: =IF(F70="A PORTEE",I70-VLOOKUP($B$3,'DATA TRAQUE'!$B$41:$L$126,11),"") -> 
B71: ='DATA TRAQUE'!B108 -> Quivala | C71: ='DATA TRAQUE'!C108 -> 9761369 | D71: =SQRT(($C$6-'DATA TRAQUE'!D108)^2+(TRAQUE!$D$6-'DATA TRAQUE'!E108)^2) -> 45.45327271 | E71: =CONCATENATE('DATA TRAQUE'!G108,"h",'DATA TRAQUE'!H108,"min",'DATA TRAQUE'!I108,"s") -> 1h43min11s | G71: =IF(F71="A PORTEE",'DATA TRAQUE'!$M$2+TIME(0,$D$3,$E$3)+TIME('DATA TRAQUE'!G108,'DATA TRAQUE'!H108,'DATA TRAQUE'!I108)," ") ->  | H71: =IF(F71="A PORTEE",G71-VLOOKUP($B$3,'DATA TRAQUE'!$B$41:$L$126,11),"") ->  | I71: =IF(F71="A PORTEE",'DATA TRAQUE'!$M$2+TIME(0,$D$3,$E$3)+2*TIME('DATA TRAQUE'!G102,'DATA TRAQUE'!H102,'DATA TRAQUE'!I102)+TIME(0,$F$3,$G$3)," ") ->  | J71: =IF(F71="A PORTEE",I71-VLOOKUP($B$3,'DATA TRAQUE'!$B$41:$L$126,11),"") -> 
B72: ='DATA TRAQUE'!B109 -> Reex | C72: ='DATA TRAQUE'!C109 -> 1332809 | D72: =SQRT(($C$6-'DATA TRAQUE'!D109)^2+(TRAQUE!$D$6-'DATA TRAQUE'!E109)^2) -> 34.20526275 | E72: =CONCATENATE('DATA TRAQUE'!G109,"h",'DATA TRAQUE'!H109,"min",'DATA TRAQUE'!I109,"s") -> 1h18min53s | G72: =IF(F72="A PORTEE",'DATA TRAQUE'!$M$2+TIME(0,$D$3,$E$3)+TIME('DATA TRAQUE'!G109,'DATA TRAQUE'!H109,'DATA TRAQUE'!I109)," ") ->  | H72: =IF(F72="A PORTEE",G72-VLOOKUP($B$3,'DATA TRAQUE'!$B$41:$L$126,11),"") ->  | I72: =IF(F72="A PORTEE",'DATA TRAQUE'!$M$2+TIME(0,$D$3,$E$3)+2*TIME('DATA TRAQUE'!G103,'DATA TRAQUE'!H103,'DATA TRAQUE'!I103)+TIME(0,$F$3,$G$3)," ") ->  | J72: =IF(F72="A PORTEE",I72-VLOOKUP($B$3,'DATA TRAQUE'!$B$41:$L$126,11),"") -> 
B73: ='DATA TRAQUE'!B110 -> riblibli | C73: ='DATA TRAQUE'!C110 -> 194929 | D73: =SQRT(($C$6-'DATA TRAQUE'!D110)^2+(TRAQUE!$D$6-'DATA TRAQUE'!E110)^2) -> 150.029997 | E73: =CONCATENATE('DATA TRAQUE'!G110,"h",'DATA TRAQUE'!H110,"min",'DATA TRAQUE'!I110,"s") -> 4h55min20s | G73: =IF(F73="A PORTEE",'DATA TRAQUE'!$M$2+TIME(0,$D$3,$E$3)+TIME('DATA TRAQUE'!G110,'DATA TRAQUE'!H110,'DATA TRAQUE'!I110)," ") ->  | H73: =IF(F73="A PORTEE",G73-VLOOKUP($B$3,'DATA TRAQUE'!$B$41:$L$126,11),"") ->  | I73: =IF(F73="A PORTEE",'DATA TRAQUE'!$M$2+TIME(0,$D$3,$E$3)+2*TIME('DATA TRAQUE'!G104,'DATA TRAQUE'!H104,'DATA TRAQUE'!I104)+TIME(0,$F$3,$G$3)," ") ->  | J73: =IF(F73="A PORTEE",I73-VLOOKUP($B$3,'DATA TRAQUE'!$B$41:$L$126,11),"") -> 
B74: ='DATA TRAQUE'!B111 -> Rita | C74: ='DATA TRAQUE'!C111 -> 616559697 | D74: =SQRT(($C$6-'DATA TRAQUE'!D111)^2+(TRAQUE!$D$6-'DATA TRAQUE'!E111)^2) -> 147.9594539 | E74: =CONCATENATE('DATA TRAQUE'!G111,"h",'DATA TRAQUE'!H111,"min",'DATA TRAQUE'!I111,"s") -> 4h52min3s | F74: =IF(AND((C74<=(3*$B$6)),(C74>=(0.5*$B$6))),"A PORTEE"," ") -> A PORTEE | G74: =IF(F74="A PORTEE",'DATA TRAQUE'!$M$2+TIME(0,$D$3,$E$3)+TIME('DATA TRAQUE'!G111,'DATA TRAQUE'!H111,'DATA TRAQUE'!I111)," ") -> 22:23:33 | H74: =IF(F74="A PORTEE",G74-VLOOKUP($B$3,'DATA TRAQUE'!$B$41:$L$126,11),"") -> 22:08:18 | I74: =IF(F74="A PORTEE",'DATA TRAQUE'!$M$2+TIME(0,$D$3,$E$3)+2*TIME('DATA TRAQUE'!G105,'DATA TRAQUE'!H105,'DATA TRAQUE'!I105)+TIME(0,$F$3,$G$3)," ") -> 18:16:34 | J74: =IF(F74="A PORTEE",I74-VLOOKUP($B$3,'DATA TRAQUE'!$B$41:$L$126,11),"") -> 18:01:19
B75: ='DATA TRAQUE'!B112 -> Rockslide | C75: ='DATA TRAQUE'!C112 -> 192556364 | D75: =SQRT(($C$6-'DATA TRAQUE'!D112)^2+(TRAQUE!$D$6-'DATA TRAQUE'!E112)^2) -> 7.071067812 | E75: =CONCATENATE('DATA TRAQUE'!G112,"h",'DATA TRAQUE'!H112,"min",'DATA TRAQUE'!I112,"s") -> 0h16min57s | G75: =IF(F75="A PORTEE",'DATA TRAQUE'!$M$2+TIME(0,$D$3,$E$3)+TIME('DATA TRAQUE'!G112,'DATA TRAQUE'!H112,'DATA TRAQUE'!I112)," ") ->  | H75: =IF(F75="A PORTEE",G75-VLOOKUP($B$3,'DATA TRAQUE'!$B$41:$L$126,11),"") ->  | I75: =IF(F75="A PORTEE",'DATA TRAQUE'!$M$2+TIME(0,$D$3,$E$3)+2*TIME('DATA TRAQUE'!G106,'DATA TRAQUE'!H106,'DATA TRAQUE'!I106)+TIME(0,$F$3,$G$3)," ") ->  | J75: =IF(F75="A PORTEE",I75-VLOOKUP($B$3,'DATA TRAQUE'!$B$41:$L$126,11),"") -> 
B76: ='DATA TRAQUE'!B113 -> Rofulus | C76: ='DATA TRAQUE'!C113 -> 599979 | D76: =SQRT(($C$6-'DATA TRAQUE'!D113)^2+(TRAQUE!$D$6-'DATA TRAQUE'!E113)^2) -> 65.12296062 | E76: =CONCATENATE('DATA TRAQUE'!G113,"h",'DATA TRAQUE'!H113,"min",'DATA TRAQUE'!I113,"s") -> 2h23min50s | G76: =IF(F76="A PORTEE",'DATA TRAQUE'!$M$2+TIME(0,$D$3,$E$3)+TIME('DATA TRAQUE'!G113,'DATA TRAQUE'!H113,'DATA TRAQUE'!I113)," ") ->  | H76: =IF(F76="A PORTEE",G76-VLOOKUP($B$3,'DATA TRAQUE'!$B$41:$L$126,11),"") ->  | I76: =IF(F76="A PORTEE",'DATA TRAQUE'!$M$2+TIME(0,$D$3,$E$3)+2*TIME('DATA TRAQUE'!G107,'DATA TRAQUE'!H107,'DATA TRAQUE'!I107)+TIME(0,$F$3,$G$3)," ") ->  | J76: =IF(F76="A PORTEE",I76-VLOOKUP($B$3,'DATA TRAQUE'!$B$41:$L$126,11),"") -> 
B77: ='DATA TRAQUE'!B114 -> ryuk44 | C77: ='DATA TRAQUE'!C114 -> 53860510 | D77: =SQRT(($C$6-'DATA TRAQUE'!D114)^2+(TRAQUE!$D$6-'DATA TRAQUE'!E114)^2) -> 111.0405331 | E77: =CONCATENATE('DATA TRAQUE'!G114,"h",'DATA TRAQUE'!H114,"min",'DATA TRAQUE'!I114,"s") -> 3h50min18s | G77: =IF(F77="A PORTEE",'DATA TRAQUE'!$M$2+TIME(0,$D$3,$E$3)+TIME('DATA TRAQUE'!G114,'DATA TRAQUE'!H114,'DATA TRAQUE'!I114)," ") ->  | H77: =IF(F77="A PORTEE",G77-VLOOKUP($B$3,'DATA TRAQUE'!$B$41:$L$126,11),"") ->  | I77: =IF(F77="A PORTEE",'DATA TRAQUE'!$M$2+TIME(0,$D$3,$E$3)+2*TIME('DATA TRAQUE'!G108,'DATA TRAQUE'!H108,'DATA TRAQUE'!I108)+TIME(0,$F$3,$G$3)," ") ->  | J77: =IF(F77="A PORTEE",I77-VLOOKUP($B$3,'DATA TRAQUE'!$B$41:$L$126,11),"") -> 
B78: ='DATA TRAQUE'!B115 -> Seiduna | C78: ='DATA TRAQUE'!C115 -> 184276 | D78: =SQRT(($C$6-'DATA TRAQUE'!D115)^2+(TRAQUE!$D$6-'DATA TRAQUE'!E115)^2) -> 109.0045871 | E78: =CONCATENATE('DATA TRAQUE'!G115,"h",'DATA TRAQUE'!H115,"min",'DATA TRAQUE'!I115,"s") -> 3h46min42s | G78: =IF(F78="A PORTEE",'DATA TRAQUE'!$M$2+TIME(0,$D$3,$E$3)+TIME('DATA TRAQUE'!G115,'DATA TRAQUE'!H115,'DATA TRAQUE'!I115)," ") ->  | H78: =IF(F78="A PORTEE",G78-VLOOKUP($B$3,'DATA TRAQUE'!$B$41:$L$126,11),"") ->  | I78: =IF(F78="A PORTEE",'DATA TRAQUE'!$M$2+TIME(0,$D$3,$E$3)+2*TIME('DATA TRAQUE'!G109,'DATA TRAQUE'!H109,'DATA TRAQUE'!I109)+TIME(0,$F$3,$G$3)," ") ->  | J78: =IF(F78="A PORTEE",I78-VLOOKUP($B$3,'DATA TRAQUE'!$B$41:$L$126,11),"") -> 
B79: ='DATA TRAQUE'!B116 -> sentih | C79: ='DATA TRAQUE'!C116 -> 12854744 | D79: =SQRT(($C$6-'DATA TRAQUE'!D116)^2+(TRAQUE!$D$6-'DATA TRAQUE'!E116)^2) -> 117.0384552 | E79: =CONCATENATE('DATA TRAQUE'!G116,"h",'DATA TRAQUE'!H116,"min",'DATA TRAQUE'!I116,"s") -> 4h0min47s | G79: =IF(F79="A PORTEE",'DATA TRAQUE'!$M$2+TIME(0,$D$3,$E$3)+TIME('DATA TRAQUE'!G116,'DATA TRAQUE'!H116,'DATA TRAQUE'!I116)," ") ->  | H79: =IF(F79="A PORTEE",G79-VLOOKUP($B$3,'DATA TRAQUE'!$B$41:$L$126,11),"") ->  | I79: =IF(F79="A PORTEE",'DATA TRAQUE'!$M$2+TIME(0,$D$3,$E$3)+2*TIME('DATA TRAQUE'!G110,'DATA TRAQUE'!H110,'DATA TRAQUE'!I110)+TIME(0,$F$3,$G$3)," ") ->  | J79: =IF(F79="A PORTEE",I79-VLOOKUP($B$3,'DATA TRAQUE'!$B$41:$L$126,11),"") -> 
B80: ='DATA TRAQUE'!B64 -> sergioo | C80: ='DATA TRAQUE'!C64 -> 29711962 | D80: =SQRT(($C$6-'DATA TRAQUE'!D64)^2+(TRAQUE!$D$6-'DATA TRAQUE'!E64)^2) -> 154.1492783 | E80: =CONCATENATE('DATA TRAQUE'!G64,"h",'DATA TRAQUE'!H64,"min",'DATA TRAQUE'!I64,"s") -> 5h1min47s | G80: =IF(F80="A PORTEE",'DATA TRAQUE'!$M$2+TIME(0,$D$3,$E$3)+TIME('DATA TRAQUE'!G64,'DATA TRAQUE'!H64,'DATA TRAQUE'!I64)," ") ->  | H80: =IF(F80="A PORTEE",G80-VLOOKUP($B$3,'DATA TRAQUE'!$B$41:$L$126,11),"") ->  | I80: =IF(F80="A PORTEE",'DATA TRAQUE'!$M$2+TIME(0,$D$3,$E$3)+2*TIME('DATA TRAQUE'!G111,'DATA TRAQUE'!H111,'DATA TRAQUE'!I111)+TIME(0,$F$3,$G$3)," ") ->  | J80: =IF(F80="A PORTEE",I80-VLOOKUP($B$3,'DATA TRAQUE'!$B$41:$L$126,11),"") -> 
B81: ='DATA TRAQUE'!B117 -> Shikamaru | C81: ='DATA TRAQUE'!C117 -> 8133785 | D81: =SQRT(($C$6-'DATA TRAQUE'!D117)^2+(TRAQUE!$D$6-'DATA TRAQUE'!E117)^2) -> 26.17250466 | E81: =CONCATENATE('DATA TRAQUE'!G117,"h",'DATA TRAQUE'!H117,"min",'DATA TRAQUE'!I117,"s") -> 1h1min3s | G81: =IF(F81="A PORTEE",'DATA TRAQUE'!$M$2+TIME(0,$D$3,$E$3)+TIME('DATA TRAQUE'!G117,'DATA TRAQUE'!H117,'DATA TRAQUE'!I117)," ") ->  | H81: =IF(F81="A PORTEE",G81-VLOOKUP($B$3,'DATA TRAQUE'!$B$41:$L$126,11),"") ->  | I81: =IF(F81="A PORTEE",'DATA TRAQUE'!$M$2+TIME(0,$D$3,$E$3)+2*TIME('DATA TRAQUE'!G112,'DATA TRAQUE'!H112,'DATA TRAQUE'!I112)+TIME(0,$F$3,$G$3)," ") ->  | J81: =IF(F81="A PORTEE",I81-VLOOKUP($B$3,'DATA TRAQUE'!$B$41:$L$126,11),"") -> 
B82: ='DATA TRAQUE'!B65 -> shub | C82: ='DATA TRAQUE'!C65 -> 728876 | D82: =SQRT(($C$6-'DATA TRAQUE'!D65)^2+(TRAQUE!$D$6-'DATA TRAQUE'!E65)^2) -> 140.9184161 | E82: =CONCATENATE('DATA TRAQUE'!G65,"h",'DATA TRAQUE'!H65,"min",'DATA TRAQUE'!I65,"s") -> 4h40min46s | G82: =IF(F82="A PORTEE",'DATA TRAQUE'!$M$2+TIME(0,$D$3,$E$3)+TIME('DATA TRAQUE'!G65,'DATA TRAQUE'!H65,'DATA TRAQUE'!I65)," ") ->  | H82: =IF(F82="A PORTEE",G82-VLOOKUP($B$3,'DATA TRAQUE'!$B$41:$L$126,11),"") ->  | I82: =IF(F82="A PORTEE",'DATA TRAQUE'!$M$2+TIME(0,$D$3,$E$3)+2*TIME('DATA TRAQUE'!G113,'DATA TRAQUE'!H113,'DATA TRAQUE'!I113)+TIME(0,$F$3,$G$3)," ") ->  | J82: =IF(F82="A PORTEE",I82-VLOOKUP($B$3,'DATA TRAQUE'!$B$41:$L$126,11),"") -> 
B83: ='DATA TRAQUE'!B66 -> Slipstream | C83: ='DATA TRAQUE'!C66 -> 104115 | D83: =SQRT(($C$6-'DATA TRAQUE'!D66)^2+(TRAQUE!$D$6-'DATA TRAQUE'!E66)^2) -> 6.08276253 | E83: =CONCATENATE('DATA TRAQUE'!G66,"h",'DATA TRAQUE'!H66,"min",'DATA TRAQUE'!I66,"s") -> 0h14min36s | G83: =IF(F83="A PORTEE",'DATA TRAQUE'!$M$2+TIME(0,$D$3,$E$3)+TIME('DATA TRAQUE'!G66,'DATA TRAQUE'!H66,'DATA TRAQUE'!I66)," ") ->  | H83: =IF(F83="A PORTEE",G83-VLOOKUP($B$3,'DATA TRAQUE'!$B$41:$L$126,11),"") ->  | I83: =IF(F83="A PORTEE",'DATA TRAQUE'!$M$2+TIME(0,$D$3,$E$3)+2*TIME('DATA TRAQUE'!G114,'DATA TRAQUE'!H114,'DATA TRAQUE'!I114)+TIME(0,$F$3,$G$3)," ") ->  | J83: =IF(F83="A PORTEE",I83-VLOOKUP($B$3,'DATA TRAQUE'!$B$41:$L$126,11),"") -> 
B84: ='DATA TRAQUE'!B118 -> spetsnaz | C84: ='DATA TRAQUE'!C118 -> 3500000000 | D84: =SQRT(($C$6-'DATA TRAQUE'!D118)^2+(TRAQUE!$D$6-'DATA TRAQUE'!E118)^2) -> 56.30275304 | E84: =CONCATENATE('DATA TRAQUE'!G118,"h",'DATA TRAQUE'!H118,"min",'DATA TRAQUE'!I118,"s") -> 2h5min53s | G84: =IF(F84="A PORTEE",'DATA TRAQUE'!$M$2+TIME(0,$D$3,$E$3)+TIME('DATA TRAQUE'!G118,'DATA TRAQUE'!H118,'DATA TRAQUE'!I118)," ") ->  | H84: =IF(F84="A PORTEE",G84-VLOOKUP($B$3,'DATA TRAQUE'!$B$41:$L$126,11),"") ->  | I84: =IF(F84="A PORTEE",'DATA TRAQUE'!$M$2+TIME(0,$D$3,$E$3)+2*TIME('DATA TRAQUE'!G115,'DATA TRAQUE'!H115,'DATA TRAQUE'!I115)+TIME(0,$F$3,$G$3)," ") ->  | J84: =IF(F84="A PORTEE",I84-VLOOKUP($B$3,'DATA TRAQUE'!$B$41:$L$126,11),"") -> 
B85: ='DATA TRAQUE'!B119 -> svanhilde | C85: ='DATA TRAQUE'!C119 -> 2500000000 | D85: =SQRT(($C$6-'DATA TRAQUE'!D119)^2+(TRAQUE!$D$6-'DATA TRAQUE'!E119)^2) -> 52 | E85: =CONCATENATE('DATA TRAQUE'!G119,"h",'DATA TRAQUE'!H119,"min",'DATA TRAQUE'!I119,"s") -> 1h56min58s | G85: =IF(F85="A PORTEE",'DATA TRAQUE'!$M$2+TIME(0,$D$3,$E$3)+TIME('DATA TRAQUE'!G119,'DATA TRAQUE'!H119,'DATA TRAQUE'!I119)," ") ->  | H85: =IF(F85="A PORTEE",G85-VLOOKUP($B$3,'DATA TRAQUE'!$B$41:$L$126,11),"") ->  | I85: =IF(F85="A PORTEE",'DATA TRAQUE'!$M$2+TIME(0,$D$3,$E$3)+2*TIME('DATA TRAQUE'!G116,'DATA TRAQUE'!H116,'DATA TRAQUE'!I116)+TIME(0,$F$3,$G$3)," ") ->  | J85: =IF(F85="A PORTEE",I85-VLOOKUP($B$3,'DATA TRAQUE'!$B$41:$L$126,11),"") -> 
B86: ='DATA TRAQUE'!B120 -> Taouret | C86: ='DATA TRAQUE'!C120 -> 688628575 | D86: =SQRT(($C$6-'DATA TRAQUE'!D120)^2+(TRAQUE!$D$6-'DATA TRAQUE'!E120)^2) -> 69.28924881 | E86: =CONCATENATE('DATA TRAQUE'!G120,"h",'DATA TRAQUE'!H120,"min",'DATA TRAQUE'!I120,"s") -> 2h32min9s | F86: A PORTEE | G86: =IF(F86="A PORTEE",'DATA TRAQUE'!$M$2+TIME(0,$D$3,$E$3)+TIME('DATA TRAQUE'!G120,'DATA TRAQUE'!H120,'DATA TRAQUE'!I120)," ") -> 20:03:39 | H86: =IF(F86="A PORTEE",G86-VLOOKUP($B$3,'DATA TRAQUE'!$B$41:$L$126,11),"") -> 19:48:24 | I86: =IF(F86="A PORTEE",'DATA TRAQUE'!$M$2+TIME(0,$D$3,$E$3)+2*TIME('DATA TRAQUE'!G117,'DATA TRAQUE'!H117,'DATA TRAQUE'!I117)+TIME(0,$F$3,$G$3)," ") -> 19:34:36 | J86: =IF(F86="A PORTEE",I86-VLOOKUP($B$3,'DATA TRAQUE'!$B$41:$L$126,11),"") -> 19:19:21
B87: ='DATA TRAQUE'!B121 -> TheDentist | C87: ='DATA TRAQUE'!C121 -> 14367717 | D87: =SQRT(($C$6-'DATA TRAQUE'!D121)^2+(TRAQUE!$D$6-'DATA TRAQUE'!E121)^2) -> 119.4194289 | E87: =CONCATENATE('DATA TRAQUE'!G121,"h",'DATA TRAQUE'!H121,"min",'DATA TRAQUE'!I121,"s") -> 4h4min54s | G87: =IF(F87="A PORTEE",'DATA TRAQUE'!$M$2+TIME(0,$D$3,$E$3)+TIME('DATA TRAQUE'!G121,'DATA TRAQUE'!H121,'DATA TRAQUE'!I121)," ") ->  | H87: =IF(F87="A PORTEE",G87-VLOOKUP($B$3,'DATA TRAQUE'!$B$41:$L$126,11),"") ->  | I87: =IF(F87="A PORTEE",'DATA TRAQUE'!$M$2+TIME(0,$D$3,$E$3)+2*TIME('DATA TRAQUE'!G118,'DATA TRAQUE'!H118,'DATA TRAQUE'!I118)+TIME(0,$F$3,$G$3)," ") ->  | J87: =IF(F87="A PORTEE",I87-VLOOKUP($B$3,'DATA TRAQUE'!$B$41:$L$126,11),"") -> 
B88: ='DATA TRAQUE'!B122 -> Thunderbird | C88: ='DATA TRAQUE'!C122 -> 2202808830 | D88: =SQRT(($C$6-'DATA TRAQUE'!D122)^2+(TRAQUE!$D$6-'DATA TRAQUE'!E122)^2) -> 4 | E88: =CONCATENATE('DATA TRAQUE'!G122,"h",'DATA TRAQUE'!H122,"min",'DATA TRAQUE'!I122,"s") -> 0h9min38s | G88: =IF(F88="A PORTEE",'DATA TRAQUE'!$M$2+TIME(0,$D$3,$E$3)+TIME('DATA TRAQUE'!G122,'DATA TRAQUE'!H122,'DATA TRAQUE'!I122)," ") ->  | H88: =IF(F88="A PORTEE",G88-VLOOKUP($B$3,'DATA TRAQUE'!$B$41:$L$126,11),"") ->  | I88: =IF(F88="A PORTEE",'DATA TRAQUE'!$M$2+TIME(0,$D$3,$E$3)+2*TIME('DATA TRAQUE'!G119,'DATA TRAQUE'!H119,'DATA TRAQUE'!I119)+TIME(0,$F$3,$G$3)," ") ->  | J88: =IF(F88="A PORTEE",I88-VLOOKUP($B$3,'DATA TRAQUE'!$B$41:$L$126,11),"") -> 
B89: ='DATA TRAQUE'!B123 -> Tradjette | C89: ='DATA TRAQUE'!C123 -> 34256999 | D89: =SQRT(($C$6-'DATA TRAQUE'!D123)^2+(TRAQUE!$D$6-'DATA TRAQUE'!E123)^2) -> 159.0125781 | E89: =CONCATENATE('DATA TRAQUE'!G123,"h",'DATA TRAQUE'!H123,"min",'DATA TRAQUE'!I123,"s") -> 5h9min19s | G89: =IF(F89="A PORTEE",'DATA TRAQUE'!$M$2+TIME(0,$D$3,$E$3)+TIME('DATA TRAQUE'!G123,'DATA TRAQUE'!H123,'DATA TRAQUE'!I123)," ") ->  | H89: =IF(F89="A PORTEE",G89-VLOOKUP($B$3,'DATA TRAQUE'!$B$41:$L$126,11),"") ->  | I89: =IF(F89="A PORTEE",'DATA TRAQUE'!$M$2+TIME(0,$D$3,$E$3)+2*TIME('DATA TRAQUE'!G120,'DATA TRAQUE'!H120,'DATA TRAQUE'!I120)+TIME(0,$F$3,$G$3)," ") ->  | J89: =IF(F89="A PORTEE",I89-VLOOKUP($B$3,'DATA TRAQUE'!$B$41:$L$126,11),"") -> 
B90: ='DATA TRAQUE'!B124 -> vinkou | C90: ='DATA TRAQUE'!C124 -> 2046872542 | D90: =SQRT(($C$6-'DATA TRAQUE'!D124)^2+(TRAQUE!$D$6-'DATA TRAQUE'!E124)^2) -> 74.30343195 | E90: =CONCATENATE('DATA TRAQUE'!G124,"h",'DATA TRAQUE'!H124,"min",'DATA TRAQUE'!I124,"s") -> 2h42min2s | G90: =IF(F90="A PORTEE",'DATA TRAQUE'!$M$2+TIME(0,$D$3,$E$3)+TIME('DATA TRAQUE'!G124,'DATA TRAQUE'!H124,'DATA TRAQUE'!I124)," ") ->  | H90: =IF(F90="A PORTEE",G90-VLOOKUP($B$3,'DATA TRAQUE'!$B$41:$L$126,11),"") ->  | I90: =IF(F90="A PORTEE",'DATA TRAQUE'!$M$2+TIME(0,$D$3,$E$3)+2*TIME('DATA TRAQUE'!G121,'DATA TRAQUE'!H121,'DATA TRAQUE'!I121)+TIME(0,$F$3,$G$3)," ") ->  | J90: =IF(F90="A PORTEE",I90-VLOOKUP($B$3,'DATA TRAQUE'!$B$41:$L$126,11),"") -> 
B91: ='DATA TRAQUE'!B67 -> waylander | C91: ='DATA TRAQUE'!C67 -> 145222702 | D91: =SQRT(($C$6-'DATA TRAQUE'!D67)^2+(TRAQUE!$D$6-'DATA TRAQUE'!E67)^2) -> 142.1724305 | E91: =CONCATENATE('DATA TRAQUE'!G67,"h",'DATA TRAQUE'!H67,"min",'DATA TRAQUE'!I67,"s") -> 4h42min48s | G91: =IF(F91="A PORTEE",'DATA TRAQUE'!$M$2+TIME(0,$D$3,$E$3)+TIME('DATA TRAQUE'!G67,'DATA TRAQUE'!H67,'DATA TRAQUE'!I67)," ") ->  | H91: =IF(F91="A PORTEE",G91-VLOOKUP($B$3,'DATA TRAQUE'!$B$41:$L$126,11),"") ->  | I91: =IF(F91="A PORTEE",'DATA TRAQUE'!$M$2+TIME(0,$D$3,$E$3)+2*TIME('DATA TRAQUE'!G122,'DATA TRAQUE'!H122,'DATA TRAQUE'!I122)+TIME(0,$F$3,$G$3)," ") ->  | J91: =IF(F91="A PORTEE",I91-VLOOKUP($B$3,'DATA TRAQUE'!$B$41:$L$126,11),"") -> 
B92: ='DATA TRAQUE'!B125 -> weaver | C92: ='DATA TRAQUE'!C125 -> 12457093 | D92: =SQRT(($C$6-'DATA TRAQUE'!D125)^2+(TRAQUE!$D$6-'DATA TRAQUE'!E125)^2) -> 159.1540135 | E92: =CONCATENATE('DATA TRAQUE'!G125,"h",'DATA TRAQUE'!H125,"min",'DATA TRAQUE'!I125,"s") -> 5h9min32s | G92: =IF(F92="A PORTEE",'DATA TRAQUE'!$M$2+TIME(0,$D$3,$E$3)+TIME('DATA TRAQUE'!G125,'DATA TRAQUE'!H125,'DATA TRAQUE'!I125)," ") ->  | H92: =IF(F92="A PORTEE",G92-VLOOKUP($B$3,'DATA TRAQUE'!$B$41:$L$126,11),"") ->  | I92: =IF(F92="A PORTEE",'DATA TRAQUE'!$M$2+TIME(0,$D$3,$E$3)+2*TIME('DATA TRAQUE'!G123,'DATA TRAQUE'!H123,'DATA TRAQUE'!I123)+TIME(0,$F$3,$G$3)," ") ->  | J92: =IF(F92="A PORTEE",I92-VLOOKUP($B$3,'DATA TRAQUE'!$B$41:$L$126,11),"") -> 
B93: ='DATA TRAQUE'!B68 -> weed | C93: ='DATA TRAQUE'!C68 -> 1827888 | D93: =SQRT(($C$6-'DATA TRAQUE'!D68)^2+(TRAQUE!$D$6-'DATA TRAQUE'!E68)^2) -> 44.04543109 | E93: =CONCATENATE('DATA TRAQUE'!G68,"h",'DATA TRAQUE'!H68,"min",'DATA TRAQUE'!I68,"s") -> 1h40min11s | G93: =IF(F93="A PORTEE",'DATA TRAQUE'!$M$2+TIME(0,$D$3,$E$3)+TIME('DATA TRAQUE'!G68,'DATA TRAQUE'!H68,'DATA TRAQUE'!I68)," ") ->  | H93: =IF(F93="A PORTEE",G93-VLOOKUP($B$3,'DATA TRAQUE'!$B$41:$L$126,11),"") ->  | I93: =IF(F93="A PORTEE",'DATA TRAQUE'!$M$2+TIME(0,$D$3,$E$3)+2*TIME('DATA TRAQUE'!G124,'DATA TRAQUE'!H124,'DATA TRAQUE'!I124)+TIME(0,$F$3,$G$3)," ") ->  | J93: =IF(F93="A PORTEE",I93-VLOOKUP($B$3,'DATA TRAQUE'!$B$41:$L$126,11),"") -> 
B94: ='DATA TRAQUE'!B126 -> Wolverine | C94: ='DATA TRAQUE'!C126 -> 2500000000 | D94: =SQRT(($C$6-'DATA TRAQUE'!D126)^2+(TRAQUE!$D$6-'DATA TRAQUE'!E126)^2) -> 138.0326048 | E94: =CONCATENATE('DATA TRAQUE'!G126,"h",'DATA TRAQUE'!H126,"min",'DATA TRAQUE'!I126,"s") -> 4h36min5s | G94: =IF(F94="A PORTEE",'DATA TRAQUE'!$M$2+TIME(0,$D$3,$E$3)+TIME('DATA TRAQUE'!G126,'DATA TRAQUE'!H126,'DATA TRAQUE'!I126)," ") ->  | H94: =IF(F94="A PORTEE",G94-VLOOKUP($B$3,'DATA TRAQUE'!$B$41:$L$126,11),"") ->  | I94: =IF(F94="A PORTEE",'DATA TRAQUE'!$M$2+TIME(0,$D$3,$E$3)+2*TIME('DATA TRAQUE'!G125,'DATA TRAQUE'!H125,'DATA TRAQUE'!I125)+TIME(0,$F$3,$G$3)," ") ->  | J94: =IF(F94="A PORTEE",I94-VLOOKUP($B$3,'DATA TRAQUE'!$B$41:$L$126,11),"") -> 
B95: ='DATA TRAQUE'!B69 -> Zerek | C95: ='DATA TRAQUE'!C69 -> 305693 | D95: =SQRT(($C$6-'DATA TRAQUE'!D69)^2+(TRAQUE!$D$6-'DATA TRAQUE'!E69)^2) -> 113 | E95: =CONCATENATE('DATA TRAQUE'!G69,"h",'DATA TRAQUE'!H69,"min",'DATA TRAQUE'!I69,"s") -> 3h53min45s | G95: =IF(F95="A PORTEE",'DATA TRAQUE'!$M$2+TIME(0,$D$3,$E$3)+TIME('DATA TRAQUE'!G69,'DATA TRAQUE'!H69,'DATA TRAQUE'!I69)," ") ->  | H95: =IF(F95="A PORTEE",G95-VLOOKUP($B$3,'DATA TRAQUE'!$B$41:$L$126,11),"") ->  | I95: =IF(F95="A PORTEE",'DATA TRAQUE'!$M$2+TIME(0,$D$3,$E$3)+2*TIME('DATA TRAQUE'!G126,'DATA TRAQUE'!H126,'DATA TRAQUE'!I126)+TIME(0,$F$3,$G$3)," ") ->  | J95: =IF(F95="A PORTEE",I95-VLOOKUP($B$3,'DATA TRAQUE'!$B$41:$L$126,11),"") -> 
B186: =LXM!A4 -> _Angel_
B187: =LXM!A5 -> _diablo_
B188: =LXM!A6 -> _Wolverine_
B189: =LXM!A7 -> 4midiable
B190: =LXM!A8 -> AB64
B191: =LXM!A9 -> Allerdyce
B192: =LXM!A10 -> bubulle
B193: =LXM!A11 -> creamy
B194: =LXM!A12 -> crunchy
B195: =LXM!A13 -> Cyclope
B196: =LXM!A14 -> Domino
B197: =LXM!A15 -> Eltornado
B198: =LXM!A16 -> Fleau
B199: =LXM!A17 -> Formidabilis
B200: =LXM!A18 -> Jericho
B201: =LXM!A19 -> kandide
B202: =LXM!A20 -> laika
B203: =LXM!A21 -> Matteo37
B204: =LXM!A22 -> maxbo
B205: =LXM!A23 -> moontribe
B206: =LXM!A24 -> mouche
B207: =LXM!A25 -> Norrin-Radd
B208: =LXM!A26 -> Prend-Ta-Claque
B209: =LXM!A27 -> sergioo
B210: =LXM!A28 -> shub
B211: =LXM!A29 -> Slipstream
B212: =LXM!A30 -> waylander
B213: =LXM!A31 -> weed
B214: =LXM!A32 -> Zerek

Sheet DATA BES
B1: Distance | C1: Temps (s) | D1: heures | E1: minutes | F1: secondes
A2: agecanonix | B2: =SQRT((BES!$L$1-BES!E4)^2+(BES!$N$1-BES!F4)^2) -> 98.08159868 | C2: =24*3600*(1-EXP(-B2/350))*7.375*(0.9^LXM!$H$1) -> 11179.60017 | D2: =ROUNDDOWN(C2/(60*60),0) -> 3 | E2: =ROUNDDOWN(((C2-D2*60*60)/60),0) -> 6 | F2: =ROUNDUP((C2-D2*60*60-E2*60),0) -> 20 | L2: =BES!D4 ->  | M2: =BES!A4 -> agecanonix | N2: =BES!C4 -> 3461184525
A3: aubertignac | B3: =SQRT((BES!$L$1-BES!E5)^2+(BES!$N$1-BES!F5)^2) -> 121.4125199 | C3: =24*3600*(1-EXP(-B3/350))*7.375*(0.9^LXM!$H$1) -> 13408.56934 | D3: =ROUNDDOWN(C3/(60*60),0) -> 3 | E3: =ROUNDDOWN(((C3-D3*60*60)/60),0) -> 43 | F3: =ROUNDUP((C3-D3*60*60-E3*60),0) -> 29 | L3: =BES!D5 ->  | M3: =BES!A5 -> aubertignac | N3: =BES!C5 -> 87905571
A4: Azkanith | B4: =SQRT((BES!$L$1-BES!E6)^2+(BES!$N$1-BES!F6)^2) -> 112.6410227 | C4: =24*3600*(1-EXP(-B4/350))*7.375*(0.9^LXM!$H$1) -> 12587.94594 | D4: 3 | E4: 29 | F4: 48 | H4: Pour temps | L4: =BES!D6 ->  | M4: =BES!A6 -> Azkanith | N4: =BES!C6 -> 3500000000
A5: Bactroban | B5: =SQRT((BES!$L$1-BES!E7)^2+(BES!$N$1-BES!F7)^2) -> 58.13776741 | C5: =24*3600*(1-EXP(-B5/350))*7.375*(0.9^LXM!$H$1) -> 7000.968303 | D5: 1 | E5: 56 | F5: 41 | L5: =BES!D7 ->  | M5: =BES!A7 -> Bactroban | N5: =BES!C7 -> 2154874164
A6: ben57 | B6: =SQRT((BES!$L$1-BES!E8)^2+(BES!$N$1-BES!F8)^2) -> 167.7647162 | C6: =24*3600*(1-EXP(-B6/350))*7.375*(0.9^LXM!$H$1) -> 17419.51305 | D6: 4 | E6: 50 | F6: 20 | L6: =BES!D8 ->  | M6: =BES!A8 -> ben57 | N6: =BES!C8 -> 149380852
A7: bib595 | B7: =SQRT((BES!$L$1-BES!E9)^2+(BES!$N$1-BES!F9)^2) -> 64.12487817 | C7: =24*3600*(1-EXP(-B7/350))*7.375*(0.9^LXM!$H$1) -> 7658.079354 | D7: 2 | E7: 7 | F7: 39 | L7: =BES!D9 ->  | M7: =BES!A9 -> bib595 | N7: =BES!C9 -> 2905019
A8: bill | B8: =SQRT((BES!$L$1-BES!E10)^2+(BES!$N$1-BES!F10)^2) -> 61.07372594 | C8: =24*3600*(1-EXP(-B8/350))*7.375*(0.9^LXM!$H$1) -> 7324.606946 | D8: 2 | E8: 2 | F8: 5 | L8: =BES!D10 ->  | M8: =BES!A10 -> bill | N8: =BES!C10 -> 54154338
A9: Bruxelles | B9: =SQRT((BES!$L$1-BES!E11)^2+(BES!$N$1-BES!F11)^2) -> 119.6411301 | C9: =24*3600*(1-EXP(-B9/350))*7.375*(0.9^LXM!$H$1) -> 13244.49887 | D9: 3 | E9: 40 | F9: 45 | L9: =BES!D11 ->  | M9: =BES!A11 -> Bruxelles | N9: =BES!C11 -> 3200000000
A10: Chryom | B10: =SQRT((BES!$L$1-BES!E12)^2+(BES!$N$1-BES!F12)^2) -> 115.2128465 | C10: =24*3600*(1-EXP(-B10/350))*7.375*(0.9^LXM!$H$1) -> 12830.68932 | D10: 3 | E10: 33 | F10: 51 | L10: =BES!D12 ->  | M10: =BES!A12 -> Chryom | N10: =BES!C12 -> 9996200
A11: CroolisVar | B11: =SQRT((BES!$L$1-BES!E13)^2+(BES!$N$1-BES!F13)^2) -> 41.86884283 | C11: =24*3600*(1-EXP(-B11/350))*7.375*(0.9^LXM!$H$1) -> 5157.55706 | D11: 1 | E11: 25 | F11: 58 | L11: =BES!D14 ->  | M11: =BES!A14 -> Damping | N11: =BES!C14 -> 16221345
A12: Damping | B12: =SQRT((BES!$L$1-BES!E14)^2+(BES!$N$1-BES!F14)^2) -> 97.86725704 | C12: =24*3600*(1-EXP(-B12/350))*7.375*(0.9^LXM!$H$1) -> 11158.42601 | D12: 3 | E12: 5 | F12: 59 | L12: =BES!D15 ->  | M12: =BES!A15 -> DrAnts | N12: =BES!C15 -> 3848814
A13: DrAnts | B13: =SQRT((BES!$L$1-BES!E15)^2+(BES!$N$1-BES!F15)^2) -> 103.0776406 | C13: =24*3600*(1-EXP(-B13/350))*7.375*(0.9^LXM!$H$1) -> 11669.48825 | D13: 3 | E13: 14 | F13: 30 | L13: =BES!D16 ->  | M13: =BES!A16 -> Drusilla | N13: =BES!C16 -> 1855225863
A14: Drusilla | B14: =SQRT((BES!$L$1-BES!E16)^2+(BES!$N$1-BES!F16)^2) -> 150.7481343 | C14: =24*3600*(1-EXP(-B14/350))*7.375*(0.9^LXM!$H$1) -> 16008.36169 | D14: 4 | E14: 26 | F14: 49 | L14: =BES!D17 ->  | M14: =BES!A17 -> EllaVonZedanltha | N14: =BES!C17 -> 1952804
A15: EllaVonZedanltha | B15: =SQRT((BES!$L$1-BES!E17)^2+(BES!$N$1-BES!F17)^2) -> 114.7388339 | C15: =24*3600*(1-EXP(-B15/350))*7.375*(0.9^LXM!$H$1) -> 12786.08328 | D15: 3 | E15: 33 | F15: 7 | L15: =BES!D18 ->  | M15: =BES!A18 -> Flipper1 | N15: =BES!C18 -> 92127906
A16: Flipper1 | B16: =SQRT((BES!$L$1-BES!E18)^2+(BES!$N$1-BES!F18)^2) -> 104.1729331 | C16: =24*3600*(1-EXP(-B16/350))*7.375*(0.9^LXM!$H$1) -> 11775.95603 | D16: 3 | E16: 16 | F16: 16 | L16: =BES!D19 ->  | M16: =BES!A19 -> Greeny | N16: =BES!C19 -> 26570199
A17: Greeny | B17: =SQRT((BES!$L$1-BES!E19)^2+(BES!$N$1-BES!F19)^2) -> 123.199026 | C17: =24*3600*(1-EXP(-B17/350))*7.375*(0.9^LXM!$H$1) -> 13573.20099 | D17: 3 | E17: 46 | F17: 14 | L17: =BES!D20 ->  | M17: =BES!A20 -> Gueust | N17: =BES!C20 -> 1480632393
A18: Gueust | B18: =SQRT((BES!$L$1-BES!E20)^2+(BES!$N$1-BES!F20)^2) -> 212.3982109 | C18: =24*3600*(1-EXP(-B18/350))*7.375*(0.9^LXM!$H$1) -> 20810.80083 | D18: 5 | E18: 46 | F18: 51 | L18: =BES!D23 ->  | M18: =BES!A23 -> Lesqual | N18: =BES!C23 -> 4423829
A19: hador | B19: =SQRT((BES!$L$1-BES!E21)^2+(BES!$N$1-BES!F21)^2) -> 17.02938637 | C19: =24*3600*(1-EXP(-B19/350))*7.375*(0.9^LXM!$H$1) -> 2172.435604 | D19: 0 | E19: 36 | F19: 13 | L19: =BES!D24 ->  | M19: =BES!A24 -> lipoussou | N19: =BES!C24 -> 11917308
A20: Ishigo | B20: =SQRT((BES!$L$1-BES!E22)^2+(BES!$N$1-BES!F22)^2) -> 70.34912935 | C20: =24*3600*(1-EXP(-B20/350))*7.375*(0.9^LXM!$H$1) -> 8329.404378 | D20: 2 | E20: 18 | F20: 50 | L20: =BES!D25 ->  | M20: =BES!A25 -> Lockheed | N20: =BES!C25 -> 11216156
A21: Lesqual | B21: =SQRT((BES!$L$1-BES!E23)^2+(BES!$N$1-BES!F23)^2) -> 122.2006547 | C21: =24*3600*(1-EXP(-B21/350))*7.375*(0.9^LXM!$H$1) -> 13481.30181 | D21: 3 | E21: 44 | F21: 42 | L21: =BES!D26 ->  | M21: =BES!A26 -> MagnetO | N21: =BES!C26 -> 111707
A22: lipoussou | B22: =SQRT((BES!$L$1-BES!E24)^2+(BES!$N$1-BES!F24)^2) -> 35.38361203 | C22: =24*3600*(1-EXP(-B22/350))*7.375*(0.9^LXM!$H$1) -> 4398.502336 | D22: 1 | E22: 13 | F22: 19 | L22: =BES!D27 ->  | M22: =BES!A27 -> marchombre | N22: =BES!C27 -> 1650134494
A23: Lockheed | B23: =SQRT((BES!$L$1-BES!E25)^2+(BES!$N$1-BES!F25)^2) -> 12.36931688 | C23: =24*3600*(1-EXP(-B23/350))*7.375*(0.9^LXM!$H$1) -> 1588.41725 | D23: 0 | E23: 26 | F23: 29 | L23: =BES!D28 ->  | M23: =BES!A28 -> Melissa | N23: =BES!C28 -> 4325226
A24: MagnetO | B24: =SQRT((BES!$L$1-BES!E26)^2+(BES!$N$1-BES!F26)^2) -> 10.04987562 | C24: =24*3600*(1-EXP(-B24/350))*7.375*(0.9^LXM!$H$1) -> 1294.824518 | D24: 0 | E24: 21 | F24: 35 | L24: =BES!D29 ->  | M24: =BES!A29 -> MilesGloriosus | N24: =BES!C29 -> 1229557
A25: marchombre | B25: =SQRT((BES!$L$1-BES!E27)^2+(BES!$N$1-BES!F27)^2) -> 67 | C25: =24*3600*(1-EXP(-B25/350))*7.375*(0.9^LXM!$H$1) -> 7969.663496 | D25: 2 | E25: 12 | F25: 50 | L25: =BES!D30 ->  | M25: =BES!A30 -> miloveam | N25: =BES!C30 -> 10733921
A26: Melissa | B26: =SQRT((BES!$L$1-BES!E28)^2+(BES!$N$1-BES!F28)^2) -> 144.0069443 | C26: =24*3600*(1-EXP(-B26/350))*7.375*(0.9^LXM!$H$1) -> 15430.07714 | D26: 4 | E26: 17 | F26: 11 | L26: =BES!D31 ->  | M26: =BES!A31 -> Mime | N26: =BES!C31 -> 1741606
A27: MilesGloriosus | B27: =SQRT((BES!$L$1-BES!E29)^2+(BES!$N$1-BES!F29)^2) -> 79.76214641 | C27: =24*3600*(1-EXP(-B27/350))*7.375*(0.9^LXM!$H$1) -> 9322.246632 | D27: 2 | E27: 35 | F27: 23 | L27: =BES!D33 ->  | M27: =BES!A33 -> Morphy | N27: =BES!C33 -> 1927950
A28: miloveam | B28: =SQRT((BES!$L$1-BES!E30)^2+(BES!$N$1-BES!F30)^2) -> 133.37541 | C28: =24*3600*(1-EXP(-B28/350))*7.375*(0.9^LXM!$H$1) -> 14495.12507 | D28: 4 | E28: 1 | F28: 36 | L28: =BES!D34 ->  | M28: =BES!A34 -> Myvin | N28: =BES!C34 -> 1983940382
A29: Mime | B29: =SQRT((BES!$L$1-BES!E31)^2+(BES!$N$1-BES!F31)^2) -> 45.04442252 | C29: =24*3600*(1-EXP(-B29/350))*7.375*(0.9^LXM!$H$1) -> 5524.139937 | D29: 1 | E29: 32 | F29: 5 | L29: =BES!D35 ->  | M29: =BES!A35 -> osman | N29: =BES!C35 -> 953794
A30: Mimic | B30: =SQRT((BES!$L$1-BES!E32)^2+(BES!$N$1-BES!F32)^2) -> 28 | C30: =24*3600*(1-EXP(-B30/350))*7.375*(0.9^LXM!$H$1) -> 3517.0012 | D30: 0 | E30: 58 | F30: 38 | L30: =BES!D36 ->  | M30: =BES!A36 -> pacpac001 | N30: =BES!C36 -> 2291704
A31: Morphy | B31: =SQRT((BES!$L$1-BES!E33)^2+(BES!$N$1-BES!F33)^2) -> 168.0773631 | C31: =24*3600*(1-EXP(-B31/350))*7.375*(0.9^LXM!$H$1) -> 17444.80378 | D31: 4 | E31: 50 | F31: 45 | L31: =BES!D37 ->  | M31: =BES!A37 -> Panda | N31: =BES!C37 -> 74522661
A32: Myvin | B32: =SQRT((BES!$L$1-BES!E34)^2+(BES!$N$1-BES!F34)^2) -> 136.6199107 | C32: =24*3600*(1-EXP(-B32/350))*7.375*(0.9^LXM!$H$1) -> 14783.46793 | D32: 4 | E32: 6 | F32: 24 | L32: =BES!D38 ->  | M32: =BES!A38 -> pANTSu | N32: =BES!C38 -> 1909810001
A33: osman | B33: =SQRT((BES!$L$1-BES!E35)^2+(BES!$N$1-BES!F35)^2) -> 145.0310312 | C33: =24*3600*(1-EXP(-B33/350))*7.375*(0.9^LXM!$H$1) -> 15518.64625 | D33: 4 | E33: 18 | F33: 39 | L33: =BES!D40 ->  | M33: =BES!A40 -> Pinou | N33: =BES!C40 -> 7212325
A34: pacpac001 | B34: =SQRT((BES!$L$1-BES!E36)^2+(BES!$N$1-BES!F36)^2) -> 122.40915 | C34: =24*3600*(1-EXP(-B34/350))*7.375*(0.9^LXM!$H$1) -> 13500.51528 | D34: 3 | E34: 45 | F34: 1 | L34: =BES!D41 ->  | M34: =BES!A41 -> pluginbaby | N34: =BES!C41 -> 12705822
A35: Panda | B35: =SQRT((BES!$L$1-BES!E37)^2+(BES!$N$1-BES!F37)^2) -> 138.5207566 | C35: =24*3600*(1-EXP(-B35/350))*7.375*(0.9^LXM!$H$1) -> 14951.16093 | D35: 4 | E35: 9 | F35: 12 | L35: =BES!D42 ->  | M35: =BES!A42 -> Quivala | N35: =BES!C42 -> 9761369
A36: pANTSu | B36: =SQRT((BES!$L$1-BES!E38)^2+(BES!$N$1-BES!F38)^2) -> 119.707978 | C36: =24*3600*(1-EXP(-B36/350))*7.375*(0.9^LXM!$H$1) -> 13250.70558 | D36: 3 | E36: 40 | F36: 51 | L36: =BES!D43 ->  | M36: =BES!A43 -> Reex | N36: =BES!C43 -> 1332809
A37: Phenixx | B37: =SQRT((BES!$L$1-BES!E39)^2+(BES!$N$1-BES!F39)^2) -> 12.04159458 | C37: =24*3600*(1-EXP(-B37/350))*7.375*(0.9^LXM!$H$1) -> 1547.052402 | D37: 0 | E37: 25 | F37: 48 | L37: =BES!D44 ->  | M37: =BES!A44 -> riblibli | N37: =BES!C44 -> 194929
A38: Pinou | B38: =SQRT((BES!$L$1-BES!E40)^2+(BES!$N$1-BES!F40)^2) -> 154.3794028 | C38: =24*3600*(1-EXP(-B38/350))*7.375*(0.9^LXM!$H$1) -> 16315.28038 | D38: 4 | E38: 31 | F38: 56 | L38: =BES!D46 ->  | M38: =BES!A46 -> Rockslide | N38: =BES!C46 -> 192556364
A39: pluginbaby | B39: =SQRT((BES!$L$1-BES!E41)^2+(BES!$N$1-BES!F41)^2) -> 151.198545 | C39: =24*3600*(1-EXP(-B39/350))*7.375*(0.9^LXM!$H$1) -> 16046.6041 | D39: 4 | E39: 27 | F39: 27 | L39: =BES!D47 ->  | M39: =BES!A47 -> Rofulus | N39: =BES!C47 -> 599979
A40: Quivala | B40: =SQRT((BES!$L$1-BES!E42)^2+(BES!$N$1-BES!F42)^2) -> 41.03656906 | C40: =24*3600*(1-EXP(-B40/350))*7.375*(0.9^LXM!$H$1) -> 5060.929606 | D40: 1 | E40: 24 | F40: 21 | L40: =BES!D48 ->  | M40: =BES!A48 -> ryuk44 | N40: =BES!C48 -> 53860510
A41: Reex | B41: =SQRT((BES!$L$1-BES!E43)^2+(BES!$N$1-BES!F43)^2) -> 28.28427125 | C41: =24*3600*(1-EXP(-B41/350))*7.375*(0.9^LXM!$H$1) -> 3551.284568 | D41: 0 | E41: 59 | F41: 12 | L41: =BES!D49 ->  | M41: =BES!A49 -> Seiduna | N41: =BES!C49 -> 184276
A42: riblibli | B42: =SQRT((BES!$L$1-BES!E44)^2+(BES!$N$1-BES!F44)^2) -> 149.7765002 | C42: =24*3600*(1-EXP(-B42/350))*7.375*(0.9^LXM!$H$1) -> 15925.69669 | D42: 4 | E42: 25 | F42: 26 | L42: =BES!D50 ->  | M42: =BES!A50 -> sentih | N42: =BES!C50 -> 12854744
A43: Rita | B43: =SQRT((BES!$L$1-BES!E45)^2+(BES!$N$1-BES!F45)^2) -> 145.9931505 | C43: =24*3600*(1-EXP(-B43/350))*7.375*(0.9^LXM!$H$1) -> 15601.62027 | D43: 4 | E43: 20 | F43: 2 | L43: =BES!D51 ->  | M43: =BES!A51 -> Shikamaru | N43: =BES!C51 -> 8133785
A44: Rockslide | B44: =SQRT((BES!$L$1-BES!E46)^2+(BES!$N$1-BES!F46)^2) -> 0 | C44: =24*3600*(1-EXP(-B44/350))*7.375*(0.9^LXM!$H$1) -> 0 | D44: 0 | E44: 0 | F44: 0 | L44: =BES!D52 ->  | M44: =BES!A52 -> spetsnaz | N44: =BES!C52 -> 3500000000
A45: Rofulus | B45: =SQRT((BES!$L$1-BES!E47)^2+(BES!$N$1-BES!F47)^2) -> 66.06814664 | C45: =24*3600*(1-EXP(-B45/350))*7.375*(0.9^LXM!$H$1) -> 7868.956432 | D45: 2 | E45: 11 | F45: 9 | L45: =BES!D53 ->  | M45: =BES!A53 -> svanhilde | N45: =BES!C53 -> 2500000000
A46: ryuk44 | B46: =SQRT((BES!$L$1-BES!E48)^2+(BES!$N$1-BES!F48)^2) -> 112.0714058 | C46: =24*3600*(1-EXP(-B46/350))*7.375*(0.9^LXM!$H$1) -> 12533.94055 | D46: 3 | E46: 28 | F46: 54 | L46: =BES!D55 ->  | M46: =BES!A55 -> TheDentist | N46: =BES!C55 -> 14367717
A47: Seiduna | B47: =SQRT((BES!$L$1-BES!E49)^2+(BES!$N$1-BES!F49)^2) -> 110.1635148 | C47: =24*3600*(1-EXP(-B47/350))*7.375*(0.9^LXM!$H$1) -> 12352.4118 | D47: 3 | E47: 25 | F47: 53 | L47: =BES!D56 ->  | M47: =BES!A56 -> Thunderbird | N47: =BES!C56 -> 2202808830
A48: sentih | B48: =SQRT((BES!$L$1-BES!E50)^2+(BES!$N$1-BES!F50)^2) -> 118.4229707 | C48: =24*3600*(1-EXP(-B48/350))*7.375*(0.9^LXM!$H$1) -> 13131.18714 | D48: 3 | E48: 38 | F48: 52 | L48: =BES!D57 ->  | M48: =BES!A57 -> Tradjette | N48: =BES!C57 -> 34256999
A49: Shikamaru | B49: =SQRT((BES!$L$1-BES!E51)^2+(BES!$N$1-BES!F51)^2) -> 19.41648784 | C49: =24*3600*(1-EXP(-B49/350))*7.375*(0.9^LXM!$H$1) -> 2468.598336 | D49: 0 | E49: 41 | F49: 9 | L49: =BES!D58 ->  | M49: =BES!A58 -> vinkou | N49: =BES!C58 -> 2046872542
A50: spetsnaz | B50: =SQRT((BES!$L$1-BES!E52)^2+(BES!$N$1-BES!F52)^2) -> 53.66563146 | C50: =24*3600*(1-EXP(-B50/350))*7.375*(0.9^LXM!$H$1) -> 6502.745881 | D50: 1 | E50: 48 | F50: 23 | L50: =BES!D59 ->  | M50: =BES!A59 -> weaver | N50: =BES!C59 -> 12457093
A51: svanhilde | B51: =SQRT((BES!$L$1-BES!E53)^2+(BES!$N$1-BES!F53)^2) -> 50.69516742 | C51: =24*3600*(1-EXP(-B51/350))*7.375*(0.9^LXM!$H$1) -> 6168.282587 | D51: 1 | E51: 42 | F51: 49 | L51: =BES!D60 ->  | M51: =BES!A60 -> Wolverine | N51: =BES!C60 -> 2500000000
A52: Taouret | B52: =SQRT((BES!$L$1-BES!E54)^2+(BES!$N$1-BES!F54)^2) -> 66.21933252 | C52: =24*3600*(1-EXP(-B52/350))*7.375*(0.9^LXM!$H$1) -> 7885.313589 | D52: 2 | E52: 11 | F52: 26 | L52: =BES!D13 -> A PORTEE | M52: =BES!A13 -> CroolisVar | N52: =BES!C13 -> 786759706
A53: TheDentist | B53: =SQRT((BES!$L$1-BES!E55)^2+(BES!$N$1-BES!F55)^2) -> 120.0374941 | C53: =24*3600*(1-EXP(-B53/350))*7.375*(0.9^LXM!$H$1) -> 13281.28323 | D53: 3 | E53: 41 | F53: 22 | L53: =BES!D21 -> A PORTEE | M53: =BES!A21 -> hador | N53: =BES!C21 -> 1289178436
A54: Thunderbird | B54: =SQRT((BES!$L$1-BES!E56)^2+(BES!$N$1-BES!F56)^2) -> 11.04536102 | C54: =24*3600*(1-EXP(-B54/350))*7.375*(0.9^LXM!$H$1) -> 1421.070504 | D54: 0 | E54: 23 | F54: 42 | L54: =BES!D22 -> A PORTEE | M54: =BES!A22 -> Ishigo | N54: =BES!C22 -> 757282747
A55: Tradjette | B55: =SQRT((BES!$L$1-BES!E57)^2+(BES!$N$1-BES!F57)^2) -> 160.2529251 | C55: =24*3600*(1-EXP(-B55/350))*7.375*(0.9^LXM!$H$1) -> 16805.02511 | D55: 4 | E55: 40 | F55: 6 | L55: =BES!D32 -> A PORTEE | M55: =BES!A32 -> Mimic | N55: =BES!C32 -> 510734725
A56: vinkou | B56: =SQRT((BES!$L$1-BES!E58)^2+(BES!$N$1-BES!F58)^2) -> 72.09022125 | C56: =24*3600*(1-EXP(-B56/350))*7.375*(0.9^LXM!$H$1) -> 8515.065205 | D56: 2 | E56: 21 | F56: 56 | L56: =BES!D39 -> A PORTEE | M56: =BES!A39 -> Phenixx | N56: =BES!C39 -> 908308062
A57: weaver | B57: =SQRT((BES!$L$1-BES!E59)^2+(BES!$N$1-BES!F59)^2) -> 160 | C57: =24*3600*(1-EXP(-B57/350))*7.375*(0.9^LXM!$H$1) -> 16784.10467 | D57: 4 | E57: 39 | F57: 45 | L57: =BES!D45 -> A PORTEE | M57: =BES!A45 -> Rita | N57: =BES!C45 -> 616559697
A58: Wolverine | B58: =SQRT((BES!$L$1-BES!E60)^2+(BES!$N$1-BES!F60)^2) -> 139.359248 | C58: =24*3600*(1-EXP(-B58/350))*7.375*(0.9^LXM!$H$1) -> 15024.84382 | D58: 4 | E58: 10 | F58: 25 | L58: =BES!D54 -> A PORTEE | M58: =BES!A54 -> Taouret | N58: =BES!C54 -> 688628575
A67: ='CC Page BES'!D4 -> agecanonix | B67: ='CC Page BES'!E4 -> 3461184525
A68: ='CC Page BES'!D26 -> aubertignac | B68: ='CC Page BES'!E26 -> 87905571
A69: ='CC Page BES'!D2 -> Azkanith | B69: ='CC Page BES'!E2 -> 3500000000
A70: ='CC Page BES'!D9 -> Bactroban | B70: ='CC Page BES'!E9 -> 2154874164
A71: ='CC Page BES'!D24 -> ben57 | B71: ='CC Page BES'!E24 -> 149380852
A72: ='CC Page BES'!D47 -> bib595 | B72: ='CC Page BES'!E47 -> 2905019
A73: ='CC Page BES'!D28 -> bill | B73: ='CC Page BES'!E28 -> 54154338
A74: ='CC Page BES'!D5 -> Bruxelles | B74: ='CC Page BES'!E5 -> 3200000000
A75: ='CC Page BES'!D40 -> Chryom | B75: ='CC Page BES'!E40 -> 9996200
A76: ='CC Page BES'!D18 -> CroolisVar | B76: ='CC Page BES'!E18 -> 786759706
A77: ='CC Page BES'!D32 -> Damping | B77: ='CC Page BES'!E32 -> 16221345
A78: ='CC Page BES'!D46 -> DrAnts | B78: ='CC Page BES'!E46 -> 3848814
A79: ='CC Page BES'!D13 -> Drusilla | B79: ='CC Page BES'!E13 -> 1855225863
A80: ='CC Page BES'!D49 -> EllaVonZedanltha | B80: ='CC Page BES'!E49 -> 1952804
A81: ='CC Page BES'!D25 -> Flipper1 | B81: ='CC Page BES'!E25 -> 92127906
A82: ='CC Page BES'!D31 -> Greeny | B82: ='CC Page BES'!E31 -> 26570199
A83: ='CC Page BES'!D15 -> Gueust | B83: ='CC Page BES'!E15 -> 1480632393
A84: ='CC Page BES'!D16 -> hador | B84: ='CC Page BES'!E16 -> 1289178436
A85: ='CC Page BES'!D19 -> Ishigo | B85: ='CC Page BES'!E19 -> 757282747
A86: ='CC Page BES'!D44 -> Lesqual | B86: ='CC Page BES'!E44 -> 4423829
A87: ='CC Page BES'!D37 -> lipoussou | B87: ='CC Page BES'!E37 -> 11917308
A88: ='CC Page BES'!D38 -> Lockheed | B88: ='CC Page BES'!E38 -> 11216156
A89: ='CC Page BES'!D58 -> MagnetO | B89: ='CC Page BES'!E58 -> 111707
A90: ='CC Page BES'!D14 -> marchombre | B90: ='CC Page BES'!E14 -> 1650134494
A91: ='CC Page BES'!D45 -> Melissa | B91: ='CC Page BES'!E45 -> 4325226
A92: ='CC Page BES'!D53 -> MilesGloriosus | B92: ='CC Page BES'!E53 -> 1229557
A93: ='CC Page BES'!D39 -> miloveam | B93: ='CC Page BES'!E39 -> 10733921
A94: ='CC Page BES'!D51 -> Mime | B94: ='CC Page BES'!E51 -> 1741606
A95: ='CC Page BES'!D22 -> Mimic | B95: ='CC Page BES'!E22 -> 510734725
A96: ='CC Page BES'!D50 -> Morphy | B96: ='CC Page BES'!E50 -> 1927950
A97: ='CC Page BES'!D11 -> Myvin | B97: ='CC Page BES'!E11 -> 1983940382
A98: ='CC Page BES'!D54 -> osman | B98: ='CC Page BES'!E54 -> 953794
A99: ='CC Page BES'!D48 -> pacpac001 | B99: ='CC Page BES'!E48 -> 2291704
A100: ='CC Page BES'!D27 -> Panda | B100: ='CC Page BES'!E27 -> 74522661
A101: ='CC Page BES'!D12 -> pANTSu | B101: ='CC Page BES'!E12 -> 1909810001
A102: ='CC Page BES'!D17 -> Phenixx | B102: ='CC Page BES'!E17 -> 908308062
A103: ='CC Page BES'!D43 -> Pinou | B103: ='CC Page BES'!E43 -> 7212325
A104: ='CC Page BES'!D35 -> pluginbaby | B104: ='CC Page BES'!E35 -> 12705822
A105: ='CC Page BES'!D41 -> Quivala | B105: ='CC Page BES'!E41 -> 9761369
A106: ='CC Page BES'!D52 -> Reex | B106: ='CC Page BES'!E52 -> 1332809
A107: ='CC Page BES'!D56 -> riblibli | B107: ='CC Page BES'!E56 -> 194929
A108: ='CC Page BES'!D21 -> Rita | B108: ='CC Page BES'!E21 -> 616559697
A109: ='CC Page BES'!D23 -> Rockslide | B109: ='CC Page BES'!E23 -> 192556364
A110: ='CC Page BES'!D55 -> Rofulus | B110: ='CC Page BES'!E55 -> 599979
A111: ='CC Page BES'!D29 -> ryuk44 | B111: ='CC Page BES'!E29 -> 53860510
A112: ='CC Page BES'!D57 -> Seiduna | B112: ='CC Page BES'!E57 -> 184276
A113: ='CC Page BES'!D34 -> sentih | B113: ='CC Page BES'!E34 -> 12854744
A114: ='CC Page BES'!D42 -> Shikamaru | B114: ='CC Page BES'!E42 -> 8133785
A115: ='CC Page BES'!D3 -> spetsnaz | B115: ='CC Page BES'!E3 -> 3500000000
A116: ='CC Page BES'!D6 -> svanhilde | B116: ='CC Page BES'!E6 -> 2500000000
A117: ='CC Page BES'!D20 -> Taouret | B117: ='CC Page BES'!E20 -> 688628575
A118: ='CC Page BES'!D33 -> TheDentist | B118: ='CC Page BES'!E33 -> 14367717
A119: ='CC Page BES'!D8 -> Thunderbird | B119: ='CC Page BES'!E8 -> 2202808830
A120: ='CC Page BES'!D30 -> Tradjette | B120: ='CC Page BES'!E30 -> 34256999
A121: ='CC Page BES'!D10 -> vinkou | B121: ='CC Page BES'!E10 -> 2046872542
A122: ='CC Page BES'!D36 -> weaver | B122: ='CC Page BES'!E36 -> 12457093
A123: ='CC Page BES'!D7 -> Wolverine | B123: ='CC Page BES'!E7 -> 2500000000

Sheet DATA LXM
B1: Distance | C1: Temps (s) | D1: heures | E1: minutes | F1: secondes
A2: _Angel_ | B2: =SQRT((LXM!$L$1-LXM!E4)^2+(LXM!$N$1-LXM!F4)^2) -> 24 | C2: =24*3600*(1-EXP(-'DATA LXM'!B2/350))*7.375*(0.9^LXM!$H$1) -> 3031.633426 | D2: =ROUNDDOWN(C2/(60*60),0) -> 0 | E2: =ROUNDDOWN(((C2-D2*60*60)/60),0) -> 50 | F2: =ROUNDUP((C2-D2*60*60-E2*60),0) -> 32
A3: _diablo_ | B3: =SQRT((LXM!$L$1-LXM!E5)^2+(LXM!$N$1-LXM!F5)^2) -> 11 | C3: =24*3600*(1-EXP(-'DATA LXM'!B3/350))*7.375*(0.9^LXM!$H$1) -> 1415.325692 | D3: 0 | E3: 23 | F3: 36 | L3: =LXM!D11 ->  | M3: =LXM!A11 -> creamy | N3: =LXM!C11 -> 4979692
A4: _Wolverine_ | B4: =SQRT((LXM!$L$1-LXM!E6)^2+(LXM!$N$1-LXM!F6)^2) -> 20 | C4: =24*3600*(1-EXP(-'DATA LXM'!B4/350))*7.375*(0.9^LXM!$H$1) -> 2540.686774 | D4: 0 | E4: 42 | F4: 21 | L4: =LXM!D17 ->  | M4: =LXM!A17 -> Formidabilis | N4: =LXM!C17 -> 215020
A5: 4midiable | B5: =SQRT((LXM!$L$1-LXM!E7)^2+(LXM!$N$1-LXM!F7)^2) -> 26.83281573 | C5: =24*3600*(1-EXP(-'DATA LXM'!B5/350))*7.375*(0.9^LXM!$H$1) -> 3375.94549 | D5: 0 | E5: 56 | F5: 16 | L5: =LXM!D22 ->  | M5: =LXM!A22 -> maxbo | N5: =LXM!C22 -> 474073
A6: AB64 | B6: =SQRT((LXM!$L$1-LXM!E8)^2+(LXM!$N$1-LXM!F8)^2) -> 159.1131673 | C6: =24*3600*(1-EXP(-'DATA LXM'!B6/350))*7.375*(0.9^LXM!$H$1) -> 16710.63165 | D6: 4 | E6: 38 | F6: 31 | L6: =LXM!D25 ->  | M6: =LXM!A25 -> Norrin-Radd | N6: =LXM!C25 -> 32853830
A7: Allerdyce | B7: =SQRT((LXM!$L$1-LXM!E9)^2+(LXM!$N$1-LXM!F9)^2) -> 7.071067812 | C7: =24*3600*(1-EXP(-'DATA LXM'!B7/350))*7.375*(0.9^LXM!$H$1) -> 914.9045978 | D7: 0 | E7: 15 | F7: 15 | L7: =LXM!D27 ->  | M7: =LXM!A27 -> sergioo | N7: =LXM!C27 -> 29711962
A8: bubulle | B8: =SQRT((LXM!$L$1-LXM!E10)^2+(LXM!$N$1-LXM!F10)^2) -> 53.36665626 | C8: =24*3600*(1-EXP(-'DATA LXM'!B8/350))*7.375*(0.9^LXM!$H$1) -> 6469.210704 | D8: 1 | E8: 47 | F8: 50 | L8: =LXM!D28 ->  | M8: =LXM!A28 -> shub | N8: =LXM!C28 -> 728876
A9: creamy | B9: =SQRT((LXM!$L$1-LXM!E11)^2+(LXM!$N$1-LXM!F11)^2) -> 23.19482701 | C9: =24*3600*(1-EXP(-'DATA LXM'!B9/350))*7.375*(0.9^LXM!$H$1) -> 2933.259704 | D9: =ROUNDDOWN(C9/(60*60),0) -> 0 | E9: =ROUNDDOWN(((C9-D9*60*60)/60),0) -> 48 | F9: =ROUNDUP((C9-D9*60*60-E9*60),0) -> 54 | L9: =LXM!D29 ->  | M9: =LXM!A29 -> Slipstream | N9: =LXM!C29 -> 104115
A10: crunchy | B10: =SQRT((LXM!$L$1-LXM!E12)^2+(LXM!$N$1-LXM!F12)^2) -> 137.1860051 | C10: =24*3600*(1-EXP(-'DATA LXM'!B10/350))*7.375*(0.9^LXM!$H$1) -> 14833.50415 | D10: 4 | E10: 7 | F10: 14 | L10: =LXM!D30 ->  | M10: =LXM!A30 -> waylander | N10: =LXM!C30 -> 145222702
A11: Cyclope | B11: =SQRT((LXM!$L$1-LXM!E13)^2+(LXM!$N$1-LXM!F13)^2) -> 5.099019514 | C11: =24*3600*(1-EXP(-'DATA LXM'!B11/350))*7.375*(0.9^LXM!$H$1) -> 661.6029549 | D11: 0 | E11: 11 | F11: 2 | L11: =LXM!D31 ->  | M11: =LXM!A31 -> weed | N11: =LXM!C31 -> 1827888
A12: Domino | B12: =SQRT((LXM!$L$1-LXM!E14)^2+(LXM!$N$1-LXM!F14)^2) -> 6 | C12: =24*3600*(1-EXP(-'DATA LXM'!B12/350))*7.375*(0.9^LXM!$H$1) -> 777.5073494 | D12: 0 | E12: 12 | F12: 58 | L12: =LXM!D32 ->  | M12: =LXM!A32 -> Zerek | N12: =LXM!C32 -> 305693
A13: Eltornado | B13: =SQRT((LXM!$L$1-LXM!E15)^2+(LXM!$N$1-LXM!F15)^2) -> 155.724115 | C13: =24*3600*(1-EXP(-'DATA LXM'!B13/350))*7.375*(0.9^LXM!$H$1) -> 16428.13139 | D13: 4 | E13: 33 | F13: 49 | L13: =LXM!D10 ->  | M13: =LXM!A10 -> bubulle | N13: =LXM!C10 -> 3255300
A14: Fleau | B14: =SQRT((LXM!$L$1-LXM!E16)^2+(LXM!$N$1-LXM!F16)^2) -> 3 | C14: =24*3600*(1-EXP(-'DATA LXM'!B14/350))*7.375*(0.9^LXM!$H$1) -> 390.4197517 | D14: 0 | E14: 6 | F14: 31 | L14: =LXM!D15 ->  | M14: =LXM!A15 -> Eltornado | N14: =LXM!C15 -> 119767
A15: Formidabilis | B15: =SQRT((LXM!$L$1-LXM!E17)^2+(LXM!$N$1-LXM!F17)^2) -> 3.16227766 | C15: =24*3600*(1-EXP(-'DATA LXM'!B15/350))*7.375*(0.9^LXM!$H$1) -> 411.4432989 | D15: 0 | E15: 6 | F15: 52 | L15: =LXM!D13 ->  | M15: =LXM!A13 -> Cyclope | N15: =LXM!C13 -> 111173
A16: Jericho | B16: =SQRT((LXM!$L$1-LXM!E18)^2+(LXM!$N$1-LXM!F18)^2) -> 36.12478374 | C16: =24*3600*(1-EXP(-'DATA LXM'!B16/350))*7.375*(0.9^LXM!$H$1) -> 4485.965279 | D16: 1 | E16: 14 | F16: 46 | L16: =LXM!D14 ->  | M16: =LXM!A14 -> Domino | N16: =LXM!C14 -> 892741
A17: kandide | B17: =SQRT((LXM!$L$1-LXM!E19)^2+(LXM!$N$1-LXM!F19)^2) -> 118.0677771 | C17: =24*3600*(1-EXP(-'DATA LXM'!B17/350))*7.375*(0.9^LXM!$H$1) -> 13098.07312 | D17: 3 | E17: 38 | F17: 19 | L17: =LXM!D18 ->  | M17: =LXM!A18 -> Jericho | N17: =LXM!C18 -> 1839285687
A18: laika | B18: =SQRT((LXM!$L$1-LXM!E20)^2+(LXM!$N$1-LXM!F20)^2) -> 27.85677655 | C18: =24*3600*(1-EXP(-'DATA LXM'!B18/350))*7.375*(0.9^LXM!$H$1) -> 3499.717772 | D18: 0 | E18: 58 | F18: 20 | L18: =LXM!D19 ->  | M18: =LXM!A19 -> kandide | N18: =LXM!C19 -> 74951
A19: Matteo37 | B19: =SQRT((LXM!$L$1-LXM!E21)^2+(LXM!$N$1-LXM!F21)^2) -> 29.27456234 | C19: =24*3600*(1-EXP(-'DATA LXM'!B19/350))*7.375*(0.9^LXM!$H$1) -> 3670.497339 | D19: 1 | E19: 1 | F19: 11 | L19: =LXM!D23 ->  | M19: =LXM!A23 -> moontribe | N19: =LXM!C23 -> 577004
A20: maxbo | B20: =SQRT((LXM!$L$1-LXM!E22)^2+(LXM!$N$1-LXM!F22)^2) -> 6.32455532 | C20: =24*3600*(1-EXP(-'DATA LXM'!B20/350))*7.375*(0.9^LXM!$H$1) -> 819.1859183 | D20: 0 | E20: 13 | F20: 40 | L20: =LXM!D24 ->  | M20: =LXM!A24 -> mouche | N20: =LXM!C24 -> 140617522
A21: moontribe | B21: =SQRT((LXM!$L$1-LXM!E23)^2+(LXM!$N$1-LXM!F23)^2) -> 35.80502758 | C21: =24*3600*(1-EXP(-'DATA LXM'!B21/350))*7.375*(0.9^LXM!$H$1) -> 4448.254748 | D21: 1 | E21: 14 | F21: 9 | L21: =LXM!D26 ->  | M21: =LXM!A26 -> Prend-Ta-Claque | N21: =LXM!C26 -> 2568004
A22: mouche | B22: =SQRT((LXM!$L$1-LXM!E24)^2+(LXM!$N$1-LXM!F24)^2) -> 72.56031973 | C22: =24*3600*(1-EXP(-'DATA LXM'!B22/350))*7.375*(0.9^LXM!$H$1) -> 8565.035873 | D22: 2 | E22: 22 | F22: 46 | L22: =LXM!D20 ->  | M22: =LXM!A20 -> laika | N22: =LXM!C20 -> 352856
A23: Norrin-Radd | B23: =SQRT((LXM!$L$1-LXM!E25)^2+(LXM!$N$1-LXM!F25)^2) -> 17.11724277 | C23: =24*3600*(1-EXP(-'DATA LXM'!B23/350))*7.375*(0.9^LXM!$H$1) -> 2183.371607 | D23: 0 | E23: 36 | F23: 24 | L23: =LXM!D4 ->  | M23: =LXM!A4 -> _Angel_ | N23: =LXM!C4 -> 45216292
A24: Prend-Ta-Claque | B24: =SQRT((LXM!$L$1-LXM!E26)^2+(LXM!$N$1-LXM!F26)^2) -> 153.0032679 | C24: =24*3600*(1-EXP(-'DATA LXM'!B24/350))*7.375*(0.9^LXM!$H$1) -> 16199.34255 | D24: 4 | E24: 29 | F24: 60 | L24: =LXM!D7 ->  | M24: =LXM!A7 -> 4midiable | N24: =LXM!C7 -> 1940203
A25: sergioo | B25: =SQRT((LXM!$L$1-LXM!E27)^2+(LXM!$N$1-LXM!F27)^2) -> 153.8830725 | C25: =24*3600*(1-EXP(-'DATA LXM'!B25/350))*7.375*(0.9^LXM!$H$1) -> 16273.51765 | D25: 4 | E25: 31 | F25: 14 | L25: =LXM!D6 ->  | M25: =LXM!A6 -> _Wolverine_ | N25: =LXM!C6 -> 573345
A26: shub | B26: =SQRT((LXM!$L$1-LXM!E28)^2+(LXM!$N$1-LXM!F28)^2) -> 140.4279175 | C26: =24*3600*(1-EXP(-'DATA LXM'!B26/350))*7.375*(0.9^LXM!$H$1) -> 15118.49824 | D26: 4 | E26: 11 | F26: 59 | L26: =LXM!D5 ->  | M26: =LXM!A5 -> _diablo_ | N26: =LXM!C5 -> 134710356
A27: Slipstream | B27: =SQRT((LXM!$L$1-LXM!E29)^2+(LXM!$N$1-LXM!F29)^2) -> 13 | C27: =24*3600*(1-EXP(-'DATA LXM'!B27/350))*7.375*(0.9^LXM!$H$1) -> 1667.912665 | D27: 0 | E27: 27 | F27: 48 | L27: =LXM!D9 -> A PORTEE | M27: =LXM!A9 -> Allerdyce | N27: =LXM!C9 -> 511366515
A28: waylander | B28: =SQRT((LXM!$L$1-LXM!E30)^2+(LXM!$N$1-LXM!F30)^2) -> 143 | C28: =24*3600*(1-EXP(-'DATA LXM'!B28/350))*7.375*(0.9^LXM!$H$1) -> 15342.73758 | D28: 4 | E28: 15 | F28: 43 | L28: =LXM!D16 -> A PORTEE | M28: =LXM!A16 -> Fleau | N28: =LXM!C16 -> 1034979412
A29: weed | B29: =SQRT((LXM!$L$1-LXM!E31)^2+(LXM!$N$1-LXM!F31)^2) -> 45.89117562 | C29: =24*3600*(1-EXP(-'DATA LXM'!B29/350))*7.375*(0.9^LXM!$H$1) -> 5621.32713 | D29: 1 | E29: 33 | F29: 42 | L29: =LXM!D21 -> A PORTEE | M29: =LXM!A21 -> Matteo37 | N29: =LXM!C21 -> 1045506653
A30: Zerek | B30: =SQRT((LXM!$L$1-LXM!E32)^2+(LXM!$N$1-LXM!F32)^2) -> 114.2147101 | C30: =24*3600*(1-EXP(-'DATA LXM'!B30/350))*7.375*(0.9^LXM!$H$1) -> 12736.69125 | D30: 3 | E30: 32 | F30: 17 | L30: =LXM!D12 -> A PORTEE | M30: =LXM!A12 -> crunchy | N30: =LXM!C12 -> 637917142
L31: =LXM!D8 -> A PORTEE | M31: =LXM!A8 -> AB64 | N31: =LXM!C8 -> 399362427
G32: CALCUL DE TEMPS
A35: ='CC Page LXM'!D11 -> _Angel_ | B35: ='CC Page LXM'!E11 -> 45216292 | C35: x | D35: y | E35: tdc | F35: va | I35: Pour Flood
A36: ='CC Page LXM'!D10 -> _diablo_ | B36: ='CC Page LXM'!E10 -> 134710356 | C36: =LXM!E4 -> 40 | D36: =LXM!F4 -> 173 | E36: =LXM!C4 -> 45216292 | F36: =LXM!K4 -> 24
A37: ='CC Page LXM'!D22 -> _Wolverine_ | B37: ='CC Page LXM'!E22 -> 573345 | C37: =LXM!E5 -> 5 | D37: =LXM!F5 -> 173 | E37: =LXM!C5 -> 134710356 | F37: =LXM!K5 -> 1
A38: ='CC Page LXM'!D17 -> 4midiable | B38: ='CC Page LXM'!E17 -> 1940203 | C38: =LXM!E6 -> 36 | D38: =LXM!F6 -> 173 | E38: =LXM!C6 -> 573345 | F38: =LXM!K6 -> 1
A39: ='CC Page LXM'!D7 -> AB64 | B39: ='CC Page LXM'!E7 -> 399362427 | C39: =LXM!E7 -> 40 | D39: =LXM!F7 -> 161 | E39: =LXM!C7 -> 1940203 | F39: =LXM!K7 -> 1
A40: ='CC Page LXM'!D6 -> Allerdyce | B40: ='CC Page LXM'!E6 -> 511366515 | C40: =LXM!E8 -> 22 | D40: =LXM!F8 -> 14 | E40: =LXM!C8 -> 399362427 | F40: =LXM!K8 -> 1
A41: ='CC Page LXM'!D15 -> bubulle | B41: ='CC Page LXM'!E15 -> 3255300 | C41: =LXM!E9 -> 9 | D41: =LXM!F9 -> 172 | E41: =LXM!C9 -> 511366515 | F41: =LXM!K9 -> 24
A42: ='CC Page LXM'!D31 -> Charles_Francois_Xavier | B42: ='CC Page LXM'!E31 -> 405 | C42: =LXM!E10 -> 4 | D42: =LXM!F10 -> 225 | E42: =LXM!C10 -> 3255300 | F42: =LXM!K10 -> 1
A43: ='CC Page LXM'!D14 -> creamy | B43: ='CC Page LXM'!E14 -> 4979692 | C43: =LXM!E11 -> 39 | D43: =LXM!F11 -> 176 | E43: =LXM!C11 -> 4979692 | F43: =LXM!K11 -> 1
A44: ='CC Page LXM'!D5 -> crunchy | B44: ='CC Page LXM'!E5 -> 637917142 | C44: =LXM!E12 -> 34 | D44: =LXM!F12 -> 37 | E44: =LXM!C12 -> 637917142 | F44: =LXM!K12 -> 1
A45: ='CC Page LXM'!D28 -> Cyclope | B45: ='CC Page LXM'!E28 -> 111173 | C45: =LXM!E13 -> 11 | D45: =LXM!F13 -> 172 | E45: =LXM!C13 -> 111173 | F45: =LXM!K13 -> 1
A46: ='CC Page LXM'!D19 -> Domino | B46: ='CC Page LXM'!E19 -> 892741 | C46: =LXM!E14 -> 10 | D46: =LXM!F14 -> 173 | E46: =LXM!C14 -> 892741 | F46: =LXM!K14 -> 1
A47: ='CC Page LXM'!D27 -> ElTornado | B47: ='CC Page LXM'!E27 -> 119767 | C47: =LXM!E15 -> 45 | D47: =LXM!F15 -> 20 | E47: =LXM!C15 -> 119767 | F47: =LXM!K15 -> 1
A48: ='CC Page LXM'!D4 -> Fleau | B48: ='CC Page LXM'!E4 -> 1034979412 | C48: =LXM!E16 -> 13 | D48: =LXM!F16 -> 173 | E48: =LXM!C16 -> 1034979412 | F48: =LXM!K16 -> 1
A49: ='CC Page LXM'!D26 -> Formidabilis | B49: ='CC Page LXM'!E26 -> 215020 | C49: =LXM!E17 -> 17 | D49: =LXM!F17 -> 176 | E49: =LXM!C17 -> 215020 | F49: =LXM!K17 -> 1
A50: ='CC Page LXM'!D2 -> Jericho | B50: ='CC Page LXM'!E2 -> 1839285687 | C50: =LXM!E18 -> 13 | D50: =LXM!F18 -> 209 | E50: =LXM!C18 -> 1839285687 | F50: =LXM!K18 -> 1
A51: ='CC Page LXM'!D30 -> kandide | B51: ='CC Page LXM'!E30 -> 74951 | C51: =LXM!E19 -> 12 | D51: =LXM!F19 -> 55 | E51: =LXM!C19 -> 74951 | F51: =LXM!K19 -> 1
A52: ='CC Page LXM'!D24 -> laika | B52: ='CC Page LXM'!E24 -> 352856 | C52: =LXM!E20 -> 42 | D52: =LXM!F20 -> 183 | E52: =LXM!C20 -> 352856 | F52: =LXM!K20 -> 1
A53: ='CC Page LXM'!D3 -> Matteo37 | B53: ='CC Page LXM'!E3 -> 1045506653 | C53: =LXM!E21 -> 45 | D53: =LXM!F21 -> 169 | E53: =LXM!C21 -> 1045506653 | F53: =LXM!K21 -> 1
A54: ='CC Page LXM'!D23 -> maxbo | B54: ='CC Page LXM'!E23 -> 474073 | C54: =LXM!E22 -> 18 | D54: =LXM!F22 -> 179 | E54: =LXM!C22 -> 474073 | F54: =LXM!K22 -> 1
A55: ='CC Page LXM'!D21 -> moontribe | B55: ='CC Page LXM'!E21 -> 577004 | C55: =LXM!E23 -> 37 | D55: =LXM!F23 -> 144 | E55: =LXM!C23 -> 577004 | F55: =LXM!K23 -> 1
A56: ='CC Page LXM'!D9 -> mouche | B56: ='CC Page LXM'!E9 -> 140617522 | C56: =LXM!E24 -> 7 | D56: =LXM!F24 -> 245 | E56: =LXM!C24 -> 140617522 | F56: =LXM!K24 -> 1
A57: ='CC Page LXM'!D12 -> Norrin-Radd | B57: ='CC Page LXM'!E12 -> 32853830 | C57: =LXM!E25 -> 33 | D57: =LXM!F25 -> 171 | E57: =LXM!C25 -> 32853830 | F57: =LXM!K25 -> 1
A58: ='CC Page LXM'!D16 -> Prend-Ta-Claque | B58: ='CC Page LXM'!E16 -> 2568004 | C58: =LXM!E26 -> 15 | D58: =LXM!F26 -> 20 | E58: =LXM!C26 -> 2568004 | F58: =LXM!K26 -> 1
A59: ='CC Page LXM'!D13 -> sergioo | B59: ='CC Page LXM'!E13 -> 29711962 | C59: =LXM!E27 -> 40 | D59: =LXM!F27 -> 21 | E59: =LXM!C27 -> 29711962 | F59: =LXM!K27 -> 1
A60: ='CC Page LXM'!D20 -> shub | B60: ='CC Page LXM'!E20 -> 728876 | C60: =LXM!E28 -> 42 | D60: =LXM!F28 -> 35 | E60: =LXM!C28 -> 728876 | F60: =LXM!K28 -> 1
A61: ='CC Page LXM'!D29 -> Slipstream | B61: ='CC Page LXM'!E29 -> 104115 | C61: =LXM!E29 -> 3 | D61: =LXM!F29 -> 173 | E61: =LXM!C29 -> 104115 | F61: =LXM!K29 -> 1
A62: ='CC Page LXM'!D8 -> waylander | B62: ='CC Page LXM'!E8 -> 145222702 | C62: =LXM!E30 -> 16 | D62: =LXM!F30 -> 30 | E62: =LXM!C30 -> 145222702 | F62: =LXM!K30 -> 1
A63: ='CC Page LXM'!D18 -> weed | B63: ='CC Page LXM'!E18 -> 1827888 | C63: =LXM!E31 -> 7 | D63: =LXM!F31 -> 128 | E63: =LXM!C31 -> 1827888 | F63: =LXM!K31 -> 1
A64: ='CC Page LXM'!D25 -> Zerek | B64: ='CC Page LXM'!E25 -> 305693 | C64: =LXM!E32 -> 9 | D64: =LXM!F32 -> 59 | E64: =LXM!C32 -> 305693 | F64: =LXM!K32 -> 1

Sheet DATA COMMON
B1: Distance | C1: Temps (s) | D1: heures | E1: minutes | F1: secondes
A2: ='DATA LXM'!A2 -> _Angel_ | B2: ='DATA LXM'!B2 -> 24 | C2: ='DATA LXM'!C2 -> 3031.633426 | D2: ='DATA LXM'!D2 -> 0 | E2: ='DATA LXM'!E2 -> 50 | F2: ='DATA LXM'!F2 -> 32
A3: ='DATA LXM'!A3 -> _diablo_ | B3: ='DATA LXM'!B3 -> 11 | C3: ='DATA LXM'!C3 -> 1415.325692 | D3: ='DATA LXM'!D3 -> 0 | E3: ='DATA LXM'!E3 -> 23 | F3: ='DATA LXM'!F3 -> 36
A4: ='DATA LXM'!A4 -> _Wolverine_ | B4: ='DATA LXM'!B4 -> 20 | C4: ='DATA LXM'!C4 -> 2540.686774 | D4: ='DATA LXM'!D4 -> 0 | E4: ='DATA LXM'!E4 -> 42 | F4: ='DATA LXM'!F4 -> 21
A5: ='DATA LXM'!A5 -> 4midiable | B5: ='DATA LXM'!B5 -> 26.83281573 | C5: ='DATA LXM'!C5 -> 3375.94549 | D5: ='DATA LXM'!D5 -> 0 | E5: ='DATA LXM'!E5 -> 56 | F5: ='DATA LXM'!F5 -> 16
A6: ='DATA LXM'!A6 -> AB64 | B6: ='DATA LXM'!B6 -> 159.1131673 | C6: ='DATA LXM'!C6 -> 16710.63165 | D6: ='DATA LXM'!D6 -> 4 | E6: ='DATA LXM'!E6 -> 38 | F6: ='DATA LXM'!F6 -> 31
A7: ='DATA BES'!A2 -> agecanonix | B7: ='DATA BES'!B2 -> 98.08159868 | C7: ='DATA BES'!C2 -> 11179.60017 | D7: ='DATA BES'!D2 -> 3 | E7: ='DATA BES'!E2 -> 6 | F7: ='DATA BES'!F2 -> 20
A8: ='DATA LXM'!A7 -> Allerdyce | B8: ='DATA LXM'!B7 -> 7.071067812 | C8: ='DATA LXM'!C7 -> 914.9045978 | D8: ='DATA LXM'!D7 -> 0 | E8: ='DATA LXM'!E7 -> 15 | F8: ='DATA LXM'!F7 -> 15
A9: ='DATA BES'!A3 -> aubertignac | B9: ='DATA BES'!B3 -> 121.4125199 | C9: ='DATA BES'!C3 -> 13408.56934 | D9: ='DATA BES'!D3 -> 3 | E9: ='DATA BES'!E3 -> 43 | F9: ='DATA BES'!F3 -> 29
A10: ='DATA BES'!A4 -> Azkanith | B10: ='DATA BES'!B4 -> 112.6410227 | C10: ='DATA BES'!C4 -> 12587.94594 | D10: ='DATA BES'!D4 -> 3 | E10: ='DATA BES'!E4 -> 29 | F10: ='DATA BES'!F4 -> 48
A11: ='DATA BES'!A5 -> Bactroban | B11: ='DATA BES'!B5 -> 58.13776741 | C11: ='DATA BES'!C5 -> 7000.968303 | D11: ='DATA BES'!D5 -> 1 | E11: ='DATA BES'!E5 -> 56 | F11: ='DATA BES'!F5 -> 41
A12: ='DATA BES'!A6 -> ben57 | B12: ='DATA BES'!B6 -> 167.7647162 | C12: ='DATA BES'!C6 -> 17419.51305 | D12: ='DATA BES'!D6 -> 4 | E12: ='DATA BES'!E6 -> 50 | F12: ='DATA BES'!F6 -> 20
A13: ='DATA BES'!A7 -> bib595 | B13: ='DATA BES'!B7 -> 64.12487817 | C13: ='DATA BES'!C7 -> 7658.079354 | D13: ='DATA BES'!D7 -> 2 | E13: ='DATA BES'!E7 -> 7 | F13: ='DATA BES'!F7 -> 39
A14: ='DATA BES'!A8 -> bill | B14: ='DATA BES'!B8 -> 61.07372594 | C14: ='DATA BES'!C8 -> 7324.606946 | D14: ='DATA BES'!D8 -> 2 | E14: ='DATA BES'!E8 -> 2 | F14: ='DATA BES'!F8 -> 5
A15: ='DATA BES'!A9 -> Bruxelles | B15: ='DATA BES'!B9 -> 119.6411301 | C15: ='DATA BES'!C9 -> 13244.49887 | D15: ='DATA BES'!D9 -> 3 | E15: ='DATA BES'!E9 -> 40 | F15: ='DATA BES'!F9 -> 45
A16: ='DATA LXM'!A8 -> bubulle | B16: ='DATA LXM'!B8 -> 53.36665626 | C16: ='DATA LXM'!C8 -> 6469.210704 | D16: ='DATA LXM'!D8 -> 1 | E16: ='DATA LXM'!E8 -> 47 | F16: ='DATA LXM'!F8 -> 50
A17: ='DATA BES'!A10 -> Chryom | B17: ='DATA BES'!B10 -> 115.2128465 | C17: ='DATA BES'!C10 -> 12830.68932 | D17: ='DATA BES'!D10 -> 3 | E17: ='DATA BES'!E10 -> 33 | F17: ='DATA BES'!F10 -> 51
A18: ='DATA LXM'!A9 -> creamy | B18: ='DATA LXM'!B9 -> 23.19482701 | C18: ='DATA LXM'!C9 -> 2933.259704 | D18: ='DATA LXM'!D9 -> 0 | E18: ='DATA LXM'!E9 -> 48 | F18: ='DATA LXM'!F9 -> 54
A19: ='DATA BES'!A11 -> CroolisVar | B19: ='DATA BES'!B11 -> 41.86884283 | C19: ='DATA BES'!C11 -> 5157.55706 | D19: ='DATA BES'!D11 -> 1 | E19: ='DATA BES'!E11 -> 25 | F19: ='DATA BES'!F11 -> 58
A20: ='DATA LXM'!A10 -> crunchy | B20: ='DATA LXM'!B10 -> 137.1860051 | C20: ='DATA LXM'!C10 -> 14833.50415 | D20: ='DATA LXM'!D10 -> 4 | E20: ='DATA LXM'!E10 -> 7 | F20: ='DATA LXM'!F10 -> 14
A21: ='DATA LXM'!A11 -> Cyclope | B21: ='DATA LXM'!B11 -> 5.099019514 | C21: ='DATA LXM'!C11 -> 661.6029549 | D21: ='DATA LXM'!D11 -> 0 | E21: ='DATA LXM'!E11 -> 11 | F21: ='DATA LXM'!F11 -> 2
A22: ='DATA BES'!A12 -> Damping | B22: ='DATA BES'!B12 -> 97.86725704 | C22: ='DATA BES'!C12 -> 11158.42601 | D22: ='DATA BES'!D12 -> 3 | E22: ='DATA BES'!E12 -> 5 | F22: ='DATA BES'!F12 -> 59
A23: ='DATA LXM'!A12 -> Domino | B23: ='DATA LXM'!B12 -> 6 | C23: ='DATA LXM'!C12 -> 777.5073494 | D23: ='DATA LXM'!D12 -> 0 | E23: ='DATA LXM'!E12 -> 12 | F23: ='DATA LXM'!F12 -> 58
A24: ='DATA BES'!A13 -> DrAnts | B24: ='DATA BES'!B13 -> 103.0776406 | C24: ='DATA BES'!C13 -> 11669.48825 | D24: ='DATA BES'!D13 -> 3 | E24: ='DATA BES'!E13 -> 14 | F24: ='DATA BES'!F13 -> 30
A25: ='DATA BES'!A14 -> Drusilla | B25: ='DATA BES'!B14 -> 150.7481343 | C25: ='DATA BES'!C14 -> 16008.36169 | D25: ='DATA BES'!D14 -> 4 | E25: ='DATA BES'!E14 -> 26 | F25: ='DATA BES'!F14 -> 49
A26: ='DATA BES'!A15 -> EllaVonZedanltha | B26: ='DATA BES'!B15 -> 114.7388339 | C26: ='DATA BES'!C15 -> 12786.08328 | D26: ='DATA BES'!D15 -> 3 | E26: ='DATA BES'!E15 -> 33 | F26: ='DATA BES'!F15 -> 7
A27: ='DATA LXM'!A13 -> Eltornado | B27: ='DATA LXM'!B13 -> 155.724115 | C27: ='DATA LXM'!C13 -> 16428.13139 | D27: ='DATA LXM'!D13 -> 4 | E27: ='DATA LXM'!E13 -> 33 | F27: ='DATA LXM'!F13 -> 49
A28: ='DATA LXM'!A14 -> Fleau | B28: ='DATA LXM'!B14 -> 3 | C28: ='DATA LXM'!C14 -> 390.4197517 | D28: ='DATA LXM'!D14 -> 0 | E28: ='DATA LXM'!E14 -> 6 | F28: ='DATA LXM'!F14 -> 31
A29: ='DATA BES'!A16 -> Flipper1 | B29: ='DATA BES'!B16 -> 104.1729331 | C29: ='DATA BES'!C16 -> 11775.95603 | D29: ='DATA BES'!D16 -> 3 | E29: ='DATA BES'!E16 -> 16 | F29: ='DATA BES'!F16 -> 16
A30: ='DATA LXM'!A15 -> Formidabilis | B30: ='DATA LXM'!B15 -> 3.16227766 | C30: ='DATA LXM'!C15 -> 411.4432989 | D30: ='DATA LXM'!D15 -> 0 | E30: ='DATA LXM'!E15 -> 6 | F30: ='DATA LXM'!F15 -> 52
A31: ='DATA BES'!A17 -> Greeny | B31: ='DATA BES'!B17 -> 123.199026 | C31: ='DATA BES'!C17 -> 13573.20099 | D31: ='DATA BES'!D17 -> 3 | E31: ='DATA BES'!E17 -> 46 | F31: ='DATA BES'!F17 -> 14
A32: ='DATA BES'!A18 -> Gueust | B32: ='DATA BES'!B18 -> 212.3982109 | C32: ='DATA BES'!C18 -> 20810.80083 | D32: ='DATA BES'!D18 -> 5 | E32: ='DATA BES'!E18 -> 46 | F32: ='DATA BES'!F18 -> 51
A33: ='DATA BES'!A19 -> hador | B33: ='DATA BES'!B19 -> 17.02938637 | C33: ='DATA BES'!C19 -> 2172.435604 | D33: ='DATA BES'!D19 -> 0 | E33: ='DATA BES'!E19 -> 36 | F33: ='DATA BES'!F19 -> 13
A34: ='DATA BES'!A20 -> Ishigo | B34: ='DATA BES'!B20 -> 70.34912935 | C34: ='DATA BES'!C20 -> 8329.404378 | D34: ='DATA BES'!D20 -> 2 | E34: ='DATA BES'!E20 -> 18 | F34: ='DATA BES'!F20 -> 50
A35: ='DATA LXM'!A16 -> Jericho | B35: ='DATA LXM'!B16 -> 36.12478374 | C35: ='DATA LXM'!C16 -> 4485.965279 | D35: ='DATA LXM'!D16 -> 1 | E35: ='DATA LXM'!E16 -> 14 | F35: ='DATA LXM'!F16 -> 46
A36: ='DATA LXM'!A17 -> kandide | B36: ='DATA LXM'!B17 -> 118.0677771 | C36: ='DATA LXM'!C17 -> 13098.07312 | D36: ='DATA LXM'!D17 -> 3 | E36: ='DATA LXM'!E17 -> 38 | F36: ='DATA LXM'!F17 -> 19
A37: ='DATA LXM'!A18 -> laika | B37: ='DATA LXM'!B18 -> 27.85677655 | C37: ='DATA LXM'!C18 -> 3499.717772 | D37: ='DATA LXM'!D18 -> 0 | E37: ='DATA LXM'!E18 -> 58 | F37: ='DATA LXM'!F18 -> 20
A38: ='DATA BES'!A21 -> Lesqual | B38: ='DATA BES'!B21 -> 122.2006547 | C38: ='DATA BES'!C21 -> 13481.30181 | D38: ='DATA BES'!D21 -> 3 | E38: ='DATA BES'!E21 -> 44 | F38: ='DATA BES'!F21 -> 42
A39: ='DATA BES'!A22 -> lipoussou | B39: ='DATA BES'!B22 -> 35.38361203 | C39: ='DATA BES'!C22 -> 4398.502336 | D39: ='DATA BES'!D22 -> 1 | E39: ='DATA BES'!E22 -> 13 | F39: ='DATA BES'!F22 -> 19
A40: ='DATA BES'!A23 -> Lockheed | B40: ='DATA BES'!B23 -> 12.36931688 | C40: ='DATA BES'!C23 -> 1588.41725 | D40: ='DATA BES'!D23 -> 0 | E40: ='DATA BES'!E23 -> 26 | F40: ='DATA BES'!F23 -> 29
A41: ='DATA BES'!A24 -> MagnetO | B41: ='DATA BES'!B24 -> 10.04987562 | C41: ='DATA BES'!C24 -> 1294.824518 | D41: ='DATA BES'!D24 -> 0 | E41: ='DATA BES'!E24 -> 21 | F41: ='DATA BES'!F24 -> 35
A42: ='DATA BES'!A25 -> marchombre | B42: ='DATA BES'!B25 -> 67 | C42: ='DATA BES'!C25 -> 7969.663496 | D42: ='DATA BES'!D25 -> 2 | E42: ='DATA BES'!E25 -> 12 | F42: ='DATA BES'!F25 -> 50
A43: ='DATA LXM'!A19 -> Matteo37 | B43: ='DATA LXM'!B19 -> 29.27456234 | C43: ='DATA LXM'!C19 -> 3670.497339 | D43: ='DATA LXM'!D19 -> 1 | E43: ='DATA LXM'!E19 -> 1 | F43: ='DATA LXM'!F19 -> 11
A44: ='DATA LXM'!A20 -> maxbo | B44: ='DATA LXM'!B20 -> 6.32455532 | C44: ='DATA LXM'!C20 -> 819.1859183 | D44: ='DATA LXM'!D20 -> 0 | E44: ='DATA LXM'!E20 -> 13 | F44: ='DATA LXM'!F20 -> 40
A45: ='DATA BES'!A26 -> Melissa | B45: ='DATA BES'!B26 -> 144.0069443 | C45: ='DATA BES'!C26 -> 15430.07714 | D45: ='DATA BES'!D26 -> 4 | E45: ='DATA BES'!E26 -> 17 | F45: ='DATA BES'!F26 -> 11
A46: ='DATA BES'!A27 -> MilesGloriosus | B46: ='DATA BES'!B27 -> 79.76214641 | C46: ='DATA BES'!C27 -> 9322.246632 | D46: ='DATA BES'!D27 -> 2 | E46: ='DATA BES'!E27 -> 35 | F46: ='DATA BES'!F27 -> 23
A47: ='DATA BES'!A28 -> miloveam | B47: ='DATA BES'!B28 -> 133.37541 | C47: ='DATA BES'!C28 -> 14495.12507 | D47: ='DATA BES'!D28 -> 4 | E47: ='DATA BES'!E28 -> 1 | F47: ='DATA BES'!F28 -> 36
A48: ='DATA BES'!A29 -> Mime | B48: ='DATA BES'!B29 -> 45.04442252 | C48: ='DATA BES'!C29 -> 5524.139937 | D48: ='DATA BES'!D29 -> 1 | E48: ='DATA BES'!E29 -> 32 | F48: ='DATA BES'!F29 -> 5
A49: ='DATA BES'!A30 -> Mimic | B49: ='DATA BES'!B30 -> 28 | C49: ='DATA BES'!C30 -> 3517.0012 | D49: ='DATA BES'!D30 -> 0 | E49: ='DATA BES'!E30 -> 58 | F49: ='DATA BES'!F30 -> 38
A50: ='DATA LXM'!A21 -> moontribe | B50: ='DATA LXM'!B21 -> 35.80502758 | C50: ='DATA LXM'!C21 -> 4448.254748 | D50: ='DATA LXM'!D21 -> 1 | E50: ='DATA LXM'!E21 -> 14 | F50: ='DATA LXM'!F21 -> 9
A51: ='DATA BES'!A31 -> Morphy | B51: ='DATA BES'!B31 -> 168.0773631 | C51: ='DATA BES'!C31 -> 17444.80378 | D51: ='DATA BES'!D31 -> 4 | E51: ='DATA BES'!E31 -> 50 | F51: ='DATA BES'!F31 -> 45
A52: ='DATA LXM'!A22 -> mouche | B52: ='DATA LXM'!B22 -> 72.56031973 | C52: ='DATA LXM'!C22 -> 8565.035873 | D52: ='DATA LXM'!D22 -> 2 | E52: ='DATA LXM'!E22 -> 22 | F52: ='DATA LXM'!F22 -> 46
A53: ='DATA BES'!A32 -> Myvin | B53: ='DATA BES'!B32 -> 136.6199107 | C53: ='DATA BES'!C32 -> 14783.46793 | D53: ='DATA BES'!D32 -> 4 | E53: ='DATA BES'!E32 -> 6 | F53: ='DATA BES'!F32 -> 24
A54: ='DATA LXM'!A23 -> Norrin-Radd | B54: ='DATA LXM'!B23 -> 17.11724277 | C54: ='DATA LXM'!C23 -> 2183.371607 | D54: ='DATA LXM'!D23 -> 0 | E54: ='DATA LXM'!E23 -> 36 | F54: ='DATA LXM'!F23 -> 24
A55: ='DATA BES'!A33 -> osman | B55: ='DATA BES'!B33 -> 145.0310312 | C55: ='DATA BES'!C33 -> 15518.64625 | D55: ='DATA BES'!D33 -> 4 | E55: ='DATA BES'!E33 -> 18 | F55: ='DATA BES'!F33 -> 39
A56: ='DATA BES'!A34 -> pacpac001 | B56: ='DATA BES'!B34 -> 122.40915 | C56: ='DATA BES'!C34 -> 13500.51528 | D56: ='DATA BES'!D34 -> 3 | E56: ='DATA BES'!E34 -> 45 | F56: ='DATA BES'!F34 -> 1
A57: ='DATA BES'!A35 -> Panda | B57: ='DATA BES'!B35 -> 138.5207566 | C57: ='DATA BES'!C35 -> 14951.16093 | D57: ='DATA BES'!D35 -> 4 | E57: ='DATA BES'!E35 -> 9 | F57: ='DATA BES'!F35 -> 12
A58: ='DATA BES'!A36 -> pANTSu | B58: ='DATA BES'!B36 -> 119.707978 | C58: ='DATA BES'!C36 -> 13250.70558 | D58: ='DATA BES'!D36 -> 3 | E58: ='DATA BES'!E36 -> 40 | F58: ='DATA BES'!F36 -> 51
A59: ='DATA BES'!A37 -> Phenixx | B59: ='DATA BES'!B37 -> 12.04159458 | C59: ='DATA BES'!C37 -> 1547.052402 | D59: ='DATA BES'!D37 -> 0 | E59: ='DATA BES'!E37 -> 25 | F59: ='DATA BES'!F37 -> 48
A60: ='DATA BES'!A38 -> Pinou | B60: ='DATA BES'!B38 -> 154.3794028 | C60: ='DATA BES'!C38 -> 16315.28038 | D60: ='DATA BES'!D38 -> 4 | E60: ='DATA BES'!E38 -> 31 | F60: ='DATA BES'!F38 -> 56
A61: ='DATA BES'!A39 -> pluginbaby | B61: ='DATA BES'!B39 -> 151.198545 | C61: ='DATA BES'!C39 -> 16046.6041 | D61: ='DATA BES'!D39 -> 4 | E61: ='DATA BES'!E39 -> 27 | F61: ='DATA BES'!F39 -> 27
A62: ='DATA LXM'!A24 -> Prend-Ta-Claque | B62: ='DATA LXM'!B24 -> 153.0032679 | C62: ='DATA LXM'!C24 -> 16199.34255 | D62: ='DATA LXM'!D24 -> 4 | E62: ='DATA LXM'!E24 -> 29 | F62: ='DATA LXM'!F24 -> 60
A63: ='DATA BES'!A40 -> Quivala | B63: ='DATA BES'!B40 -> 41.03656906 | C63: ='DATA BES'!C40 -> 5060.929606 | D63: ='DATA BES'!D40 -> 1 | E63: ='DATA BES'!E40 -> 24 | F63: ='DATA BES'!F40 -> 21
A64: ='DATA BES'!A41 -> Reex | B64: ='DATA BES'!B41 -> 28.28427125 | C64: ='DATA BES'!C41 -> 3551.284568 | D64: ='DATA BES'!D41 -> 0 | E64: ='DATA BES'!E41 -> 59 | F64: ='DATA BES'!F41 -> 12
A65: ='DATA BES'!A42 -> riblibli | B65: ='DATA BES'!B42 -> 149.7765002 | C65: ='DATA BES'!C42 -> 15925.69669 | D65: ='DATA BES'!D42 -> 4 | E65: ='DATA BES'!E42 -> 25 | F65: ='DATA BES'!F42 -> 26
A66: ='DATA BES'!A43 -> Rita | B66: ='DATA BES'!B43 -> 145.9931505 | C66: ='DATA BES'!C43 -> 15601.62027 | D66: ='DATA BES'!D43 -> 4 | E66: ='DATA BES'!E43 -> 20 | F66: ='DATA BES'!F43 -> 2
A67: ='DATA BES'!A44 -> Rockslide | B67: ='DATA BES'!B44 -> 0 | C67: ='DATA BES'!C44 -> 0 | D67: ='DATA BES'!D44 -> 0 | E67: ='DATA BES'!E44 -> 0 | F67: ='DATA BES'!F44 -> 0
A68: ='DATA BES'!A45 -> Rofulus | B68: ='DATA BES'!B45 -> 66.06814664 | C68: ='DATA BES'!C45 -> 7868.956432 | D68: ='DATA BES'!D45 -> 2 | E68: ='DATA BES'!E45 -> 11 | F68: ='DATA BES'!F45 -> 9
A69: ='DATA BES'!A46 -> ryuk44 | B69: ='DATA BES'!B46 -> 112.0714058 | C69: ='DATA BES'!C46 -> 12533.94055 | D69: ='DATA BES'!D46 -> 3 | E69: ='DATA BES'!E46 -> 28 | F69: ='DATA BES'!F46 -> 54
A70: ='DATA BES'!A47 -> Seiduna | B70: ='DATA BES'!B47 -> 110.1635148 | C70: ='DATA BES'!C47 -> 12352.4118 | D70: ='DATA BES'!D47 -> 3 | E70: ='DATA BES'!E47 -> 25 | F70: ='DATA BES'!F47 -> 53
A71: ='DATA BES'!A48 -> sentih | B71: ='DATA BES'!B48 -> 118.4229707 | C71: ='DATA BES'!C48 -> 13131.18714 | D71: ='DATA BES'!D48 -> 3 | E71: ='DATA BES'!E48 -> 38 | F71: ='DATA BES'!F48 -> 52
A72: ='DATA LXM'!A25 -> sergioo | B72: ='DATA LXM'!B25 -> 153.8830725 | C72: ='DATA LXM'!C25 -> 16273.51765 | D72: ='DATA LXM'!D25 -> 4 | E72: ='DATA LXM'!E25 -> 31 | F72: ='DATA LXM'!F25 -> 14
A73: ='DATA BES'!A49 -> Shikamaru | B73: ='DATA BES'!B49 -> 19.41648784 | C73: ='DATA BES'!C49 -> 2468.598336 | D73: ='DATA BES'!D49 -> 0 | E73: ='DATA BES'!E49 -> 41 | F73: ='DATA BES'!F49 -> 9
A74: ='DATA LXM'!A26 -> shub | B74: ='DATA LXM'!B26 -> 140.4279175 | C74: ='DATA LXM'!C26 -> 15118.49824 | D74: ='DATA LXM'!D26 -> 4 | E74: ='DATA LXM'!E26 -> 11 | F74: ='DATA LXM'!F26 -> 59
A75: ='DATA LXM'!A27 -> Slipstream | B75: ='DATA LXM'!B27 -> 13 | C75: ='DATA LXM'!C27 -> 1667.912665 | D75: ='DATA LXM'!D27 -> 0 | E75: ='DATA LXM'!E27 -> 27 | F75: ='DATA LXM'!F27 -> 48
A76: ='DATA BES'!A50 -> spetsnaz | B76: ='DATA BES'!B50 -> 53.66563146 | C76: ='DATA BES'!C50 -> 6502.745881 | D76: ='DATA BES'!D50 -> 1 | E76: ='DATA BES'!E50 -> 48 | F76: ='DATA BES'!F50 -> 23
A77: ='DATA BES'!A51 -> svanhilde | B77: ='DATA BES'!B51 -> 50.69516742 | C77: ='DATA BES'!C51 -> 6168.282587 | D77: ='DATA BES'!D51 -> 1 | E77: ='DATA BES'!E51 -> 42 | F77: ='DATA BES'!F51 -> 49
A78: ='DATA BES'!A52 -> Taouret | B78: ='DATA BES'!B52 -> 66.21933252 | C78: ='DATA BES'!C52 -> 7885.313589 | D78: ='DATA BES'!D52 -> 2 | E78: ='DATA BES'!E52 -> 11 | F78: ='DATA BES'!F52 -> 26
A79: ='DATA BES'!A53 -> TheDentist | B79: ='DATA BES'!B53 -> 120.0374941 | C79: ='DATA BES'!C53 -> 13281.28323 | D79: ='DATA BES'!D53 -> 3 | E79: ='DATA BES'!E53 -> 41 | F79: ='DATA BES'!F53 -> 22
A80: ='DATA BES'!A54 -> Thunderbird | B80: ='DATA BES'!B54 -> 11.04536102 | C80: ='DATA BES'!C54 -> 1421.070504 | D80: ='DATA BES'!D54 -> 0 | E80: ='DATA BES'!E54 -> 23 | F80: ='DATA BES'!F54 -> 42
A81: ='DATA BES'!A55 -> Tradjette | B81: ='DATA BES'!B55 -> 160.2529251 | C81: ='DATA BES'!C55 -> 16805.02511 | D81: ='DATA BES'!D55 -> 4 | E81: ='DATA BES'!E55 -> 40 | F81: ='DATA BES'!F55 -> 6
A82: ='DATA BES'!A56 -> vinkou | B82: ='DATA BES'!B56 -> 72.09022125 | C82: ='DATA BES'!C56 -> 8515.065205 | D82: ='DATA BES'!D56 -> 2 | E82: ='DATA BES'!E56 -> 21 | F82: ='DATA BES'!F56 -> 56
A83: ='DATA LXM'!A28 -> waylander | B83: ='DATA LXM'!B28 -> 143 | C83: ='DATA LXM'!C28 -> 15342.73758 | D83: ='DATA LXM'!D28 -> 4 | E83: ='DATA LXM'!E28 -> 15 | F83: ='DATA LXM'!F28 -> 43
A84: ='DATA BES'!A57 -> weaver | B84: ='DATA BES'!B57 -> 160 | C84: ='DATA BES'!C57 -> 16784.10467 | D84: ='DATA BES'!D57 -> 4 | E84: ='DATA BES'!E57 -> 39 | F84: ='DATA BES'!F57 -> 45
A85: ='DATA LXM'!A29 -> weed | B85: ='DATA LXM'!B29 -> 45.89117562 | C85: ='DATA LXM'!C29 -> 5621.32713 | D85: ='DATA LXM'!D29 -> 1 | E85: ='DATA LXM'!E29 -> 33 | F85: ='DATA LXM'!F29 -> 42
A86: ='DATA BES'!A58 -> Wolverine | B86: ='DATA BES'!B58 -> 139.359248 | C86: ='DATA BES'!C58 -> 15024.84382 | D86: ='DATA BES'!D58 -> 4 | E86: ='DATA BES'!E58 -> 10 | F86: ='DATA BES'!F58 -> 25
A87: ='DATA LXM'!A30 -> Zerek | B87: ='DATA LXM'!B30 -> 114.2147101 | C87: ='DATA LXM'!C30 -> 12736.69125 | D87: ='DATA LXM'!D30 -> 3 | E87: ='DATA LXM'!E30 -> 32 | F87: ='DATA LXM'!F30 -> 17

Sheet DATA TRAQUE
C1: TDC | D1: VA | E1: x | F1: y | M1: Heure | P1: TDP Basique
B2: ='DATA LXM'!A2 -> _Angel_ | C2: ='DATA LXM'!E36 -> 45216292 | D2: ='DATA LXM'!F36 -> 24 | E2: ='DATA LXM'!C36 -> 40 | F2: ='DATA LXM'!D36 -> 173 | M2: =REPLACE(TRAQUE!C3,3,1,":") -> 17:30 | P2: JSN | Q2: 300
B3: ='DATA LXM'!A3 -> _diablo_ | C3: ='DATA LXM'!E37 -> 134710356 | D3: ='DATA LXM'!F37 -> 1 | E3: ='DATA LXM'!C37 -> 5 | F3: ='DATA LXM'!D37 -> 173 | P3: SN | Q3: 450
B4: ='DATA LXM'!A4 -> _Wolverine_ | C4: ='DATA LXM'!E38 -> 573345 | D4: ='DATA LXM'!F38 -> 1 | E4: ='DATA LXM'!C38 -> 36 | F4: ='DATA LXM'!D38 -> 173 | P4: NE | Q4: 570
B5: ='DATA LXM'!A5 -> 4midiable | C5: ='DATA LXM'!E39 -> 1940203 | D5: ='DATA LXM'!F39 -> 1 | E5: ='DATA LXM'!C39 -> 40 | F5: ='DATA LXM'!D39 -> 161 | M5: Heure | P5: JS | Q5: 740
B6: ='DATA LXM'!A6 -> AB64 | C6: ='DATA LXM'!E40 -> 399362427 | D6: ='DATA LXM'!F40 -> 1 | E6: ='DATA LXM'!C40 -> 22 | F6: ='DATA LXM'!D40 -> 14 | M6: =REPLACE(TRAQUE!J4,3,1,":") -> 17:40 | P6: S | Q6: 1000
B7: ='DATA LXM'!A7 -> Allerdyce | C7: ='DATA LXM'!E41 -> 511366515 | D7: ='DATA LXM'!F41 -> 24 | E7: ='DATA LXM'!C41 -> 9 | F7: ='DATA LXM'!D41 -> 172 | P7: C | Q7: 1410
B8: ='DATA LXM'!A8 -> bubulle | C8: ='DATA LXM'!E42 -> 3255300 | D8: ='DATA LXM'!F42 -> 1 | E8: ='DATA LXM'!C42 -> 4 | F8: ='DATA LXM'!D42 -> 225 | P8: CE | Q8: 1410
B9: ='DATA LXM'!A9 -> creamy | C9: ='DATA LXM'!E43 -> 4979692 | D9: ='DATA LXM'!F43 -> 1 | E9: ='DATA LXM'!C43 -> 39 | F9: ='DATA LXM'!D43 -> 176 | P9: A | Q9: 1440
B10: ='DATA LXM'!A10 -> crunchy | C10: ='DATA LXM'!E44 -> 637917142 | D10: ='DATA LXM'!F44 -> 1 | E10: ='DATA LXM'!C44 -> 34 | F10: ='DATA LXM'!D44 -> 37 | P10: AE | Q10: 1520
B11: ='DATA LXM'!A11 -> Cyclope | C11: ='DATA LXM'!E45 -> 111173 | D11: ='DATA LXM'!F45 -> 1 | E11: ='DATA LXM'!C45 -> 11 | F11: ='DATA LXM'!D45 -> 172 | P11: SE | Q11: 1450
B12: ='DATA LXM'!A12 -> Domino | C12: ='DATA LXM'!E46 -> 892741 | D12: ='DATA LXM'!F46 -> 1 | E12: ='DATA LXM'!C46 -> 10 | F12: ='DATA LXM'!D46 -> 173 | P12: Tk | Q12: 1860
B13: ='DATA LXM'!A13 -> Eltornado | C13: ='DATA LXM'!E47 -> 119767 | D13: ='DATA LXM'!F47 -> 1 | E13: ='DATA LXM'!C47 -> 45 | F13: ='DATA LXM'!D47 -> 20 | P13: TkE | Q13: 1860
B14: ='DATA LXM'!A14 -> Fleau | C14: ='DATA LXM'!E48 -> 1034979412 | D14: ='DATA LXM'!F48 -> 1 | E14: ='DATA LXM'!C48 -> 13 | F14: ='DATA LXM'!D48 -> 173 | P14: Tu | Q14: 2740
B15: ='DATA LXM'!A15 -> Formidabilis | C15: ='DATA LXM'!E49 -> 215020 | D15: ='DATA LXM'!F49 -> 1 | E15: ='DATA LXM'!C49 -> 17 | F15: ='DATA LXM'!D49 -> 176 | P15: TuE | Q15: 2740
B16: ='DATA LXM'!A16 -> Jericho | C16: ='DATA LXM'!E50 -> 1839285687 | D16: ='DATA LXM'!F50 -> 1 | E16: ='DATA LXM'!C50 -> 13 | F16: ='DATA LXM'!D50 -> 209
B17: ='DATA LXM'!A17 -> kandide | C17: ='DATA LXM'!E51 -> 74951 | D17: ='DATA LXM'!F51 -> 1 | E17: ='DATA LXM'!C51 -> 12 | F17: ='DATA LXM'!D51 -> 55
B18: ='DATA LXM'!A18 -> laika | C18: ='DATA LXM'!E52 -> 352856 | D18: ='DATA LXM'!F52 -> 1 | E18: ='DATA LXM'!C52 -> 42 | F18: ='DATA LXM'!D52 -> 183 | O18: t | P18: h | Q18: m | R18: s
B19: ='DATA LXM'!A19 -> Matteo37 | C19: ='DATA LXM'!E53 -> 1045506653 | D19: ='DATA LXM'!F53 -> 1 | E19: ='DATA LXM'!C53 -> 45 | F19: ='DATA LXM'!D53 -> 169 | N19: JSN | O19: =Q2*0.9^TRAQUE!$K$4*TRAQUE!P3 -> 594.3094836 | P19: =ROUNDDOWN(O19/(60*60),0) -> 0 | Q19: =ROUNDDOWN(((O19-P19*60*60)/60),0) -> 9 | R19: =ROUNDUP((O19-P19*60*60-Q19*60),0) -> 55
B20: ='DATA LXM'!A20 -> maxbo | C20: ='DATA LXM'!E54 -> 474073 | D20: ='DATA LXM'!F54 -> 1 | E20: ='DATA LXM'!C54 -> 18 | F20: ='DATA LXM'!D54 -> 179 | N20: SN | O20: =Q3*0.9^TRAQUE!$K$4*TRAQUE!Q3 -> 0 | P20: =ROUNDDOWN(O20/(60*60),0) -> 0 | Q20: =ROUNDDOWN(((O20-P20*60*60)/60),0) -> 0 | R20: =ROUNDUP((O20-P20*60*60-Q20*60),0) -> 0
B21: ='DATA LXM'!A21 -> moontribe | C21: ='DATA LXM'!E55 -> 577004 | D21: ='DATA LXM'!F55 -> 1 | E21: ='DATA LXM'!C55 -> 37 | F21: ='DATA LXM'!D55 -> 144 | N21: NE | O21: =Q4*0.9^TRAQUE!$K$4*TRAQUE!R3 -> 0 | P21: 0 | Q21: 0 | R21: 0
B22: ='DATA LXM'!A22 -> mouche | C22: ='DATA LXM'!E56 -> 140617522 | D22: ='DATA LXM'!F56 -> 1 | E22: ='DATA LXM'!C56 -> 7 | F22: ='DATA LXM'!D56 -> 245 | N22: JS | O22: =Q5*0.9^TRAQUE!$K$4*TRAQUE!S3 -> 0 | P22: 0 | Q22: 0 | R22: 0
B23: ='DATA LXM'!A23 -> Norrin-Radd | C23: ='DATA LXM'!E57 -> 32853830 | D23: ='DATA LXM'!F57 -> 1 | E23: ='DATA LXM'!C57 -> 33 | F23: ='DATA LXM'!D57 -> 171 | N23: S | O23: =Q6*0.9^TRAQUE!$K$4*TRAQUE!T3 -> 0 | P23: 0 | Q23: 0 | R23: 0
B24: ='DATA LXM'!A24 -> Prend-Ta-Claque | C24: ='DATA LXM'!E58 -> 2568004 | D24: ='DATA LXM'!F58 -> 1 | E24: ='DATA LXM'!C58 -> 15 | F24: ='DATA LXM'!D58 -> 20 | N24: C | O24: =Q7*0.9^TRAQUE!$K$4*TRAQUE!U3 -> 0 | P24: 0 | Q24: 0 | R24: 0
B25: ='DATA LXM'!A25 -> sergioo | C25: ='DATA LXM'!E59 -> 29711962 | D25: ='DATA LXM'!F59 -> 1 | E25: ='DATA LXM'!C59 -> 40 | F25: ='DATA LXM'!D59 -> 21 | N25: CE | O25: =Q8*0.9^TRAQUE!$K$4*TRAQUE!V3 -> 0 | P25: 0 | Q25: 0 | R25: 0
B26: ='DATA LXM'!A26 -> shub | C26: ='DATA LXM'!E60 -> 728876 | D26: ='DATA LXM'!F60 -> 1 | E26: ='DATA LXM'!C60 -> 42 | F26: ='DATA LXM'!D60 -> 35 | N26: A | O26: =Q9*0.9^TRAQUE!$K$4*TRAQUE!W3 -> 0 | P26: 0 | Q26: 0 | R26: 0
B27: ='DATA LXM'!A27 -> Slipstream | C27: ='DATA LXM'!E61 -> 104115 | D27: ='DATA LXM'!F61 -> 1 | E27: ='DATA LXM'!C61 -> 3 | F27: ='DATA LXM'!D61 -> 173 | N27: AE | O27: =Q10*0.9^TRAQUE!$K$4*TRAQUE!X3 -> 0 | P27: 0 | Q27: 0 | R27: 0
B28: ='DATA LXM'!A28 -> waylander | C28: ='DATA LXM'!E62 -> 145222702 | D28: ='DATA LXM'!F62 -> 1 | E28: ='DATA LXM'!C62 -> 16 | F28: ='DATA LXM'!D62 -> 30 | N28: SE | O28: =Q11*0.9^TRAQUE!$K$4*TRAQUE!Y3 -> 0 | P28: 0 | Q28: 0 | R28: 0
B29: ='DATA LXM'!A29 -> weed | C29: ='DATA LXM'!E63 -> 1827888 | D29: ='DATA LXM'!F63 -> 1 | E29: ='DATA LXM'!C63 -> 7 | F29: ='DATA LXM'!D63 -> 128 | N29: Tk | O29: =Q12*0.9^TRAQUE!$K$4*TRAQUE!Z3 -> 1096.105462 | P29: 0 | Q29: 18 | R29: 17
B30: ='DATA LXM'!A30 -> Zerek | C30: ='DATA LXM'!E64 -> 305693 | D30: ='DATA LXM'!F64 -> 1 | E30: ='DATA LXM'!C64 -> 9 | F30: ='DATA LXM'!D64 -> 59 | N30: TkE | O30: =Q13*0.9^TRAQUE!$K$4*TRAQUE!AA3 -> 5.998825863 | P30: 0 | Q30: 0 | R30: 6
N31: Tu | O31: =Q14*0.9^TRAQUE!$K$4*TRAQUE!AB3 -> 0 | P31: 0 | Q31: 0 | R31: 0
N32: TuE | O32: =Q15*0.9^TRAQUE!$K$4*TRAQUE!AC3 -> 0 | P32: 0 | Q32: 0 | R32: 0
N33: Somme | P33: =SUM(P19:P32) -> 0 | Q33: =SUM(Q19:Q32) -> 27 | R33: 78
O34: TEMPS | P34: =TIME(P33,Q33,R33) -> 00:28:18
L39: Temps Trajet Perso
C40: TDC | D40: x | E40: y | F40: Temps | G40: h | H40: m | I40: s
B41: ='DATA LXM'!A2 -> _Angel_ | C41: ='DATA LXM'!E36 -> 45216292 | D41: ='DATA LXM'!C36 -> 40 | E41: ='DATA LXM'!D36 -> 173 | F41: =24*3600*(1-EXP(-VLOOKUP(B41,Tableau1[],3)/350))*7.375*(0.9^TRAQUE!$H$3) -> 4310.369851 | G41: =ROUNDDOWN(F41/(60*60),0) -> 1 | H41: =ROUNDDOWN(((F41-G41*60*60)/60),0) -> 11 | I41: =ROUNDUP((F41-G41*60*60-H41*60),0) -> 51 | L41: =TIME('DATA LXM'!D2,'DATA LXM'!E2,'DATA LXM'!F2) -> 00:50:32
B42: ='DATA LXM'!A3 -> _diablo_ | C42: ='DATA LXM'!E37 -> 134710356 | D42: ='DATA LXM'!C37 -> 5 | E42: ='DATA LXM'!D37 -> 173 | F42: =24*3600*(1-EXP(-VLOOKUP(B42,Tableau1[],3)/350))*7.375*(0.9^TRAQUE!$H$3) -> 595.2465147 | G42: 0 | H42: =ROUNDDOWN(((F42-G42*60*60)/60),0) -> 9 | I42: =ROUNDUP((F42-G42*60*60-H42*60),0) -> 56 | L42: =TIME('DATA LXM'!D3,'DATA LXM'!E3,'DATA LXM'!F3) -> 00:23:36
B43: ='DATA LXM'!A4 -> _Wolverine_ | C43: ='DATA LXM'!E38 -> 573345 | D43: ='DATA LXM'!C38 -> 36 | E43: ='DATA LXM'!D38 -> 173 | F43: =24*3600*(1-EXP(-VLOOKUP(B43,Tableau1[],3)/350))*7.375*(0.9^TRAQUE!$H$3) -> 3776.020689 | G43: 1 | H43: 2 | I43: 57 | L43: =TIME('DATA LXM'!D4,'DATA LXM'!E4,'DATA LXM'!F4) -> 00:42:21
B44: ='DATA LXM'!A5 -> 4midiable | C44: ='DATA LXM'!E39 -> 1940203 | D44: ='DATA LXM'!C39 -> 40 | E44: ='DATA LXM'!D39 -> 161 | F44: =24*3600*(1-EXP(-VLOOKUP(B44,Tableau1[],3)/350))*7.375*(0.9^TRAQUE!$H$3) -> 4559.250199 | G44: 1 | H44: 15 | I44: 60 | L44: =TIME('DATA LXM'!D5,'DATA LXM'!E5,'DATA LXM'!F5) -> 00:56:16
B45: ='DATA LXM'!A6 -> AB64 | C45: ='DATA LXM'!E40 -> 399362427 | D45: ='DATA LXM'!C40 -> 22 | E45: ='DATA LXM'!D40 -> 14 | F45: =24*3600*(1-EXP(-VLOOKUP(B45,Tableau1[],3)/350))*7.375*(0.9^TRAQUE!$H$3) -> 18513.93346 | G45: 5 | H45: 8 | I45: 34 | L45: =TIME('DATA LXM'!D6,'DATA LXM'!E6,'DATA LXM'!F6) -> 04:38:31
B46: ='DATA LXM'!A7 -> Allerdyce | C46: ='DATA LXM'!E41 -> 511366515 | D46: ='DATA LXM'!C41 -> 9 | E46: ='DATA LXM'!D41 -> 172 | F46: =24*3600*(1-EXP(-VLOOKUP(B46,Tableau1[],3)/350))*7.375*(0.9^TRAQUE!$H$3) -> 0 | G46: 0 | H46: 0 | I46: 0 | L46: =TIME('DATA LXM'!D7,'DATA LXM'!E7,'DATA LXM'!F7) -> 00:15:15
B47: ='DATA LXM'!A8 -> bubulle | C47: ='DATA LXM'!E42 -> 3255300 | D47: ='DATA LXM'!C42 -> 4 | E47: ='DATA LXM'!D42 -> 225 | F47: =24*3600*(1-EXP(-VLOOKUP(B47,Tableau1[],3)/350))*7.375*(0.9^TRAQUE!$H$3) -> 7171.634204 | G47: 1 | H47: 59 | I47: 32 | L47: =TIME('DATA LXM'!D8,'DATA LXM'!E8,'DATA LXM'!F8) -> 01:47:50
B48: ='DATA LXM'!A9 -> creamy | C48: ='DATA LXM'!E43 -> 4979692 | D48: ='DATA LXM'!C43 -> 39 | E48: ='DATA LXM'!D43 -> 176 | F48: =24*3600*(1-EXP(-VLOOKUP(B48,Tableau1[],3)/350))*7.375*(0.9^TRAQUE!$H$3) -> 4210.499801 | G48: 1 | H48: 10 | I48: 11 | L48: =TIME('DATA LXM'!D9,'DATA LXM'!E9,'DATA LXM'!F9) -> 00:48:54
B49: ='DATA LXM'!A10 -> crunchy | C49: ='DATA LXM'!E44 -> 637917142 | D49: ='DATA LXM'!C44 -> 34 | E49: ='DATA LXM'!D44 -> 37 | F49: =24*3600*(1-EXP(-VLOOKUP(B49,Tableau1[],3)/350))*7.375*(0.9^TRAQUE!$H$3) -> 16492.39493 | G49: 4 | H49: 34 | I49: 53 | L49: =TIME('DATA LXM'!D10,'DATA LXM'!E10,'DATA LXM'!F10) -> 04:07:14
B50: ='DATA LXM'!A11 -> Cyclope | C50: ='DATA LXM'!E45 -> 111173 | D50: ='DATA LXM'!C45 -> 11 | E50: ='DATA LXM'!D45 -> 172 | F50: =24*3600*(1-EXP(-VLOOKUP(B50,Tableau1[],3)/350))*7.375*(0.9^TRAQUE!$H$3) -> 289.6127614 | G50: 0 | H50: 4 | I50: 50 | L50: =TIME('DATA LXM'!D11,'DATA LXM'!E11,'DATA LXM'!F11) -> 00:11:02
B51: ='DATA LXM'!A12 -> Domino | C51: ='DATA LXM'!E46 -> 892741 | D51: ='DATA LXM'!C46 -> 10 | E51: ='DATA LXM'!D46 -> 173 | F51: =24*3600*(1-EXP(-VLOOKUP(B51,Tableau1[],3)/350))*7.375*(0.9^TRAQUE!$H$3) -> 204.9584534 | G51: 0 | H51: 3 | I51: 25 | L51: =TIME('DATA LXM'!D12,'DATA LXM'!E12,'DATA LXM'!F12) -> 00:12:58
B52: ='DATA LXM'!A13 -> Eltornado | C52: ='DATA LXM'!E47 -> 119767 | D52: ='DATA LXM'!C47 -> 45 | E52: ='DATA LXM'!D47 -> 20 | F52: =24*3600*(1-EXP(-VLOOKUP(B52,Tableau1[],3)/350))*7.375*(0.9^TRAQUE!$H$3) -> 18298.20285 | G52: 5 | H52: 4 | I52: 59 | L52: =TIME('DATA LXM'!D13,'DATA LXM'!E13,'DATA LXM'!F13) -> 04:33:49
B53: ='DATA LXM'!A14 -> Fleau | C53: ='DATA LXM'!E48 -> 1034979412 | D53: ='DATA LXM'!C48 -> 13 | E53: ='DATA LXM'!D48 -> 173 | F53: =24*3600*(1-EXP(-VLOOKUP(B53,Tableau1[],3)/350))*7.375*(0.9^TRAQUE!$H$3) -> 595.2465147 | G53: 0 | H53: 9 | I53: 56 | L53: =TIME('DATA LXM'!D14,'DATA LXM'!E14,'DATA LXM'!F14) -> 00:06:31
B54: ='DATA LXM'!A15 -> Formidabilis | C54: ='DATA LXM'!E49 -> 215020 | D54: ='DATA LXM'!C49 -> 17 | E54: ='DATA LXM'!D49 -> 176 | F54: =24*3600*(1-EXP(-VLOOKUP(B54,Tableau1[],3)/350))*7.375*(0.9^TRAQUE!$H$3) -> 1282.435551 | G54: 0 | H54: 21 | I54: 23 | L54: =TIME('DATA LXM'!D15,'DATA LXM'!E15,'DATA LXM'!F15) -> 00:06:52
B55: ='DATA LXM'!A16 -> Jericho | C55: ='DATA LXM'!E50 -> 1839285687 | D55: ='DATA LXM'!C50 -> 13 | E55: ='DATA LXM'!D50 -> 209 | F55: =24*3600*(1-EXP(-VLOOKUP(B55,Tableau1[],3)/350))*7.375*(0.9^TRAQUE!$H$3) -> 5127.056307 | G55: 1 | H55: 25 | I55: 28 | L55: =TIME('DATA LXM'!D16,'DATA LXM'!E16,'DATA LXM'!F16) -> 01:14:46
B56: ='DATA LXM'!A17 -> kandide | C56: ='DATA LXM'!E51 -> 74951 | D56: ='DATA LXM'!C51 -> 12 | E56: ='DATA LXM'!D51 -> 55 | F56: =24*3600*(1-EXP(-VLOOKUP(B56,Tableau1[],3)/350))*7.375*(0.9^TRAQUE!$H$3) -> 14446.57933 | G56: 4 | H56: 0 | I56: 47 | L56: =TIME('DATA LXM'!D17,'DATA LXM'!E17,'DATA LXM'!F17) -> 03:38:19
B57: ='DATA LXM'!A18 -> laika | C57: ='DATA LXM'!E52 -> 352856 | D57: ='DATA LXM'!C52 -> 42 | E57: ='DATA LXM'!D52 -> 183 | F57: =24*3600*(1-EXP(-VLOOKUP(B57,Tableau1[],3)/350))*7.375*(0.9^TRAQUE!$H$3) -> 4808.592699 | G57: 1 | H57: 20 | I57: 9 | L57: =TIME('DATA LXM'!D18,'DATA LXM'!E18,'DATA LXM'!F18) -> 00:58:20
B58: ='DATA LXM'!A19 -> Matteo37 | C58: ='DATA LXM'!E53 -> 1045506653 | D58: ='DATA LXM'!C53 -> 45 | E58: ='DATA LXM'!D53 -> 169 | F58: =24*3600*(1-EXP(-VLOOKUP(B58,Tableau1[],3)/350))*7.375*(0.9^TRAQUE!$H$3) -> 4984.405866 | G58: 1 | H58: 23 | I58: 5 | L58: =TIME('DATA LXM'!D19,'DATA LXM'!E19,'DATA LXM'!F19) -> 01:01:11
B59: ='DATA LXM'!A20 -> maxbo | C59: ='DATA LXM'!E54 -> 474073 | D59: ='DATA LXM'!C54 -> 18 | E59: ='DATA LXM'!D54 -> 179 | F59: =24*3600*(1-EXP(-VLOOKUP(B59,Tableau1[],3)/350))*7.375*(0.9^TRAQUE!$H$3) -> 1629.0895 | G59: 0 | H59: 27 | I59: 10 | L59: =TIME('DATA LXM'!D20,'DATA LXM'!E20,'DATA LXM'!F20) -> 00:13:40
B60: ='DATA LXM'!A21 -> moontribe | C60: ='DATA LXM'!E55 -> 577004 | D60: ='DATA LXM'!C55 -> 37 | E60: ='DATA LXM'!D55 -> 144 | F60: =24*3600*(1-EXP(-VLOOKUP(B60,Tableau1[],3)/350))*7.375*(0.9^TRAQUE!$H$3) -> 5437.073096 | G60: 1 | H60: 30 | I60: 38 | L60: =TIME('DATA LXM'!D21,'DATA LXM'!E21,'DATA LXM'!F21) -> 01:14:09
B61: ='DATA LXM'!A22 -> mouche | C61: ='DATA LXM'!E56 -> 140617522 | D61: ='DATA LXM'!C56 -> 7 | E61: ='DATA LXM'!D56 -> 245 | F61: =24*3600*(1-EXP(-VLOOKUP(B61,Tableau1[],3)/350))*7.375*(0.9^TRAQUE!$H$3) -> 9571.798273 | G61: 2 | H61: 39 | I61: 32 | L61: =TIME('DATA LXM'!D22,'DATA LXM'!E22,'DATA LXM'!F22) -> 02:22:46
B62: ='DATA LXM'!A23 -> Norrin-Radd | C62: ='DATA LXM'!E57 -> 32853830 | D62: ='DATA LXM'!C57 -> 33 | E62: ='DATA LXM'!D57 -> 171 | F62: =24*3600*(1-EXP(-VLOOKUP(B62,Tableau1[],3)/350))*7.375*(0.9^TRAQUE!$H$3) -> 3371.305198 | G62: 0 | H62: 56 | I62: 12 | L62: =TIME('DATA LXM'!D23,'DATA LXM'!E23,'DATA LXM'!F23) -> 00:36:24
B63: ='DATA LXM'!A24 -> Prend-Ta-Claque | C63: ='DATA LXM'!E58 -> 2568004 | D63: ='DATA LXM'!C58 -> 15 | E63: ='DATA LXM'!D58 -> 20 | F63: =24*3600*(1-EXP(-VLOOKUP(B63,Tableau1[],3)/350))*7.375*(0.9^TRAQUE!$H$3) -> 17916.16682 | G63: 4 | H63: 58 | I63: 37 | L63: =TIME('DATA LXM'!D24,'DATA LXM'!E24,'DATA LXM'!F24) -> 04:30:00
B64: ='DATA LXM'!A25 -> sergioo | C64: ='DATA LXM'!E59 -> 29711962 | D64: ='DATA LXM'!C59 -> 40 | E64: ='DATA LXM'!D59 -> 21 | F64: =24*3600*(1-EXP(-VLOOKUP(B64,Tableau1[],3)/350))*7.375*(0.9^TRAQUE!$H$3) -> 18106.58264 | G64: 5 | H64: 1 | I64: 47 | L64: =TIME('DATA LXM'!D25,'DATA LXM'!E25,'DATA LXM'!F25) -> 04:31:14
B65: ='DATA LXM'!A26 -> shub | C65: ='DATA LXM'!E60 -> 728876 | D65: ='DATA LXM'!C60 -> 42 | E65: ='DATA LXM'!D60 -> 35 | F65: =24*3600*(1-EXP(-VLOOKUP(B65,Tableau1[],3)/350))*7.375*(0.9^TRAQUE!$H$3) -> 16845.98685 | G65: 4 | H65: 40 | I65: 46 | L65: =TIME('DATA LXM'!D26,'DATA LXM'!E26,'DATA LXM'!F26) -> 04:11:59
B66: ='DATA LXM'!A27 -> Slipstream | C66: ='DATA LXM'!E61 -> 104115 | D66: ='DATA LXM'!C61 -> 3 | E66: ='DATA LXM'!D61 -> 173 | F66: =24*3600*(1-EXP(-VLOOKUP(B66,Tableau1[],3)/350))*7.375*(0.9^TRAQUE!$H$3) -> 875.7101939 | G66: 0 | H66: 14 | I66: 36 | L66: =TIME('DATA LXM'!D27,'DATA LXM'!E27,'DATA LXM'!F27) -> 00:27:48
B67: ='DATA LXM'!A28 -> waylander | C67: ='DATA LXM'!E62 -> 145222702 | D67: ='DATA LXM'!C62 -> 16 | E67: ='DATA LXM'!D62 -> 30 | F67: =24*3600*(1-EXP(-VLOOKUP(B67,Tableau1[],3)/350))*7.375*(0.9^TRAQUE!$H$3) -> 16967.52015 | G67: 4 | H67: 42 | I67: 48 | L67: =TIME('DATA LXM'!D28,'DATA LXM'!E28,'DATA LXM'!F28) -> 04:15:43
B68: ='DATA LXM'!A29 -> weed | C68: ='DATA LXM'!E63 -> 1827888 | D68: ='DATA LXM'!C63 -> 7 | E68: ='DATA LXM'!D63 -> 128 | F68: =24*3600*(1-EXP(-VLOOKUP(B68,Tableau1[],3)/350))*7.375*(0.9^TRAQUE!$H$3) -> 6010.196276 | G68: 1 | H68: 40 | I68: 11 | L68: =TIME('DATA LXM'!D29,'DATA LXM'!E29,'DATA LXM'!F29) -> 01:33:42
B69: ='DATA LXM'!A30 -> Zerek | C69: ='DATA LXM'!E64 -> 305693 | D69: ='DATA LXM'!C64 -> 9 | E69: ='DATA LXM'!D64 -> 59 | F69: =24*3600*(1-EXP(-VLOOKUP(B69,Tableau1[],3)/350))*7.375*(0.9^TRAQUE!$H$3) -> 14024.37274 | G69: 3 | H69: 53 | I69: 45 | L69: =TIME('DATA LXM'!D30,'DATA LXM'!E30,'DATA LXM'!F30) -> 03:32:17
B70: agecanonix | C70: 3461184525 | D70: =BES!E4 -> 12 | E70: =BES!F4 -> 271 | F70: =24*3600*(1-EXP(-VLOOKUP(B70,Tableau1[],3)/350))*7.375*(0.9^TRAQUE!$H$3) -> 12527.39496 | G70: 3 | H70: 28 | I70: 48 | L70: =TIME('DATA BES'!D2,'DATA BES'!E2,'DATA BES'!F2) -> 03:06:20
B71: aubertignac | C71: 87905571 | D71: =BES!E5 -> 6 | E71: =BES!F5 -> 52 | F71: =24*3600*(1-EXP(-VLOOKUP(B71,Tableau1[],3)/350))*7.375*(0.9^TRAQUE!$H$3) -> 14756.98137 | G71: 4 | H71: 5 | I71: 57 | L71: =TIME('DATA BES'!D3,'DATA BES'!E3,'DATA BES'!F3) -> 03:43:29
B72: Azkanith | C72: 3500000000 | D72: =BES!E6 -> 28 | E72: =BES!F6 -> 61 | F72: =24*3600*(1-EXP(-VLOOKUP(B72,Tableau1[],3)/350))*7.375*(0.9^TRAQUE!$H$3) -> 13983.80278 | G72: 3 | H72: 53 | I72: 4 | L72: =TIME('DATA BES'!D4,'DATA BES'!E4,'DATA BES'!F4) -> 03:29:48
B73: Bactroban | C73: 2154874164 | D73: =BES!E7 -> 20 | E73: =BES!F7 -> 115 | F73: =24*3600*(1-EXP(-VLOOKUP(B73,Tableau1[],3)/350))*7.375*(0.9^TRAQUE!$H$3) -> 7768.266623 | G73: 2 | H73: 9 | I73: 29 | L73: =TIME('DATA BES'!D5,'DATA BES'!E5,'DATA BES'!F5) -> 01:56:41
B74: ben57 | C74: 149380852 | D74: =BES!E8 -> 32 | E74: =BES!F8 -> 6 | F74: =24*3600*(1-EXP(-VLOOKUP(B74,Tableau1[],3)/350))*7.375*(0.9^TRAQUE!$H$3) -> 19338.92206 | G74: 5 | H74: 22 | I74: 19 | L74: =TIME('DATA BES'!D6,'DATA BES'!E6,'DATA BES'!F6) -> 04:50:20
B75: bib595 | C75: 2905019 | D75: =BES!E9 -> 12 | E75: =BES!F9 -> 237 | F75: =24*3600*(1-EXP(-VLOOKUP(B75,Tableau1[],3)/350))*7.375*(0.9^TRAQUE!$H$3) -> 8622.999584 | G75: 2 | H75: 23 | I75: 43 | L75: =TIME('DATA BES'!D7,'DATA BES'!E7,'DATA BES'!F7) -> 02:07:39
B76: bill | C76: 54154338 | D76: =BES!E10 -> 19 | E76: =BES!F10 -> 112 | F76: =24*3600*(1-EXP(-VLOOKUP(B76,Tableau1[],3)/350))*7.375*(0.9^TRAQUE!$H$3) -> 8108.425257 | G76: 2 | H76: 15 | I76: 9 | L76: =TIME('DATA BES'!D8,'DATA BES'!E8,'DATA BES'!F8) -> 02:02:05
B77: Bruxelles | C77: 3200000000 | D77: =BES!E11 -> 41 | E77: =BES!F11 -> 56 | F77: =24*3600*(1-EXP(-VLOOKUP(B77,Tableau1[],3)/350))*7.375*(0.9^TRAQUE!$H$3) -> 14787.40945 | G77: 4 | H77: 6 | I77: 28 | L77: =TIME('DATA BES'!D9,'DATA BES'!E9,'DATA BES'!F9) -> 03:40:45
B78: Chryom | C78: 9996200 | D78: =BES!E12 -> 9 | E78: =BES!F12 -> 58 | F78: =24*3600*(1-EXP(-VLOOKUP(B78,Tableau1[],3)/350))*7.375*(0.9^TRAQUE!$H$3) -> 14129.37354 | G78: 3 | H78: 55 | I78: 30 | L78: =TIME('DATA BES'!D10,'DATA BES'!E10,'DATA BES'!F10) -> 03:33:51
B79: CroolisVar | C79: 786759706 | D79: =BES!E13 -> 43 | E79: =BES!F13 -> 205 | F79: =24*3600*(1-EXP(-VLOOKUP(B79,Tableau1[],3)/350))*7.375*(0.9^TRAQUE!$H$3) -> 6435.336798 | G79: 1 | H79: 47 | I79: 16 | L79: =TIME('DATA BES'!D11,'DATA BES'!E11,'DATA BES'!F11) -> 01:25:58
B80: Damping | C80: 16221345 | D80: =BES!E14 -> 29 | E80: =BES!F14 -> 270 | F80: =24*3600*(1-EXP(-VLOOKUP(B80,Tableau1[],3)/350))*7.375*(0.9^TRAQUE!$H$3) -> 12633.89006 | G80: 3 | H80: 30 | I80: 34 | L80: =TIME('DATA BES'!D12,'DATA BES'!E12,'DATA BES'!F12) -> 03:05:59
B81: DrAnts | C81: 3848814 | D81: =BES!E15 -> 20 | E81: =BES!F15 -> 276 | F81: =24*3600*(1-EXP(-VLOOKUP(B81,Tableau1[],3)/350))*7.375*(0.9^TRAQUE!$H$3) -> 13128.2789 | G81: 3 | H81: 38 | I81: 49 | L81: =TIME('DATA BES'!D13,'DATA BES'!E13,'DATA BES'!F13) -> 03:14:30
B82: Drusilla | C82: 1855225863 | D82: =BES!E16 -> 31 | E82: =BES!F16 -> 23 | F82: =24*3600*(1-EXP(-VLOOKUP(B82,Tableau1[],3)/350))*7.375*(0.9^TRAQUE!$H$3) -> 17774.53641 | G82: 4 | H82: 56 | I82: 15 | L82: =TIME('DATA BES'!D14,'DATA BES'!E14,'DATA BES'!F14) -> 04:26:49
B83: EllaVonZedanltha | C83: 1952804 | D83: =BES!E17 -> 29 | E83: =BES!F17 -> 59 | F83: =24*3600*(1-EXP(-VLOOKUP(B83,Tableau1[],3)/350))*7.375*(0.9^TRAQUE!$H$3) -> 14208.58281 | G83: 3 | H83: 56 | I83: 49 | L83: =TIME('DATA BES'!D15,'DATA BES'!E15,'DATA BES'!F15) -> 03:33:07
B84: Flipper1 | C84: 92127906 | D84: =BES!E18 -> 22 | E84: =BES!F18 -> 69 | F84: =24*3600*(1-EXP(-VLOOKUP(B84,Tableau1[],3)/350))*7.375*(0.9^TRAQUE!$H$3) -> 13046.00934 | G84: 3 | H84: 37 | I84: 27 | L84: =TIME('DATA BES'!D16,'DATA BES'!E16,'DATA BES'!F16) -> 03:16:16
B85: Greeny | C85: 26570199 | D85: =BES!E19 -> 23 | E85: =BES!F19 -> 50 | F85: =24*3600*(1-EXP(-VLOOKUP(B85,Tableau1[],3)/350))*7.375*(0.9^TRAQUE!$H$3) -> 15040.6249 | G85: 4 | H85: 10 | I85: 41 | L85: =TIME('DATA BES'!D17,'DATA BES'!E17,'DATA BES'!F17) -> 03:46:14
B86: Gueust | C86: 1480632393 | D86: =BES!E20 -> 3 | E86: =BES!F20 -> 385 | F86: =24*3600*(1-EXP(-VLOOKUP(B86,Tableau1[],3)/350))*7.375*(0.9^TRAQUE!$H$3) -> 23177.3809 | G86: 6 | H86: 26 | I86: 18 | L86: =TIME('DATA BES'!D18,'DATA BES'!E18,'DATA BES'!F18) -> 05:46:51
B87: hador | C87: 1289178436 | D87: =BES!E21 -> 27 | E87: =BES!F21 -> 186 | F87: =24*3600*(1-EXP(-VLOOKUP(B87,Tableau1[],3)/350))*7.375*(0.9^TRAQUE!$H$3) -> 3205.964167 | G87: 0 | H87: 53 | I87: 26 | L87: =TIME('DATA BES'!D19,'DATA BES'!E19,'DATA BES'!F19) -> 00:36:13
B88: Ishigo | C88: 757282747 | D88: =BES!E22 -> 23 | E88: =BES!F22 -> 103 | F88: =24*3600*(1-EXP(-VLOOKUP(B88,Tableau1[],3)/350))*7.375*(0.9^TRAQUE!$H$3) -> 9261.644105 | G88: 2 | H88: 34 | I88: 22 | L88: =TIME('DATA BES'!D20,'DATA BES'!E20,'DATA BES'!F20) -> 02:18:50
B89: Lesqual | C89: 4423829 | D89: =BES!E23 -> 23 | E89: =BES!F23 -> 295 | F89: =24*3600*(1-EXP(-VLOOKUP(B89,Tableau1[],3)/350))*7.375*(0.9^TRAQUE!$H$3) -> 15142.06686 | G89: 4 | H89: 12 | I89: 23 | L89: =TIME('DATA BES'!D21,'DATA BES'!E21,'DATA BES'!F21) -> 03:44:42
B90: lipoussou | C90: 11917308 | D90: =BES!E24 -> 40 | E90: =BES!F24 -> 147 | F90: =24*3600*(1-EXP(-VLOOKUP(B90,Tableau1[],3)/350))*7.375*(0.9^TRAQUE!$H$3) -> 5466.455069 | G90: 1 | H90: 31 | I90: 7 | L90: =TIME('DATA BES'!D22,'DATA BES'!E22,'DATA BES'!F22) -> 01:13:19
B91: Lockheed | C91: 11216156 | D91: =BES!E25 -> 28 | E91: =BES!F25 -> 176 | F91: =24*3600*(1-EXP(-VLOOKUP(B91,Tableau1[],3)/350))*7.375*(0.9^TRAQUE!$H$3) -> 2742.887039 | G91: 0 | H91: 45 | I91: 43 | L91: =TIME('DATA BES'!D23,'DATA BES'!E23,'DATA BES'!F23) -> 00:26:29
B92: MagnetO | C92: 111707 | D92: =BES!E26 -> 26 | E92: =BES!F26 -> 172 | F92: =24*3600*(1-EXP(-VLOOKUP(B92,Tableau1[],3)/350))*7.375*(0.9^TRAQUE!$H$3) -> 2409.752331 | G92: 0 | H92: 40 | I92: 10 | L92: =TIME('DATA BES'!D24,'DATA BES'!E24,'DATA BES'!F24) -> 00:21:35
B93: marchombre | C93: 1650134494 | D93: =BES!E27 -> 16 | E93: =BES!F27 -> 106 | F93: =24*3600*(1-EXP(-VLOOKUP(B93,Tableau1[],3)/350))*7.375*(0.9^TRAQUE!$H$3) -> 8779.58494 | G93: 2 | H93: 26 | I93: 20 | L93: =TIME('DATA BES'!D25,'DATA BES'!E25,'DATA BES'!F25) -> 02:12:50
B94: Melissa | C94: 4325226 | D94: =BES!E28 -> 33 | E94: =BES!F28 -> 316 | F94: =24*3600*(1-EXP(-VLOOKUP(B94,Tableau1[],3)/350))*7.375*(0.9^TRAQUE!$H$3) -> 17334.47816 | G94: 4 | H94: 48 | I94: 55 | L94: =TIME('DATA BES'!D26,'DATA BES'!E26,'DATA BES'!F26) -> 04:17:11
B95: MilesGloriosus | C95: 1229557 | D95: =BES!E29 -> 5 | E95: =BES!F29 -> 94 | F95: =24*3600*(1-EXP(-VLOOKUP(B95,Tableau1[],3)/350))*7.375*(0.9^TRAQUE!$H$3) -> 10165.69734 | G95: 2 | H95: 49 | I95: 26 | L95: =TIME('DATA BES'!D27,'DATA BES'!E27,'DATA BES'!F27) -> 02:35:23
B96: miloveam | C96: 10733921 | D96: =BES!E30 -> 26 | E96: =BES!F30 -> 40 | F96: =24*3600*(1-EXP(-VLOOKUP(B96,Tableau1[],3)/350))*7.375*(0.9^TRAQUE!$H$3) -> 16077.38845 | G96: 4 | H96: 27 | I96: 58 | L96: =TIME('DATA BES'!D28,'DATA BES'!E28,'DATA BES'!F28) -> 04:01:36
B97: Mime | C97: 1741606 | D97: =BES!E31 -> 14 | E97: =BES!F31 -> 128 | F97: =24*3600*(1-EXP(-VLOOKUP(B97,Tableau1[],3)/350))*7.375*(0.9^TRAQUE!$H$3) -> 6040.629289 | G97: 1 | H97: 40 | I97: 41 | L97: =TIME('DATA BES'!D29,'DATA BES'!E29,'DATA BES'!F29) -> 01:32:05
B98: Mimic | C98: 510734725 | D98: =BES!E32 -> 44 | E98: =BES!F32 -> 173 | F98: =24*3600*(1-EXP(-VLOOKUP(B98,Tableau1[],3)/350))*7.375*(0.9^TRAQUE!$H$3) -> 4838.722183 | G98: 1 | H98: 20 | I98: 39 | L98: =TIME('DATA BES'!D30,'DATA BES'!E30,'DATA BES'!F30) -> 00:58:38
B99: Morphy | C99: 1927950 | D99: =BES!E33 -> 35 | E99: =BES!F33 -> 6 | F99: =24*3600*(1-EXP(-VLOOKUP(B99,Tableau1[],3)/350))*7.375*(0.9^TRAQUE!$H$3) -> 19378.30352 | G99: 5 | H99: 22 | I99: 59 | L99: =TIME('DATA BES'!D31,'DATA BES'!E31,'DATA BES'!F31) -> 04:50:45
B100: Myvin | C100: 1983940382 | D100: =BES!E34 -> 29 | E100: =BES!F34 -> 37 | F100: =24*3600*(1-EXP(-VLOOKUP(B100,Tableau1[],3)/350))*7.375*(0.9^TRAQUE!$H$3) -> 16411.67609 | G100: 4 | H100: 33 | I100: 32 | L100: =TIME('DATA BES'!D32,'DATA BES'!E32,'DATA BES'!F32) -> 04:06:24
B101: osman | C101: 953794 | D101: =BES!E35 -> 19 | E101: =BES!F35 -> 28 | F101: =24*3600*(1-EXP(-VLOOKUP(B101,Tableau1[],3)/350))*7.375*(0.9^TRAQUE!$H$3) -> 17177.22112 | G101: 4 | H101: 46 | I101: 18 | L101: =TIME('DATA BES'!D33,'DATA BES'!E33,'DATA BES'!F33) -> 04:18:39
B102: pacpac001 | C102: 2291704 | D102: =BES!E36 -> 6 | E102: =BES!F36 -> 51 | F102: =24*3600*(1-EXP(-VLOOKUP(B102,Tableau1[],3)/350))*7.375*(0.9^TRAQUE!$H$3) -> 14859.86015 | G102: 4 | H102: 7 | I102: 40 | L102: =TIME('DATA BES'!D34,'DATA BES'!E34,'DATA BES'!F34) -> 03:45:01
B103: Panda | C103: 74522661 | D103: =BES!E37 -> 4 | E103: =BES!F37 -> 35 | F103: =24*3600*(1-EXP(-VLOOKUP(B103,Tableau1[],3)/350))*7.375*(0.9^TRAQUE!$H$3) -> 16472.36782 | G103: 4 | H103: 34 | I103: 33 | L103: =TIME('DATA BES'!D35,'DATA BES'!E35,'DATA BES'!F35) -> 04:09:12
B104: pANTSu | C104: 1909810001 | D104: =BES!E38 -> 29 | E104: =BES!F38 -> 292 | F104: =24*3600*(1-EXP(-VLOOKUP(B104,Tableau1[],3)/350))*7.375*(0.9^TRAQUE!$H$3) -> 14923.31892 | G104: 4 | H104: 8 | I104: 44 | L104: =TIME('DATA BES'!D36,'DATA BES'!E36,'DATA BES'!F36) -> 03:40:51
B105: Phenixx | C105: 908308062 | D105: =BES!E39 -> 7 | E105: =BES!F39 -> 181 | F105: =24*3600*(1-EXP(-VLOOKUP(B105,Tableau1[],3)/350))*7.375*(0.9^TRAQUE!$H$3) -> 1321.386824 | G105: =ROUNDDOWN(F105/(60*60),0) -> 0 | H105: 22 | I105: 2 | L105: =TIME('DATA BES'!D37,'DATA BES'!E37,'DATA BES'!F37) -> 00:25:48
B106: Pinou | C106: 7212325 | D106: =BES!E40 -> 43 | E106: =BES!F40 -> 21 | F106: =24*3600*(1-EXP(-VLOOKUP(B106,Tableau1[],3)/350))*7.375*(0.9^TRAQUE!$H$3) -> 18165.53978 | G106: 5 | H106: =ROUNDDOWN(((F106-G106*60*60)/60),0) -> 2 | I106: =ROUNDUP((F106-G106*60*60-H106*60),0) -> 46 | L106: =TIME('DATA BES'!D38,'DATA BES'!E38,'DATA BES'!F38) -> 04:31:56
B107: pluginbaby | C107: 12705822 | D107: =BES!E41 -> 35 | E107: =BES!F41 -> 23 | F107: =24*3600*(1-EXP(-VLOOKUP(B107,Tableau1[],3)/350))*7.375*(0.9^TRAQUE!$H$3) -> 17834.54721 | G107: 4 | H107: 57 | I107: 15 | L107: =TIME('DATA BES'!D39,'DATA BES'!E39,'DATA BES'!F39) -> 04:27:27
B108: Quivala | C108: 9761369 | D108: =BES!E42 -> 44 | E108: =BES!F42 -> 143 | F108: =24*3600*(1-EXP(-VLOOKUP(B108,Tableau1[],3)/350))*7.375*(0.9^TRAQUE!$H$3) -> 6190.106231 | G108: 1 | H108: 43 | I108: 11 | L108: =TIME('DATA BES'!D40,'DATA BES'!E40,'DATA BES'!F40) -> 01:24:21
B109: Reex | C109: 1332809 | D109: =BES!E43 -> 36 | E109: =BES!F43 -> 193 | F109: =24*3600*(1-EXP(-VLOOKUP(B109,Tableau1[],3)/350))*7.375*(0.9^TRAQUE!$H$3) -> 4732.297567 | G109: 1 | H109: 18 | I109: 53 | L109: =TIME('DATA BES'!D41,'DATA BES'!E41,'DATA BES'!F41) -> 00:59:12
B110: riblibli | C110: 194929 | D110: =BES!E44 -> 39 | E110: =BES!F44 -> 25 | F110: =24*3600*(1-EXP(-VLOOKUP(B110,Tableau1[],3)/350))*7.375*(0.9^TRAQUE!$H$3) -> 17719.20657 | G110: 4 | H110: 55 | I110: 20 | L110: =TIME('DATA BES'!D42,'DATA BES'!E42,'DATA BES'!F42) -> 04:25:26
B111: Rita | C111: 616559697 | D111: =BES!E45 -> 33 | E111: =BES!F45 -> 318 | F111: =24*3600*(1-EXP(-VLOOKUP(B111,Tableau1[],3)/350))*7.375*(0.9^TRAQUE!$H$3) -> 17522.76471 | G111: 4 | H111: 52 | I111: 3 | L111: =TIME('DATA BES'!D43,'DATA BES'!E43,'DATA BES'!F43) -> 04:20:02
B112: Rockslide | C112: 192556364 | D112: =BES!E46 -> 16 | E112: =BES!F46 -> 173 | F112: =24*3600*(1-EXP(-VLOOKUP(B112,Tableau1[],3)/350))*7.375*(0.9^TRAQUE!$H$3) -> 1016.560664 | G112: 0 | H112: 16 | I112: 57 | L112: =TIME('DATA BES'!D44,'DATA BES'!E44,'DATA BES'!F44) -> 00:00:00
B113: Rofulus | C113: 599979 | D113: =BES!E47 -> 13 | E113: =BES!F47 -> 107 | F113: =24*3600*(1-EXP(-VLOOKUP(B113,Tableau1[],3)/350))*7.375*(0.9^TRAQUE!$H$3) -> 8629.482454 | G113: 2 | H113: 23 | I113: 50 | L113: =TIME('DATA BES'!D45,'DATA BES'!E45,'DATA BES'!F45) -> 02:11:09
B114: ryuk44 | C114: 53860510 | D114: =BES!E48 -> 12 | E114: =BES!F48 -> 61 | F114: =24*3600*(1-EXP(-VLOOKUP(B114,Tableau1[],3)/350))*7.375*(0.9^TRAQUE!$H$3) -> 13817.75526 | G114: 3 | H114: 50 | I114: 18 | L114: =TIME('DATA BES'!D46,'DATA BES'!E46,'DATA BES'!F46) -> 03:28:54
B115: Seiduna | C115: 184276 | D115: =BES!E49 -> 10 | E115: =BES!F49 -> 63 | F115: =24*3600*(1-EXP(-VLOOKUP(B115,Tableau1[],3)/350))*7.375*(0.9^TRAQUE!$H$3) -> 13601.8445 | G115: 3 | H115: 46 | I115: 42 | L115: =TIME('DATA BES'!D47,'DATA BES'!E47,'DATA BES'!F47) -> 03:25:53
B116: sentih | C116: 12854744 | D116: =BES!E50 -> 6 | E116: =BES!F50 -> 55 | F116: =24*3600*(1-EXP(-VLOOKUP(B116,Tableau1[],3)/350))*7.375*(0.9^TRAQUE!$H$3) -> 14446.57933 | G116: 4 | H116: 0 | I116: 47 | L116: =TIME('DATA BES'!D48,'DATA BES'!E48,'DATA BES'!F48) -> 03:38:52
B117: Shikamaru | C117: 8133785 | D117: =BES!E51 -> 35 | E117: =BES!F51 -> 169 | F117: =24*3600*(1-EXP(-VLOOKUP(B117,Tableau1[],3)/350))*7.375*(0.9^TRAQUE!$H$3) -> 3662.152747 | G117: 1 | H117: 1 | I117: 3 | L117: =TIME('DATA BES'!D49,'DATA BES'!E49,'DATA BES'!F49) -> 00:41:09
B118: spetsnaz | C118: 3500000000 | D118: =BES!E52 -> 40 | E118: =BES!F52 -> 125 | F118: =24*3600*(1-EXP(-VLOOKUP(B118,Tableau1[],3)/350))*7.375*(0.9^TRAQUE!$H$3) -> 7552.562999 | G118: 2 | H118: 5 | I118: 53 | L118: =TIME('DATA BES'!D50,'DATA BES'!E50,'DATA BES'!F50) -> 01:48:23
B119: svanhilde | C119: 2500000000 | D119: =BES!E53 -> 29 | E119: =BES!F53 -> 124 | F119: =24*3600*(1-EXP(-VLOOKUP(B119,Tableau1[],3)/350))*7.375*(0.9^TRAQUE!$H$3) -> 7017.279525 | G119: 1 | H119: 56 | I119: 58 | L119: =TIME('DATA BES'!D51,'DATA BES'!E51,'DATA BES'!F51) -> 01:42:49
B120: Taouret | C120: 688628575 | D120: =BES!E54 -> 33 | E120: =BES!F54 -> 237 | F120: =24*3600*(1-EXP(-VLOOKUP(B120,Tableau1[],3)/350))*7.375*(0.9^TRAQUE!$H$3) -> 9128.812506 | G120: 2 | H120: 32 | I120: 9 | L120: =TIME('DATA BES'!D52,'DATA BES'!E52,'DATA BES'!F52) -> 02:11:26
B121: TheDentist | C121: 14367717 | D121: =BES!E55 -> 19 | E121: =BES!F55 -> 53 | F121: =24*3600*(1-EXP(-VLOOKUP(B121,Tableau1[],3)/350))*7.375*(0.9^TRAQUE!$H$3) -> 14693.22871 | G121: 4 | H121: 4 | I121: 54 | L121: =TIME('DATA BES'!D53,'DATA BES'!E53,'DATA BES'!F53) -> 03:41:22
B122: Thunderbird | C122: 2202808830 | D122: =BES!E56 -> 5 | E122: =BES!F56 -> 172 | F122: =24*3600*(1-EXP(-VLOOKUP(B122,Tableau1[],3)/350))*7.375*(0.9^TRAQUE!$H$3) -> 577.575312 | G122: 0 | H122: 9 | I122: 38 | L122: =TIME('DATA BES'!D54,'DATA BES'!E54,'DATA BES'!F54) -> 00:23:42
B123: Tradjette | C123: 34256999 | D123: =BES!E57 -> 7 | E123: =BES!F57 -> 13 | F123: =24*3600*(1-EXP(-VLOOKUP(B123,Tableau1[],3)/350))*7.375*(0.9^TRAQUE!$H$3) -> 18558.09578 | G123: 5 | H123: 9 | I123: 19 | L123: =TIME('DATA BES'!D55,'DATA BES'!E55,'DATA BES'!F55) -> 04:40:06
B124: vinkou | C124: 2046872542 | D124: =BES!E58 -> 45 | E124: =BES!F58 -> 107 | F124: =24*3600*(1-EXP(-VLOOKUP(B124,Tableau1[],3)/350))*7.375*(0.9^TRAQUE!$H$3) -> 9721.934442 | G124: 2 | H124: 42 | I124: 2 | L124: =TIME('DATA BES'!D56,'DATA BES'!E56,'DATA BES'!F56) -> 02:21:56
B125: weaver | C125: 12457093 | D125: =BES!E59 -> 16 | E125: =BES!F59 -> 13 | F125: =24*3600*(1-EXP(-VLOOKUP(B125,Tableau1[],3)/350))*7.375*(0.9^TRAQUE!$H$3) -> 18571.13311 | G125: 5 | H125: 9 | I125: 32 | L125: =TIME('DATA BES'!D57,'DATA BES'!E57,'DATA BES'!F57) -> 04:39:45
B126: Wolverine | C126: 2500000000 | D126: =BES!E60 -> 6 | E126: =BES!F60 -> 34 | F126: =24*3600*(1-EXP(-VLOOKUP(B126,Tableau1[],3)/350))*7.375*(0.9^TRAQUE!$H$3) -> 16564.64773 | G126: 4 | H126: 36 | I126: 5 | L126: =TIME('DATA BES'!D58,'DATA BES'!E58,'DATA BES'!F58) -> 04:10:25
